Directorate,Department,Expenditure Type,Ref.Doc.1,Vendor Name,Expenditure Amount (exc VAT),Payment Date
Assurance,Assurance,Other Services,0060123815,ROYAL MAIL GROUP LIMITED,185.74,19/02/2019
Assurance,Assurance,Publications,0060121758,GOOD IMPRESSIONS (LONDON) LIMITED,90.00,14/02/2019
Assurance,Assurance,Professional Services,0060122628,GOOD IMPRESSIONS (LONDON) LIMITED,210.00,27/02/2019
Assurance,Assurance,Professional Services,0060122750,GOOD IMPRESSIONS (LONDON) LIMITED,75.00,27/02/2019
Assurance,Assurance,Professional Services,80023642,TRAINING SHIP BROADSWORD,100.00,26/02/2019
Assurance,Assurance,Other Indirect Employee Expens,80023645,MAYOR OF MERTON CHARITIES,200.00,26/02/2019
Assurance,Assurance,Other Indirect Employee Expens,80023235,THE MAYOR'S CHARITY APPEAL,200.00,11/02/2019
Assurance,Assurance,Professional Services,0010015008,REDACTED - PERSONAL DATA,500.00,14/02/2019
Assurance,Assurance,Professional Services,0060123200,REDACTED - PERSONAL DATA,250.00,14/02/2019
Assurance,Assurance,Miscellaneous Expenses,0060124535,MIDDLESEX UNIVERSITY,"3,850.00",28/02/2019
Assurance,Assurance,Professional Services,0060123763,GOOD IMPRESSIONS (LONDON) LIMITED,60.00,18/02/2019
Assurance,Assurance,Professional Services,0060121029,PRICEWATERHOUSE COOPERS,"25,000.00",06/02/2019
Assurance,Assurance,Translation Exp / Interpret,0060122661,PRIME PRODUCTION LTD,39.50,04/02/2019
Assurance,Assurance,Fees and Charges,0080023255,LONDON BOROUGH OF HARINGEY,"20,165.50",08/02/2019
Assurance,Assurance,Translation Exp / Interpret,0060121824,REDACTED - PERSONAL DATA,435.00,14/02/2019
Balance Sheet,Balance Sheet,Charitable Giving,20042752,CHARITIES TRUST,515.00,11/02/2019
Central Expenses,Central Expenses,Subscriptions,0060123860,CITY OF LONDON,"30,000.00",19/02/2019
Central Expenses,Central Expenses,Other Establishments - Third P,EBX0269013,LEE VALLEY REGIONAL PARK AUTH.,"28,597.64",14/02/2019
Central Expenses,Central Expenses,Other Establishments - Third P,EBX0270448,TRANSPORT TRADING LIMITED,"3,737,461.00",26/02/2019
Central Expenses,Central Expenses,Other Establishments - Third P,EBX0271011,GREATER LONDON AUTHORITY,"49,678.00",28/02/2019
Central Expenses,Central Expenses,Audit Fee,0060123851,BDO LLP,"31,887.00",18/02/2019
Central Expenses,Central Expenses,Audit Fee,0060123868,BDO LLP,"65,460.00",19/02/2019
Central Expenses,Central Expenses,Insurance Claims,0060121901,GRISTWOOD & TOM LTD,352.00,14/02/2019
Central Expenses,Central Expenses,Insurance Claims,0060122647,JOHNSON AUSTIN LIMITED,750.00,04/02/2019
Central Expenses,Central Expenses,Insurance Claims,0060122867,JOHNSON AUSTIN LIMITED,500.00,06/02/2019
Central Expenses,Central Expenses,Insurance Claims,0060082939,WEIGHTMANS LLP,"1,000.00",04/02/2019
Central Expenses,Central Expenses,Insurance Claims,0060103259,WEIGHTMANS LLP,600.00,21/02/2019
Central Expenses,Central Expenses,Insurance Claims,0060104712,WEIGHTMANS LLP,905.00,20/02/2019
Central Expenses,Central Expenses,Insurance Claims,0060122547,WEIGHTMANS LLP,"1,097.50",07/02/2019
Central Expenses,Central Expenses,Insurance Claims,0060123713,WEIGHTMANS LLP,"1,253.50",28/02/2019
Central Expenses,Central Expenses,Insurance Claims,0060123805,WEIGHTMANS LLP,"1,038.50",20/02/2019
Central Expenses,Central Expenses,Insurance Claims,0060122596,GLENDALE COUNTRYSIDE LTD,296.80,27/02/2019
Central Expenses,Central Expenses,Insurance Claims,0060122629,GLENDALE COUNTRYSIDE LTD,238.10,27/02/2019
Central Expenses,Central Expenses,Insurance Claims,0060122636,GLENDALE COUNTRYSIDE LTD,553.64,27/02/2019
Central Expenses,Central Expenses,Insurance Claims,0060122649,GLENDALE COUNTRYSIDE LTD,189.32,27/02/2019
Central Expenses,Central Expenses,Insurance Claims,0060122701,GLENDALE COUNTRYSIDE LTD,190.30,27/02/2019
Central Expenses,Central Expenses,Insurance Claims,0060122727,GLENDALE COUNTRYSIDE LTD,902.32,27/02/2019
Central Expenses,Central Expenses,Insurance Claims,0060122736,GLENDALE COUNTRYSIDE LTD,178.35,27/02/2019
Central Expenses,Central Expenses,Insurance Claims,0080023673,DWP COMPENSATION RECOVERY UNIT,665.00,21/02/2019
Central Expenses,Central Expenses,Insurance Claims,0060122777,IMCS (UK) PLC,60.00,13/02/2019
Central Expenses,Central Expenses,Insurance Claims,0060123417,IMCS (UK) PLC,60.00,13/02/2019
Central Expenses,Central Expenses,Insurance Claims,80023671,AMV LAW,"7,000.00",22/02/2019
Central Expenses,Central Expenses,Insurance Claims,80023517,REDACTED - PERSONAL DATA,"5,228.30",22/02/2019
Central Expenses,Central Expenses,Insurance Claims,80023035,REDACTED - PERSONAL DATA,300.00,21/02/2019
Central Expenses,Central Expenses,Insurance Claims,80023607,REDACTED - PERSONAL DATA,300.00,21/02/2019
Central Expenses,Central Expenses,Insurance Claims,80023794,REDACTED - PERSONAL DATA,73.41,27/02/2019
Commercial,Customer Support Group,Building Repairs & Maintenance,0060121264,OAKRAY LIMITED,378.75,04/02/2019
Commercial,Customer Support Group,Building Repairs & Maintenance,0060124121,OAKRAY LIMITED,371.25,27/02/2019
Commercial,Customer Support Group,Building Repairs & Maintenance,0060122186,AJS LTD,47.57,12/02/2019
Commercial,Customer Support Group,Building Repairs & Maintenance,0060122208,AJS LTD,113.84,12/02/2019
Commercial,Customer Support Group,Building Repairs & Maintenance,0060122264,AJS LTD,57.12,12/02/2019
Commercial,Customer Support Group,Building Repairs & Maintenance,0060122337,AJS LTD,173.26,12/02/2019
Commercial,Customer Support Group,Building Repairs & Maintenance,0060123175,AJS LTD,107.20,11/02/2019
Commercial,Customer Support Group,Building Repairs & Maintenance,0060115419,CARTER SECURITY LTD,40.00,04/02/2019
Commercial,Customer Support Group,Building Repairs & Maintenance,0010014902,HSL COMPLIANCE LTD,34.91,13/02/2019
Commercial,Customer Support Group,Building Repairs & Maintenance,0010014903,HSL COMPLIANCE LTD,34.91,13/02/2019
Commercial,Customer Support Group,Building Repairs & Maintenance,0010014925,HSL COMPLIANCE LTD,34.91,13/02/2019
Commercial,Customer Support Group,Building Repairs & Maintenance,0010014926,HSL COMPLIANCE LTD,34.91,13/02/2019
Commercial,Customer Support Group,Building Repairs & Maintenance,0010014927,HSL COMPLIANCE LTD,34.91,13/02/2019
Commercial,Customer Support Group,Building Repairs & Maintenance,0010014928,HSL COMPLIANCE LTD,34.91,13/02/2019
Commercial,Customer Support Group,Building Repairs & Maintenance,0010014929,HSL COMPLIANCE LTD,34.91,13/02/2019
Commercial,Customer Support Group,Building Repairs & Maintenance,0060110478,HSL COMPLIANCE LTD,179.55,13/02/2019
Commercial,Customer Support Group,Building Repairs & Maintenance,80023569,DESEAR RA LTD,"3,610.00",19/02/2019
Commercial,Customer Support Group,Building Repairs & Maintenance,0010014898,HERTEL (UK) LTD,34.91,13/02/2019
Commercial,Customer Support Group,Building Repairs & Maintenance,0060117029,T. & D. BARRS,565.25,20/02/2019
Commercial,Customer Support Group,Building Repairs & Maintenance,0060121651,T. & D. BARRS,255.00,14/02/2019
Commercial,Customer Support Group,Building Repairs & Maintenance,0060121684,T. & D. BARRS,429.25,14/02/2019
Commercial,Customer Support Group,Building Repairs & Maintenance,0060124282,T. & D. BARRS,896.75,21/02/2019
Commercial,Customer Support Group,Building Repairs & Maintenance,0010015013,AJS LTD,229.60,21/02/2019
Commercial,Customer Support Group,Building Repairs & Maintenance,0060122751,AJS LTD,"1,140.00",05/02/2019
Commercial,Customer Support Group,Building Repairs & Maintenance,0060117416,HSL COMPLIANCE LTD,114.67,13/02/2019
Commercial,Customer Support Group,Building Repairs & Maintenance,0060119228,HSL COMPLIANCE LTD,114.67,13/02/2019
Commercial,Customer Support Group,Building Repairs & Maintenance,0060119234,HSL COMPLIANCE LTD,114.67,13/02/2019
Commercial,Customer Support Group,Building Repairs & Maintenance,0060119733,HSL COMPLIANCE LTD,114.67,13/02/2019
Commercial,Customer Support Group,Building Repairs & Maintenance,0010014819,INTEGRATED WATER SERVICES LTD,108.00,06/02/2019
Commercial,Customer Support Group,Gas,0060122052,KENT COUNTY COUNCIL (KCS),"6,411.14",01/02/2019
Commercial,Customer Support Group,Furniture-Purchase-Repair,0060124091,C.E.S.,176.25,21/02/2019
Commercial,Customer Support Group,Cleaning and domestic material,0060123500,HERTFORDSHIRE SUPPLIES   COUNTY CO,"2,556.10",14/02/2019
Commercial,Customer Support Group,Furniture-Purchase-Repair,0060122180,SCREWFIX DIRECT LTD,15.00,05/02/2019
Commercial,Customer Support Group,Furniture-Purchase-Repair,0060122293,SCREWFIX DIRECT LTD,300.67,05/02/2019
Commercial,Customer Support Group,Furniture-Purchase-Repair,0060123746,SCREWFIX DIRECT LTD,79.26,19/02/2019
Commercial,Customer Support Group,Telephones Calls,0060124589,BRITISH TELECOM PLC,103.05,27/02/2019
Commercial,Customer Support Group,Other Services,0060123315,BLUE 9 SECURITY LIMITED,"4,203.90",12/02/2019
Commercial,Customer Support Group,Other Services,0060123335,BLUE 9 SECURITY LIMITED,"14,997.78",14/02/2019
Commercial,Customer Support Group,Cleaning and domestic material,0060121698,CHURCHILL CONTRACT SERVICES,"6,937.52",14/02/2019
Commercial,Customer Support Group,Water Services,0060123559,AFFINITY WATER LIMITED,415.05,15/02/2019
Commercial,Customer Support Group,Building Repairs & Maintenance,0060122926,ACTION ON HEARING LOSS,244.00,11/02/2019
Commercial,Customer Support Group,Equipment and Materials Purcha,0060123252,THE BRANDED MERCHANDISE COMPANY,828.00,11/02/2019
Commercial,Customer Support Group,Cleaning and domestic material,0060123546,HERTFORDSHIRE SUPPLIES   COUNTY CO,211.38,14/02/2019
Commercial,Customer Support Group,Rubbish Collection,0060121190,G.B.HOLDINGS LTD,323.20,26/02/2019
Commercial,Customer Support Group,Gas,0060124497,MIDDLESEX UNIVERSITY,"4,579.76",28/02/2019
Commercial,Customer Support Group,Gas,0060124715,MIDDLESEX UNIVERSITY,"1,645.69",28/02/2019
Commercial,Customer Support Group,Electricity,0060124140,E-ON ENERGY,152.37,25/02/2019
Commercial,Customer Support Group,Other Services,0060123307,BLUE 9 SECURITY LIMITED,"6,129.86",12/02/2019
Commercial,Customer Support Group,Cleaning and domestic material,0060121763,CHURCHILL CONTRACT SERVICES,680.07,14/02/2019
Commercial,Customer Support Group,Gas,0060118807,KENT COUNTY COUNCIL (KCS),124.08,14/02/2019
Commercial,Customer Support Group,Gas,0060118816,KENT COUNTY COUNCIL (KCS),127.91,14/02/2019
Commercial,Customer Support Group,Gas,0060119037,KENT COUNTY COUNCIL (KCS),127.36,14/02/2019
Commercial,Customer Support Group,Gas,0060119040,KENT COUNTY COUNCIL (KCS),127.91,14/02/2019
Commercial,Customer Support Group,Gas,0060119053,KENT COUNTY COUNCIL (KCS),124.55,14/02/2019
Commercial,Customer Support Group,Gas,0060121942,KENT COUNTY COUNCIL (KCS),656.67,01/02/2019
Commercial,Customer Support Group,Gas,0060123716,KENT COUNTY COUNCIL (KCS),-144.62,27/02/2019
Commercial,Customer Support Group,Gas,0060123719,KENT COUNTY COUNCIL (KCS),-143.21,27/02/2019
Commercial,Customer Support Group,Electricity,0060122451,KENT COUNTY COUNCIL (KCS),"1,443.08",14/02/2019
Commercial,Customer Support Group,Electricity,0060122474,KENT COUNTY COUNCIL (KCS),"1,525.10",14/02/2019
Commercial,Customer Support Group,Electricity,0060122490,KENT COUNTY COUNCIL (KCS),"1,133.93",14/02/2019
Commercial,Customer Support Group,Water Services,0060124388,CASTLE WATER LTD,181.53,21/02/2019
Commercial,Customer Support Group,Cleaning and domestic material,0060123487,HERTFORDSHIRE SUPPLIES   COUNTY CO,"2,464.72",18/02/2019
Commercial,Customer Support Group,Furniture-Purchase-Repair,0060123710,SCREWFIX DIRECT LTD,91.58,25/02/2019
Commercial,Customer Support Group,Rents,0060124503,MIDDLESEX UNIVERSITY,"86,267.61",28/02/2019
Commercial,Customer Support Group,Service Charges,0060124480,MIDDLESEX UNIVERSITY,"212,186.27",28/02/2019
Commercial,Customer Support Group,Rubbish Collection,0060123830,PEARCE RECYCLING GROUP,65.00,18/02/2019
Commercial,Customer Support Group,Other Services,0060123258,BLUE 9 SECURITY LIMITED,"2,316.23",11/02/2019
Commercial,Customer Support Group,Other Services,0060123279,BLUE 9 SECURITY LIMITED,"11,584.08",12/02/2019
Commercial,Customer Support Group,Cleaning and domestic material,0060121740,CHURCHILL CONTRACT SERVICES,"4,397.89",14/02/2019
Commercial,Customer Support Group,Building Repairs & Maintenance,0060122927,ACTION ON HEARING LOSS,192.00,11/02/2019
Commercial,Customer Support Group,Gas,0060118676,KENT COUNTY COUNCIL (KCS),84.67,13/02/2019
Commercial,Customer Support Group,Gas,0060118703,KENT COUNTY COUNCIL (KCS),-68.53,13/02/2019
Commercial,Customer Support Group,Gas,0060119042,KENT COUNTY COUNCIL (KCS),-67.79,13/02/2019
Commercial,Customer Support Group,Gas,0060119068,KENT COUNTY COUNCIL (KCS),62.10,13/02/2019
Commercial,Customer Support Group,Gas,0060119895,KENT COUNTY COUNCIL (KCS),-84.67,13/02/2019
Commercial,Customer Support Group,Gas,0060122447,KENT COUNTY COUNCIL (KCS),229.06,13/02/2019
Commercial,Customer Support Group,Gas,0060122535,KENT COUNTY COUNCIL (KCS),67.79,13/02/2019
Commercial,Customer Support Group,Gas,0060123025,KENT COUNTY COUNCIL (KCS),187.80,13/02/2019
Commercial,Customer Support Group,Ttl IT & Comms,0060099192,BRITISH TELECOM PLC,40.00,21/02/2019
Commercial,Customer Support Group,Cleaning and domestic material,0060121679,CHURCHILL CONTRACT SERVICES,397.08,14/02/2019
Commercial,Customer Support Group,CSG Services Contract Payment,0060121269,CAPITA BUSINESS SERVICES LTD,"3,769.50",12/02/2019
Commercial,Customer Support Group,CSG Services Contract Payment,0060123074,CAPITA BUSINESS SERVICES LTD,"30,501.73",12/02/2019
Commercial,Customer Support Group,CSG Services Contract Payment,0060123972,CAPITA BUSINESS SERVICES LTD,"22,781.25",27/02/2019
Commercial,Customer Support Group,CSG Services Contract Payment,0060124253,CAPITA BUSINESS SERVICES LTD,"37,425.00",28/02/2019
Commercial,Customer Support Group,CSG Services Contract Payment,0060124336,CAPITA BUSINESS SERVICES LTD,"584,302.00",26/02/2019
Commercial,Customer Support Group,CSG Services Contract Payment,0060124392,CAPITA BUSINESS SERVICES LTD,"40,608.00",26/02/2019
Commercial,Customer Support Group,Fees and Charges,80023077,REDACTED - PERSONAL DATA,60.00,01/02/2019
Commercial,Customer Support Group,Gas,0060122048,KENT COUNTY COUNCIL (KCS),260.21,01/02/2019
Commercial,Customer Support Group,Gas,0060122344,KENT COUNTY COUNCIL (KCS),247.70,14/02/2019
Commercial,Customer Support Group,Gas,0060122346,KENT COUNTY COUNCIL (KCS),206.18,14/02/2019
Commercial,Customer Support Group,Gas,0060122347,KENT COUNTY COUNCIL (KCS),815.58,14/02/2019
Commercial,Customer Support Group,Gas,0060122353,KENT COUNTY COUNCIL (KCS),231.57,14/02/2019
Commercial,Customer Support Group,Gas,0060122374,KENT COUNTY COUNCIL (KCS),627.71,14/02/2019
Commercial,Customer Support Group,Gas,0060122405,KENT COUNTY COUNCIL (KCS),627.09,14/02/2019
Commercial,Customer Support Group,Gas,0060122412,KENT COUNTY COUNCIL (KCS),"1,016.72",14/02/2019
Commercial,Customer Support Group,Gas,0060122499,KENT COUNTY COUNCIL (KCS),478.11,14/02/2019
Commercial,Customer Support Group,Gas,0060122568,KENT COUNTY COUNCIL (KCS),519.91,14/02/2019
Commercial,Customer Support Group,Gas,0060122586,KENT COUNTY COUNCIL (KCS),82.77,14/02/2019
Commercial,Customer Support Group,Gas,0060122589,KENT COUNTY COUNCIL (KCS),243.57,14/02/2019
Commercial,Customer Support Group,Gas,0060122593,KENT COUNTY COUNCIL (KCS),"1,060.36",14/02/2019
Commercial,Customer Support Group,Gas,0060122600,KENT COUNTY COUNCIL (KCS),75.64,14/02/2019
Commercial,Customer Support Group,Gas,0060122603,KENT COUNTY COUNCIL (KCS),768.78,14/02/2019
Commercial,Customer Support Group,Gas,0060122616,KENT COUNTY COUNCIL (KCS),-91.06,20/02/2019
Commercial,Customer Support Group,Gas,0060122641,KENT COUNTY COUNCIL (KCS),183.98,14/02/2019
Commercial,Customer Support Group,Gas,0060122646,KENT COUNTY COUNCIL (KCS),414.48,14/02/2019
Commercial,Customer Support Group,Gas,0060122651,KENT COUNTY COUNCIL (KCS),85.50,14/02/2019
Commercial,Customer Support Group,Gas,0060122664,KENT COUNTY COUNCIL (KCS),88.35,14/02/2019
Commercial,Customer Support Group,Gas,0060122675,KENT COUNTY COUNCIL (KCS),275.54,14/02/2019
Commercial,Customer Support Group,Gas,0060122714,KENT COUNTY COUNCIL (KCS),133.59,14/02/2019
Commercial,Customer Support Group,Gas,0060122729,KENT COUNTY COUNCIL (KCS),75.64,14/02/2019
Commercial,Customer Support Group,Gas,0060122740,KENT COUNTY COUNCIL (KCS),169.44,14/02/2019
Commercial,Customer Support Group,Gas,0060122752,KENT COUNTY COUNCIL (KCS),73.38,14/02/2019
Commercial,Customer Support Group,Gas,0060122764,KENT COUNTY COUNCIL (KCS),199.17,05/02/2019
Commercial,Customer Support Group,Gas,0060122766,KENT COUNTY COUNCIL (KCS),340.06,05/02/2019
Commercial,Customer Support Group,Gas,0060122769,KENT COUNTY COUNCIL (KCS),66.81,14/02/2019
Commercial,Customer Support Group,Gas,0060122774,KENT COUNTY COUNCIL (KCS),714.12,14/02/2019
Commercial,Customer Support Group,Gas,0060122781,KENT COUNTY COUNCIL (KCS),66.30,14/02/2019
Commercial,Customer Support Group,Gas,0060122786,KENT COUNTY COUNCIL (KCS),96.30,14/02/2019
Commercial,Customer Support Group,Gas,0060122804,KENT COUNTY COUNCIL (KCS),99.51,14/02/2019
Commercial,Customer Support Group,Gas,0060122816,KENT COUNTY COUNCIL (KCS),523.85,14/02/2019
Commercial,Customer Support Group,Gas,0060122839,KENT COUNTY COUNCIL (KCS),479.35,14/02/2019
Commercial,Customer Support Group,Gas,0060122878,KENT COUNTY COUNCIL (KCS),426.61,18/02/2019
Commercial,Customer Support Group,Gas,0060123347,KENT COUNTY COUNCIL (KCS),678.11,18/02/2019
Commercial,Customer Support Group,Gas,0060123353,KENT COUNTY COUNCIL (KCS),551.26,18/02/2019
Commercial,Customer Support Group,Gas,0060124182,KENT COUNTY COUNCIL (KCS),38.51,25/02/2019
Commercial,Customer Support Group,Gas,0060124211,KENT COUNTY COUNCIL (KCS),10.16,22/02/2019
Commercial,Customer Support Group,Gas,0060124287,KENT COUNTY COUNCIL (KCS),29.66,25/02/2019
Commercial,Customer Support Group,Gas,0060124349,KENT COUNTY COUNCIL (KCS),19.91,25/02/2019
Commercial,Customer Support Group,Gas,0060124431,KENT COUNTY COUNCIL (KCS),57.50,27/02/2019
Commercial,Customer Support Group,Gas,0060124441,KENT COUNTY COUNCIL (KCS),28.38,27/02/2019
Commercial,Customer Support Group,Gas,0060124443,KENT COUNTY COUNCIL (KCS),46.39,27/02/2019
Commercial,Customer Support Group,Gas,0060124472,KENT COUNTY COUNCIL (KCS),46.46,27/02/2019
Commercial,Customer Support Group,Gas,0060124499,KENT COUNTY COUNCIL (KCS),31.31,27/02/2019
Commercial,Customer Support Group,Gas,0060124501,KENT COUNTY COUNCIL (KCS),55.77,27/02/2019
Commercial,Customer Support Group,Gas,0060124506,KENT COUNTY COUNCIL (KCS),45.81,27/02/2019
Commercial,Customer Support Group,Gas,0060124532,KENT COUNTY COUNCIL (KCS),74.38,27/02/2019
Commercial,Customer Support Group,Gas,0060124537,KENT COUNTY COUNCIL (KCS),108.70,27/02/2019
Commercial,Customer Support Group,Gas,0060124545,KENT COUNTY COUNCIL (KCS),132.47,27/02/2019
Commercial,Customer Support Group,Gas,0060124549,KENT COUNTY COUNCIL (KCS),660.25,27/02/2019
Commercial,Customer Support Group,Gas,0060124562,KENT COUNTY COUNCIL (KCS),386.03,27/02/2019
Commercial,Customer Support Group,Gas,0060124563,KENT COUNTY COUNCIL (KCS),86.80,27/02/2019
Commercial,Customer Support Group,Electricity,0060115798,KENT COUNTY COUNCIL (KCS),527.54,14/02/2019
Commercial,Customer Support Group,Electricity,0060115871,KENT COUNTY COUNCIL (KCS),250.30,14/02/2019
Commercial,Customer Support Group,Electricity,0060121997,KENT COUNTY COUNCIL (KCS),453.42,05/02/2019
Commercial,Customer Support Group,Electricity,0060122014,KENT COUNTY COUNCIL (KCS),659.19,07/02/2019
Commercial,Customer Support Group,Electricity,0060122352,KENT COUNTY COUNCIL (KCS),"1,715.66",14/02/2019
Commercial,Customer Support Group,Electricity,0060122364,KENT COUNTY COUNCIL (KCS),"1,857.09",14/02/2019
Commercial,Customer Support Group,Electricity,0060122398,KENT COUNTY COUNCIL (KCS),"1,768.92",14/02/2019
Commercial,Customer Support Group,Electricity,0060122607,KENT COUNTY COUNCIL (KCS),529.30,04/02/2019
Commercial,Customer Support Group,Electricity,0060122623,KENT COUNTY COUNCIL (KCS),"2,006.17",14/02/2019
Commercial,Customer Support Group,Electricity,0060122652,KENT COUNTY COUNCIL (KCS),"2,092.85",14/02/2019
Commercial,Customer Support Group,Electricity,0060122690,KENT COUNTY COUNCIL (KCS),"2,027.12",14/02/2019
Commercial,Customer Support Group,Electricity,0060122710,KENT COUNTY COUNCIL (KCS),"1,684.98",14/02/2019
Commercial,Customer Support Group,Electricity,0060122763,KENT COUNTY COUNCIL (KCS),"1,760.80",14/02/2019
Commercial,Customer Support Group,Electricity,0060122788,KENT COUNTY COUNCIL (KCS),356.47,14/02/2019
Commercial,Customer Support Group,Electricity,0060122794,KENT COUNTY COUNCIL (KCS),460.09,05/02/2019
Commercial,Customer Support Group,Electricity,0060122811,KENT COUNTY COUNCIL (KCS),316.92,14/02/2019
Commercial,Customer Support Group,Electricity,0060122818,KENT COUNTY COUNCIL (KCS),344.06,05/02/2019
Commercial,Customer Support Group,Electricity,0060122850,KENT COUNTY COUNCIL (KCS),349.19,14/02/2019
Commercial,Customer Support Group,Electricity,0060122871,KENT COUNTY COUNCIL (KCS),917.66,18/02/2019
Commercial,Customer Support Group,Electricity,0060122886,KENT COUNTY COUNCIL (KCS),725.42,18/02/2019
Commercial,Customer Support Group,Electricity,0060122907,KENT COUNTY COUNCIL (KCS),856.98,18/02/2019
Commercial,Customer Support Group,Electricity,0060123367,KENT COUNTY COUNCIL (KCS),"1,335.08",14/02/2019
Commercial,Customer Support Group,Electricity,0060123420,KENT COUNTY COUNCIL (KCS),31.82,13/02/2019
Commercial,Customer Support Group,Electricity,0060123555,KENT COUNTY COUNCIL (KCS),51.83,20/02/2019
Commercial,Customer Support Group,Electricity,0060124054,KENT COUNTY COUNCIL (KCS),342.97,20/02/2019
Commercial,Customer Support Group,Electricity,0060124055,KENT COUNTY COUNCIL (KCS),341.51,20/02/2019
Commercial,Customer Support Group,Electricity,0060124097,KENT COUNTY COUNCIL (KCS),315.25,20/02/2019
Commercial,Customer Support Group,Electricity,0060124122,KENT COUNTY COUNCIL (KCS),331.97,22/02/2019
Commercial,Customer Support Group,Electricity,0060124530,KENT COUNTY COUNCIL (KCS),156.10,27/02/2019
Commercial,Customer Support Group,Electricity,0060124550,KENT COUNTY COUNCIL (KCS),5.93,27/02/2019
Commercial,Customer Support Group,Electricity,0060124555,KENT COUNTY COUNCIL (KCS),103.57,27/02/2019
Commercial,Customer Support Group,Electricity,0060124568,KENT COUNTY COUNCIL (KCS),146.20,27/02/2019
Commercial,Customer Support Group,Electricity,0060124581,KENT COUNTY COUNCIL (KCS),714.50,27/02/2019
Commercial,Customer Support Group,Electricity,0060124625,KENT COUNTY COUNCIL (KCS),445.90,27/02/2019
Commercial,Customer Support Group,Electricity,0060124633,KENT COUNTY COUNCIL (KCS),411.50,27/02/2019
Commercial,Customer Support Group,Building Repairs & Maintenance,0010014895,HERTEL (UK) LTD,139.64,13/02/2019
Commercial,Customer Support Group,Building Repairs & Maintenance,0010014900,HERTEL (UK) LTD,34.91,13/02/2019
Commercial,Customer Support Group,Building Repairs & Maintenance,0010014901,HERTEL (UK) LTD,315.00,13/02/2019
Commercial,Customer Support Group,Building Repairs & Maintenance,0060121238,T. & D. BARRS,76.50,18/02/2019
Commercial,Customer Support Group,Building Repairs & Maintenance,0060121261,T. & D. BARRS,85.00,18/02/2019
Commercial,Customer Support Group,Building Repairs & Maintenance,0060121266,T. & D. BARRS,275.40,18/02/2019
Commercial,Customer Support Group,Building Repairs & Maintenance,0060121329,T. & D. BARRS,127.50,18/02/2019
Commercial,Customer Support Group,Building Repairs & Maintenance,0060121423,T. & D. BARRS,51.00,18/02/2019
Commercial,Customer Support Group,Building Repairs & Maintenance,0060121460,T. & D. BARRS,63.92,26/02/2019
Commercial,Customer Support Group,Building Repairs & Maintenance,0060121639,T. & D. BARRS,46.75,18/02/2019
Commercial,Customer Support Group,Building Repairs & Maintenance,0060121674,T. & D. BARRS,85.00,18/02/2019
Commercial,Customer Support Group,Building Repairs & Maintenance,0060121705,T. & D. BARRS,146.20,18/02/2019
Commercial,Customer Support Group,Building Repairs & Maintenance,0060121718,T. & D. BARRS,68.00,18/02/2019
Commercial,Customer Support Group,Building Repairs & Maintenance,0060121761,T. & D. BARRS,127.50,18/02/2019
Commercial,Customer Support Group,Building Repairs & Maintenance,0060122370,T. & D. BARRS,34.00,05/02/2019
Commercial,Customer Support Group,Building Repairs & Maintenance,0060122392,T. & D. BARRS,25.50,05/02/2019
Commercial,Customer Support Group,Building Repairs & Maintenance,0060122409,T. & D. BARRS,85.00,05/02/2019
Commercial,Customer Support Group,Building Repairs & Maintenance,0060122415,T. & D. BARRS,289.00,05/02/2019
Commercial,Customer Support Group,Building Repairs & Maintenance,0060123692,T. & D. BARRS,127.50,19/02/2019
Commercial,Customer Support Group,Electricity,0010015009,E-ON ENERGY,22.40,14/02/2019
Commercial,Customer Support Group,Electricity,0010015010,E-ON ENERGY,28.00,14/02/2019
Commercial,Customer Support Group,Electricity,0060123629,E-ON ENERGY,26.61,18/02/2019
Commercial,Customer Support Group,Electricity,0060123966,E-ON ENERGY,25.60,19/02/2019
Commercial,Customer Support Group,Other Services,0060123299,BLUE 9 SECURITY LIMITED,67.15,12/02/2019
Commercial,Customer Support Group,Other Services,0060123313,BLUE 9 SECURITY LIMITED,214.88,12/02/2019
Commercial,Customer Support Group,Other Services,0060123729,BLUE 9 SECURITY LIMITED,"1,183.32",18/02/2019
Commercial,Customer Support Group,Gas,0060122056,BRITISH GAS BUSINESS,238.71,04/02/2019
Commercial,Customer Support Group,Gas,0060123496,BRITISH GAS BUSINESS,114.21,18/02/2019
Commercial,Customer Support Group,Gas,0060123590,BRITISH GAS BUSINESS,89.39,18/02/2019
Commercial,Customer Support Group,Electricity,0010015016,BRITISH GAS BUSINESS,100.16,22/02/2019
Commercial,Customer Support Group,Cleaning and domestic material,0060121738,CHURCHILL CONTRACT SERVICES,176.50,14/02/2019
Commercial,Customer Support Group,Water Services,0060122680,AFFINITY WATER LIMITED,623.96,05/02/2019
Commercial,Customer Support Group,Water Services,0060123558,AFFINITY WATER LIMITED,188.98,18/02/2019
Commercial,Customer Support Group,Advertising,0060124214,TMP (UK) LTD,179.00,21/02/2019
Commercial,Customer Support Group,Building Repairs & Maintenance,0010015001,AJS LTD,"4,455.24",12/02/2019
Commercial,Customer Support Group,Building Repairs & Maintenance,0060122630,AJS LTD,"9,038.60",04/02/2019
Commercial,Customer Support Group,Building Repairs & Maintenance,0060123179,AJS LTD,"1,072.80",12/02/2019
Commercial,Customer Support Group,Building Repairs & Maintenance,0060123228,AJS LTD,89.60,12/02/2019
Commercial,Customer Support Group,Gas,0060123387,OPUS ENERGY LTD,45.00,18/02/2019
Commercial,Customer Support Group,Gas,0060123405,OPUS ENERGY LTD,46.50,28/02/2019
Commercial,Customer Support Group,Gas,0060123418,OPUS ENERGY LTD,63.00,18/02/2019
Commercial,Customer Support Group,Gas,0060123462,OPUS ENERGY LTD,46.50,18/02/2019
Commercial,Customer Support Group,Service Charges,0060124217,LAZARI INVESTMENTS LTD,183.36,27/02/2019
Commercial,Customer Support Group,Service Charges,0060124231,LAZARI INVESTMENTS LTD,"27,966.24",27/02/2019
Commercial,Customer Support Group,Water Services,0010015036,CASTLE WATER LTD,71.98,28/02/2019
Commercial,Customer Support Group,Water Services,0060121371,CASTLE WATER LTD,35.99,28/02/2019
Commercial,Customer Support Group,Water Services,0060122884,CASTLE WATER LTD,15.61,25/02/2019
Commercial,Customer Support Group,Water Services,0060124196,CASTLE WATER LTD,37.39,25/02/2019
Commercial,Customer Support Group,Water Services,0060124299,CASTLE WATER LTD,26.53,25/02/2019
Commercial,Customer Support Group,Water Services,0060124310,CASTLE WATER LTD,22.99,25/02/2019
Commercial,Customer Support Group,Water Services,0060124362,CASTLE WATER LTD,183.61,25/02/2019
Commercial,Customer Support Group,Water Services,0060124365,CASTLE WATER LTD,48.64,25/02/2019
Commercial,Customer Support Group,Water Services,0060124372,CASTLE WATER LTD,30.16,25/02/2019
Commercial,Customer Support Group,Water Services,0060124383,CASTLE WATER LTD,40.29,21/02/2019
Commercial,Customer Support Group,Water Services,0060124399,CASTLE WATER LTD,29.69,25/02/2019
Commercial,Customer Support Group,Other Services,0060123171,LONDON CARETAKERS,280.00,28/02/2019
Commercial,Customer Support Group,Building Repairs & Maintenance,0060110891,HSL COMPLIANCE LTD,"2,792.80",13/02/2019
Commercial,Customer Support Group,Building Repairs & Maintenance,0060112347,HSL COMPLIANCE LTD,"1,606.08",13/02/2019
Commercial,Customer Support Group,Building Repairs & Maintenance,0060117226,HSL COMPLIANCE LTD,172.00,13/02/2019
Commercial,Customer Support Group,Building Repairs & Maintenance,0060117261,HSL COMPLIANCE LTD,33.25,13/02/2019
Commercial,Customer Support Group,Building Repairs & Maintenance,0060121634,HSL COMPLIANCE LTD,"1,396.50",13/02/2019
Commercial,Customer Support Group,Building Repairs & Maintenance,0060123903,HSL COMPLIANCE LTD,"1,429.75",25/02/2019
Commercial,Customer Support Group,Building Repairs & Maintenance,0060123908,HSL COMPLIANCE LTD,172.00,25/02/2019
Commercial,Customer Support Group,Building Repairs & Maintenance,0060124009,HSL COMPLIANCE LTD,172.00,25/02/2019
Commercial,Customer Support Group,Building Repairs & Maintenance,0060124035,HSL COMPLIANCE LTD,114.67,25/02/2019
Commercial,Customer Support Group,Equipment and Materials Purcha,0060112295,HSL COMPLIANCE LTD,135.00,13/02/2019
Commercial,Customer Support Group,Building Repairs & Maintenance,0060118417,PICKERINGS LIFTS LTD,446.67,20/02/2019
Commercial,Customer Support Group,Building Repairs & Maintenance,0060120780,PICKERINGS LIFTS LTD,116.67,26/02/2019
Commercial,Customer Support Group,Building Repairs & Maintenance,0060121394,PICKERINGS LIFTS LTD,"1,614.61",26/02/2019
Commercial,Customer Support Group,Equipment and Materials Purcha,0060121811,PURDY CONTRACTS LTD,80.75,13/02/2019
Commercial,Customer Support Group,Equipment and Materials Purcha,0060121823,PURDY CONTRACTS LTD,507.45,13/02/2019
Commercial,Customer Support Group,Equipment and Materials Purcha,0060121825,PURDY CONTRACTS LTD,51.00,13/02/2019
Commercial,Customer Support Group,Equipment and Materials Purcha,0060121850,PURDY CONTRACTS LTD,51.00,13/02/2019
Commercial,Customer Support Group,Equipment and Materials Purcha,0060122265,PURDY CONTRACTS LTD,"1,434.22",13/02/2019
Commercial,Customer Support Group,Ttl IT & Comms,0060122843,VODAFONE LTD (BILLS ONLY),317.19,06/02/2019
Commercial,Customer Support Group,Ttl IT & Comms,0060121067,TELEFONICA UK LTD,46.75,06/02/2019
Commercial,Customer Support Group,Ttl IT & Comms,0060121203,TELEFONICA UK LTD,37.40,06/02/2019
Commercial,Customer Support Group,Postage,0060122809,ROYAL MAIL GROUP LIMITED,646.38,12/02/2019
Commercial,Customer Support Group,Postage,0060122810,ROYAL MAIL GROUP LIMITED,646.38,12/02/2019
Commercial,Customer Support Group,Postage,0060122830,ROYAL MAIL GROUP LIMITED,646.38,12/02/2019
Commercial,Customer Support Group,Postage,0060122844,ROYAL MAIL GROUP LIMITED,646.38,12/02/2019
Commercial,Customer Support Group,Professional Services,0060124661,ROSSENDALES (COLLECT) LTD,3.57,27/02/2019
Commercial,Customer Support Group,Other Services,0060121803,LOOMIS UK LIMITED,942.22,08/02/2019
Commercial,Customer Support Group,Other Services,0060121837,LOOMIS UK LIMITED,942.22,08/02/2019
Commercial,Customer Support Group,Other Services,0060121838,LOOMIS UK LIMITED,942.22,14/02/2019
Commercial,Customer Support Group,Other Services,0060121856,LOOMIS UK LIMITED,54.00,08/02/2019
Commercial,Customer Support Group,Other Services,0060122029,LOOMIS UK LIMITED,104.00,14/02/2019
Commercial,Customer Support Group,Postage,0010014996,HEIDELBERG GRAPHIC EQUIPMENT LTD,799.37,28/02/2019
Commercial,Customer Support Group,Postage,0060122283,HEIDELBERG GRAPHIC EQUIPMENT LTD,436.72,14/02/2019
Commercial,Customer Support Group,Postage,0060122360,HEIDELBERG GRAPHIC EQUIPMENT LTD,640.02,21/02/2019
Commercial,Customer Support Group,Postage,0060124074,ROYAL MAIL GROUP LIMITED,-3.00,28/02/2019
Commercial,Customer Support Group,Postage,0060124151,ROYAL MAIL GROUP LIMITED,12.60,28/02/2019
Commercial,Customer Support Group,Postage,0060124600,ROYAL MAIL GROUP LIMITED,93.39,26/02/2019
Commercial,Customer Support Group,Postage,0010015025,TABBERS,649.00,26/02/2019
Commercial,Customer Support Group,Postage,0060124305,TABBERS,170.50,22/02/2019
Commercial,Customer Support Group,Postage,0060124489,FINANCIAL DATA MANAGEMENT LTD,"1,015.00",22/02/2019
Commercial,Customer Support Group,Postage,0060122127,ENVOPRINT,627.00,19/02/2019
Commercial,Customer Support Group,Postage,0060123167,ENVOPRINT,576.81,27/02/2019
Commercial,Customer Support Group,Gas,0060121941,KENT COUNTY COUNCIL (KCS),806.22,01/02/2019
Commercial,Customer Support Group,Furniture-Purchase-Repair,0060123615,C.E.S.,90.83,18/02/2019
Commercial,Customer Support Group,Cleaning and domestic material,0060123484,HERTFORDSHIRE SUPPLIES   COUNTY CO,311.00,14/02/2019
Commercial,Customer Support Group,Cleaning and domestic material,0060123628,HERTFORDSHIRE SUPPLIES   COUNTY CO,262.54,19/02/2019
Commercial,Customer Support Group,Vending Machines,0060122838,SIEMENS FINANCIAL SERVICES LTD,"2,543.89",05/02/2019
Commercial,Customer Support Group,Rubbish Collection,0060123808,PEARCE RECYCLING GROUP,98.00,28/02/2019
Commercial,Customer Support Group,Other Services,0060123274,BLUE 9 SECURITY LIMITED,"22,773.84",13/02/2019
Commercial,Customer Support Group,Other Services,0060123328,BLUE 9 SECURITY LIMITED,"8,002.98",13/02/2019
Commercial,Customer Support Group,Rents,0060122934,NETWORK RAIL ACCOUNTS RECEIVABLE,"4,500.00",07/02/2019
Commercial,Customer Support Group,Rents,0060122935,NETWORK RAIL ACCOUNTS RECEIVABLE,"20,375.00",07/02/2019
Commercial,Customer Support Group,Rents,0060124273,NETWORK RAIL ACCOUNTS RECEIVABLE,"20,375.00",21/02/2019
Commercial,Customer Support Group,Rents,0060124387,NETWORK RAIL ACCOUNTS RECEIVABLE,"4,500.00",21/02/2019
Commercial,Customer Support Group,Water Services,0060124590,ANGEL SPRINGS LTD,27.15,26/02/2019
Commercial,Customer Support Group,Water Services,0060124591,ANGEL SPRINGS LTD,5.25,26/02/2019
Commercial,Customer Support Group,Water Services,0060124599,ANGEL SPRINGS LTD,5.25,26/02/2019
Commercial,Customer Support Group,Water Services,0060124612,ANGEL SPRINGS LTD,5.25,26/02/2019
Commercial,Customer Support Group,Water Services,0060124630,ANGEL SPRINGS LTD,26.02,26/02/2019
Commercial,Customer Support Group,Water Services,0060124679,ANGEL SPRINGS LTD,5.25,26/02/2019
Commercial,Customer Support Group,Building Repairs & Maintenance,0060122862,ACTION ON HEARING LOSS,192.00,11/02/2019
Commercial,Customer Support Group,Building Repairs & Maintenance,0060110020,HSL COMPLIANCE LTD,34.00,13/02/2019
Commercial,Customer Support Group,CSG Services Contract Payment,0060123090,CAPITA BUSINESS SERVICES LTD,"29,899.02",12/02/2019
Commercial,Customer Support Group,Building Repairs & Maintenance,0060122595,AJS LTD,"1,175.56",04/02/2019
Commercial,Customer Support Group,Building Repairs & Maintenance,0060117805,OAKRAY LIMITED,364.30,06/02/2019
Commercial,Customer Support Group,Building Repairs & Maintenance,0060117849,OAKRAY LIMITED,380.88,06/02/2019
Commercial,Customer Support Group,Building Repairs & Maintenance,0060121668,OAKRAY LIMITED,80.00,12/02/2019
Commercial,Customer Support Group,Building Repairs & Maintenance,0060121676,OAKRAY LIMITED,128.00,12/02/2019
Commercial,Customer Support Group,Building Repairs & Maintenance,0060121683,OAKRAY LIMITED,160.00,12/02/2019
Commercial,Customer Support Group,Building Repairs & Maintenance,0060121689,OAKRAY LIMITED,"2,367.94",12/02/2019
Commercial,Customer Support Group,Building Repairs & Maintenance,0060121694,OAKRAY LIMITED,96.00,27/02/2019
Commercial,Customer Support Group,Building Repairs & Maintenance,0060121699,OAKRAY LIMITED,201.40,12/02/2019
Commercial,Customer Support Group,Building Repairs & Maintenance,0060121710,OAKRAY LIMITED,80.00,12/02/2019
Commercial,Customer Support Group,Building Repairs & Maintenance,0060121732,OAKRAY LIMITED,447.48,12/02/2019
Commercial,Customer Support Group,Building Repairs & Maintenance,0060121742,OAKRAY LIMITED,128.00,12/02/2019
Commercial,Customer Support Group,Building Repairs & Maintenance,0060121750,OAKRAY LIMITED,96.00,12/02/2019
Commercial,Customer Support Group,Building Repairs & Maintenance,0060121755,OAKRAY LIMITED,198.55,12/02/2019
Commercial,Customer Support Group,Building Repairs & Maintenance,0060121759,OAKRAY LIMITED,363.76,20/02/2019
Commercial,Customer Support Group,Building Repairs & Maintenance,0060121767,OAKRAY LIMITED,64.00,12/02/2019
Commercial,Customer Support Group,Building Repairs & Maintenance,0060121772,OAKRAY LIMITED,96.00,12/02/2019
Commercial,Customer Support Group,Building Repairs & Maintenance,0060124335,OAKRAY LIMITED,172.50,21/02/2019
Commercial,Customer Support Group,Building Repairs & Maintenance,0060120829,FRONTIER-PITTS LTD,675.00,25/02/2019
Commercial,Customer Support Group,Building Repairs & Maintenance,0010014693,HERTEL (UK) LTD,575.00,13/02/2019
Commercial,Customer Support Group,Building Repairs & Maintenance,0010014698,HERTEL (UK) LTD,575.00,13/02/2019
Commercial,Customer Support Group,Building Repairs & Maintenance,0010014746,HERTEL (UK) LTD,34.91,13/02/2019
Commercial,Customer Support Group,Building Repairs & Maintenance,0060121466,HERTEL (UK) LTD,466.64,13/02/2019
Commercial,Customer Support Group,Building Repairs & Maintenance,0060123913,HERTEL (UK) LTD,"1,605.14",25/02/2019
Commercial,Customer Support Group,Building Repairs & Maintenance,0060123967,HERTEL (UK) LTD,225.00,25/02/2019
Commercial,Customer Support Group,Building Repairs & Maintenance,0060123993,HERTEL (UK) LTD,"1,606.08",25/02/2019
Commercial,Customer Support Group,Building Repairs & Maintenance,0060123827,GRISTWOOD & TOM LTD,576.00,28/02/2019
Commercial,Customer Support Group,Building Repairs & Maintenance,0060122426,DORMA UK LTD,790.50,20/02/2019
Commercial,Customer Support Group,Building Repairs & Maintenance,0060122904,DORMA UK LTD,250.00,06/02/2019
Commercial,Customer Support Group,Building Repairs & Maintenance,0060121531,T. & D. BARRS,351.49,26/02/2019
Commercial,Customer Support Group,Building Repairs & Maintenance,0060122185,T. & D. BARRS,63.92,21/02/2019
Commercial,Customer Support Group,Building Repairs & Maintenance,0060122205,T. & D. BARRS,63.92,21/02/2019
Commercial,Customer Support Group,Building Repairs & Maintenance,0060122226,T. & D. BARRS,63.92,21/02/2019
Commercial,Customer Support Group,Building Repairs & Maintenance,0060122251,T. & D. BARRS,95.88,21/02/2019
Commercial,Customer Support Group,Building Repairs & Maintenance,0060122254,T. & D. BARRS,63.92,21/02/2019
Commercial,Customer Support Group,Building Repairs & Maintenance,0060122938,T. & D. BARRS,63.92,18/02/2019
Commercial,Customer Support Group,Building Repairs & Maintenance,0060122939,T. & D. BARRS,478.83,19/02/2019
Commercial,Customer Support Group,Building Repairs & Maintenance,0060122957,T. & D. BARRS,482.86,28/02/2019
Commercial,Customer Support Group,Building Repairs & Maintenance,0060122972,T. & D. BARRS,565.24,19/02/2019
Commercial,Customer Support Group,Building Repairs & Maintenance,0060124185,T. & D. BARRS,63.92,21/02/2019
Commercial,Customer Support Group,Building Repairs & Maintenance,0060123547,ONLITECH,"2,478.00",21/02/2019
Commercial,Customer Support Group,Building Repairs & Maintenance,0010015006,WATES LIVING SPACE,159.19,14/02/2019
Commercial,Customer Support Group,Building Repairs & Maintenance,0060120631,WATES LIVING SPACE,308.97,14/02/2019
Commercial,Customer Support Group,Building Repairs & Maintenance,0060121268,WATES LIVING SPACE,"1,482.00",07/02/2019
Commercial,Customer Support Group,Building Repairs & Maintenance,0060121645,WATES LIVING SPACE,90.80,12/02/2019
Commercial,Customer Support Group,Building Repairs & Maintenance,0060123220,WATES LIVING SPACE,46.85,11/02/2019
Commercial,Customer Support Group,Building Repairs & Maintenance,0060123324,WATES LIVING SPACE,"2,345.00",14/02/2019
Commercial,Customer Support Group,Building Repairs & Maintenance,0060123341,WATES LIVING SPACE,35.63,18/02/2019
Commercial,Customer Support Group,Building Repairs & Maintenance,0060123382,WATES LIVING SPACE,"1,936.07",21/02/2019
Commercial,Customer Support Group,Building Repairs & Maintenance,0060123391,WATES LIVING SPACE,160.31,28/02/2019
Commercial,Customer Support Group,Building Repairs & Maintenance,0060123410,WATES LIVING SPACE,138.83,28/02/2019
Commercial,Customer Support Group,Building Repairs & Maintenance,0060123651,WATES LIVING SPACE,53.44,19/02/2019
Commercial,Customer Support Group,Building Repairs & Maintenance,0060123695,WATES LIVING SPACE,166.81,19/02/2019
Commercial,Customer Support Group,Building Repairs & Maintenance,0060123706,WATES LIVING SPACE,35.63,19/02/2019
Commercial,Customer Support Group,Building Repairs & Maintenance,0060123892,WATES LIVING SPACE,124.69,25/02/2019
Commercial,Customer Support Group,Building Repairs & Maintenance,0060123896,WATES LIVING SPACE,106.88,19/02/2019
Commercial,Customer Support Group,Building Repairs & Maintenance,0060123409,GEMCO SERVICES LTD,319.00,28/02/2019
Commercial,Customer Support Group,Building Repairs & Maintenance,0060123472,GEMCO SERVICES LTD,555.00,28/02/2019
Commercial,Customer Support Group,Building Repairs & Maintenance,0010014999,AJS LTD,64.00,12/02/2019
Commercial,Customer Support Group,Building Repairs & Maintenance,0010015015,AJS LTD,32.00,21/02/2019
Commercial,Customer Support Group,Building Repairs & Maintenance,0060122196,AJS LTD,43.20,12/02/2019
Commercial,Customer Support Group,Building Repairs & Maintenance,0060122212,AJS LTD,54.40,12/02/2019
Commercial,Customer Support Group,Building Repairs & Maintenance,0060122218,AJS LTD,43.20,12/02/2019
Commercial,Customer Support Group,Building Repairs & Maintenance,0060122261,AJS LTD,54.40,12/02/2019
Commercial,Customer Support Group,Building Repairs & Maintenance,0060122597,AJS LTD,96.00,04/02/2019
Commercial,Customer Support Group,Building Repairs & Maintenance,0060122622,AJS LTD,68.51,04/02/2019
Commercial,Customer Support Group,Building Repairs & Maintenance,0060122632,AJS LTD,215.88,04/02/2019
Commercial,Customer Support Group,Building Repairs & Maintenance,0060122635,AJS LTD,84.00,05/02/2019
Commercial,Customer Support Group,Building Repairs & Maintenance,0060122643,AJS LTD,141.05,18/02/2019
Commercial,Customer Support Group,Building Repairs & Maintenance,0060122648,AJS LTD,315.84,07/02/2019
Commercial,Customer Support Group,Building Repairs & Maintenance,0060122655,AJS LTD,115.20,05/02/2019
Commercial,Customer Support Group,Building Repairs & Maintenance,0060122671,AJS LTD,32.00,07/02/2019
Commercial,Customer Support Group,Building Repairs & Maintenance,0060122683,AJS LTD,32.00,05/02/2019
Commercial,Customer Support Group,Building Repairs & Maintenance,0060122702,AJS LTD,32.00,04/02/2019
Commercial,Customer Support Group,Building Repairs & Maintenance,0060122711,AJS LTD,173.06,05/02/2019
Commercial,Customer Support Group,Building Repairs & Maintenance,0060122721,AJS LTD,64.00,04/02/2019
Commercial,Customer Support Group,Building Repairs & Maintenance,0060122724,AJS LTD,96.00,04/02/2019
Commercial,Customer Support Group,Building Repairs & Maintenance,0060122734,AJS LTD,219.88,25/02/2019
Commercial,Customer Support Group,Building Repairs & Maintenance,0060122737,AJS LTD,64.00,04/02/2019
Commercial,Customer Support Group,Building Repairs & Maintenance,0060122743,AJS LTD,64.00,05/02/2019
Commercial,Customer Support Group,Building Repairs & Maintenance,0060122760,AJS LTD,32.00,04/02/2019
Commercial,Customer Support Group,Building Repairs & Maintenance,0060122789,AJS LTD,736.00,13/02/2019
Commercial,Customer Support Group,Building Repairs & Maintenance,0060122828,AJS LTD,96.00,05/02/2019
Commercial,Customer Support Group,Building Repairs & Maintenance,0060123026,AJS LTD,860.90,14/02/2019
Commercial,Customer Support Group,Building Repairs & Maintenance,0060123041,AJS LTD,750.73,14/02/2019
Commercial,Customer Support Group,Building Repairs & Maintenance,0060123113,AJS LTD,5.60,12/02/2019
Commercial,Customer Support Group,Building Repairs & Maintenance,0060123137,AJS LTD,230.18,12/02/2019
Commercial,Customer Support Group,Building Repairs & Maintenance,0060123140,AJS LTD,5.60,12/02/2019
Commercial,Customer Support Group,Building Repairs & Maintenance,0060123152,AJS LTD,566.15,13/02/2019
Commercial,Customer Support Group,Building Repairs & Maintenance,0060123173,AJS LTD,44.80,11/02/2019
Commercial,Customer Support Group,Building Repairs & Maintenance,0060123176,AJS LTD,170.76,12/02/2019
Commercial,Customer Support Group,Building Repairs & Maintenance,0060123193,AJS LTD,43.20,12/02/2019
Commercial,Customer Support Group,Building Repairs & Maintenance,0060123202,AJS LTD,113.84,19/02/2019
Commercial,Customer Support Group,Building Repairs & Maintenance,0060123211,AJS LTD,274.46,13/02/2019
Commercial,Customer Support Group,Building Repairs & Maintenance,0060123235,AJS LTD,11.20,12/02/2019
Commercial,Customer Support Group,Building Repairs & Maintenance,0060123238,AJS LTD,54.40,12/02/2019
Commercial,Customer Support Group,Building Repairs & Maintenance,0060123249,AJS LTD,54.40,12/02/2019
Commercial,Customer Support Group,Building Repairs & Maintenance,0060123269,AJS LTD,11.20,12/02/2019
Commercial,Customer Support Group,Building Repairs & Maintenance,0060123271,AJS LTD,634.85,14/02/2019
Commercial,Customer Support Group,Building Repairs & Maintenance,0060124810,AJS LTD,73.01,28/02/2019
Commercial,Customer Support Group,Building Repairs & Maintenance,0060121897,NORTH LONDON CATERING EQUIPMENT,183.53,04/02/2019
Commercial,Customer Support Group,Building Repairs & Maintenance,0060123768,NORTH LONDON CATERING EQUIPMENT,168.60,26/02/2019
Commercial,Customer Support Group,Building Repairs & Maintenance,0060124566,NORTH LONDON CATERING EQUIPMENT,197.50,26/02/2019
Commercial,Customer Support Group,Building Repairs & Maintenance,0060124826,CARTER SECURITY LTD,200.00,28/02/2019
Commercial,Customer Support Group,Building Repairs & Maintenance,0060121478,HIGH VOLTAGE ELECTRICAL SERVICES LTD,"1,200.00",12/02/2019
Commercial,Customer Support Group,Building Repairs & Maintenance,0060110177,HSL COMPLIANCE LTD,"5,495.00",13/02/2019
Commercial,Customer Support Group,Building Repairs & Maintenance,0060110511,HSL COMPLIANCE LTD,162.00,13/02/2019
Commercial,Customer Support Group,Building Repairs & Maintenance,0060112262,HSL COMPLIANCE LTD,75.00,13/02/2019
Commercial,Customer Support Group,Building Repairs & Maintenance,0060112275,HSL COMPLIANCE LTD,400.00,13/02/2019
Commercial,Customer Support Group,Building Repairs & Maintenance,0060112278,HSL COMPLIANCE LTD,264.59,13/02/2019
Commercial,Customer Support Group,Building Repairs & Maintenance,0060112302,HSL COMPLIANCE LTD,709.13,13/02/2019
Commercial,Customer Support Group,Building Repairs & Maintenance,0060121810,PICKERINGS LIFTS LTD,264.00,25/02/2019
Commercial,Customer Support Group,Building Repairs & Maintenance,0060124232,PICKERINGS LIFTS LTD,212.30,21/02/2019
Commercial,Customer Support Group,Building Repairs & Maintenance,0060124266,PICKERINGS LIFTS LTD,135.00,25/02/2019
Commercial,Customer Support Group,Building Repairs & Maintenance,0060124309,PICKERINGS LIFTS LTD,135.00,21/02/2019
Commercial,Customer Support Group,Building Repairs & Maintenance,0060124672,PICKERINGS LIFTS LTD,135.00,28/02/2019
Commercial,Customer Support Group,Electricity,0060123395,E-ON ENERGY,29.44,13/02/2019
Commercial,Customer Support Group,Other Services,0060123289,BLUE 9 SECURITY LIMITED,"1,058.00",13/02/2019
Commercial,Customer Support Group,Other Services,0060123291,BLUE 9 SECURITY LIMITED,"24,289.20",12/02/2019
Commercial,Customer Support Group,Other Services,0060123297,BLUE 9 SECURITY LIMITED,136.00,12/02/2019
Commercial,Customer Support Group,Other Services,0060123731,BLUE 9 SECURITY LIMITED,"11,584.08",18/02/2019
Commercial,Customer Support Group,Building Repairs & Maintenance,0010015007,WATES LIVING SPACE,350.00,14/02/2019
Commercial,Customer Support Group,Building Repairs & Maintenance,0060121776,WATES LIVING SPACE,708.00,12/02/2019
Commercial,Customer Support Group,Building Repairs & Maintenance,80023094,MODEL SIGNAGE LIMITED,338.63,08/02/2019
Commercial,Customer Support Group,Consultants Fees,0060120113,BEVAN BRITTAN LLP,"5,662.90",18/02/2019
Commercial,Customer Support Group,Consultants Fees,0060120135,BEVAN BRITTAN LLP,"11,376.03",18/02/2019
Commercial,Customer Support Group,Other Agencies - Third Party P,0060124358,THE BARNETGROUP LIMITED,"1,722,915.00",27/02/2019
Commercial,Customer Support Group,Building Repairs & Maintenance,0060122295,GUILD ARCHITECTURAL RESTORATION LTD,"38,585.67",01/02/2019
Commercial,HB LAW,Professional Services,0010015026,LONDON BOROUGH OF HARROW,"435,947.89",26/02/2019
Commercial,HB LAW,Professional Services,0010015027,LONDON BOROUGH OF HARROW,"336,450.71",26/02/2019
Commercial,HB LAW,Legal Disbursements,80023044,ANTHONY COLLINS SOLICITORS,"1,136.00",12/02/2019
Commercial,HB LAW,Legal Disbursements,80023046,ANTHONY COLLINS SOLICITORS,"1,486.50",12/02/2019
Commercial,Housing Needs Resources,Other Services,0060122345,THE BARNETGROUP LIMITED,"278,222.92",26/02/2019
Commercial,Housing Needs Resources,Private Contractors - Third Pa,0060122368,THE BARNETGROUP LIMITED,"4,969.53",05/02/2019
Commercial,Housing Needs Resources,Private Contractors - Third Pa,0060122387,THE BARNETGROUP LIMITED,"42,500.00",05/02/2019
Commercial,Housing Needs Resources,Private Contractors - Third Pa,0060122406,THE BARNETGROUP LIMITED,"8,491.38",05/02/2019
Commercial,Housing Needs Resources,Private Contractors - Third Pa,0060122410,THE BARNETGROUP LIMITED,"85,000.00",05/02/2019
Commercial,Housing Needs Resources,Private Contractors - Third Pa,0060123712,THE BARNETGROUP LIMITED,"227,327.21",20/02/2019
Commercial,Housing Needs Resources,Private Contractors - Third Pa,0060123718,THE BARNETGROUP LIMITED,"346,733.87",20/02/2019
COMMERCIAL,HOUSING REVENUE ACCOUNT,Consultants Fees,0060124769,RE (REGIONAL ENTERPRISE) LIMITED,"276,901.72",28/02/2019
COMMERCIAL,HOUSING REVENUE ACCOUNT,Consultants Fees,0060123201,ALLIES AND MORRRISON,"101,920.00",28/02/2019
COMMERCIAL,HOUSING REVENUE ACCOUNT,Other Agencies - Third Party P,0060122354,THE BARNETGROUP LIMITED,"2,260,824.67",01/02/2019
COMMERCIAL,HOUSING REVENUE ACCOUNT,Other Agencies - Third Party P,0060124379,THE BARNETGROUP LIMITED,"2,882,761.22",27/02/2019
Commercial,HRA,Consultants Fees,0060123008,HOME GROUP LTD,"700,000.00",27/02/2019
Commercial,HRA,Consultants Fees,0060123301,THE BARNETGROUP LIMITED,"13,685.45",18/02/2019
Commercial,HRA,Consultants Fees,0060124047,THE BARNETGROUP LIMITED,435.96,25/02/2019
Commercial,HRA,Consultants Fees,0060122836,THE BARNETGROUP LIMITED,"6,100.00",05/02/2019
Commercial,HRA,Consultants Fees,0060122858,THE BARNETGROUP LIMITED,544.00,05/02/2019
Commercial,HRA,Professional Services,0060123702,BOUYGUES E&S INFRASTRUCTURE UK LTD,"1,147.33",28/02/2019
Commercial,HRA,Professional Services,0060123762,BOUYGUES E&S INFRASTRUCTURE UK LTD,764.88,28/02/2019
Commercial,HRA,Consultants Fees,0060122757,PRIORITY ESTATES PROJECT LTD,"2,374.90",26/02/2019
Commercial,HRA,Consultants Fees,0060122835,THE BARNETGROUP LIMITED,"3,492.63",05/02/2019
Commercial,HRA,Building Repairs & Maintenance,0060124209,THE BARNETGROUP LIMITED,"629,166.63",26/02/2019
Commercial,HRA,Other Services,0060124260,THE BARNETGROUP LIMITED,"470,140.38",26/02/2019
Commercial,HRA,Other Services,0060122856,THE BARNETGROUP LIMITED,"953,444.00",26/02/2019
Commercial,HRA,Private Contractors - Third Pa,20042733,REDACTED - PERSONAL DATA,"2,054.40",12/02/2019
Commercial,HRA,Consultants Fees,0060123394,TMP (UK) LTD,710.00,14/02/2019
Commercial,HRA,Consultants Fees,0060114883,MICROFISH COMMUNICATIONS LTD,533.30,14/02/2019
Commercial,HRA,Consultants Fees,0060120659,MICROFISH COMMUNICATIONS LTD,"1,813.22",18/02/2019
Commercial,HRA,Equipment and Materials Purcha,0060122685,GOOD IMPRESSIONS (LONDON) LIMITED,"1,230.00",27/02/2019
Commercial,HRA,Service Charges,0060122605,BARNET HOMES LIMITED,"11,545.00",06/02/2019
Commercial,HRA,Service Charges,0060122686,BARNET HOMES LIMITED,"18,387.00",06/02/2019
Commercial,Parking & Infrastructure,Equipment and Materials Purcha,0060121356,GREENHAM TRADING LIMITED,26.18,07/02/2019
Commercial,Parking & Infrastructure,Equipment and Materials Purcha,0060121814,GREENHAM TRADING LIMITED,32.32,14/02/2019
Commercial,Parking & Infrastructure,Equipment and Materials Purcha,0060124292,W. FAYERS & SONS,291.92,22/02/2019
Commercial,Parking & Infrastructure,Equipment and Materials Purcha,0060122617,KB INDUSTRIES UK LTD,"9,136.10",27/02/2019
Commercial,Parking & Infrastructure,Building Repairs & Maintenance,0060093994,OAKRAY LIMITED,324.00,25/02/2019
Commercial,Parking & Infrastructure,Building Repairs & Maintenance,0060121331,BARNET LOCK CENTRE LTD.,152.00,12/02/2019
Commercial,Parking & Infrastructure,Building Repairs & Maintenance,0060121389,BARNET LOCK CENTRE LTD.,26.68,12/02/2019
Commercial,Parking & Infrastructure,Building Repairs & Maintenance,0060122167,BARNET LOCK CENTRE LTD.,152.56,12/02/2019
Commercial,Parking & Infrastructure,Gas,0060114650,KENT COUNTY COUNCIL (KCS),43.40,14/02/2019
Commercial,Parking & Infrastructure,Gas,0060118673,KENT COUNTY COUNCIL (KCS),40.47,13/02/2019
Commercial,Parking & Infrastructure,Gas,0060122270,KENT COUNTY COUNCIL (KCS),86.47,12/02/2019
Commercial,Parking & Infrastructure,Gas,0060122272,KENT COUNTY COUNCIL (KCS),134.67,01/02/2019
Commercial,Parking & Infrastructure,Gas,0060122359,KENT COUNTY COUNCIL (KCS),531.13,01/02/2019
Commercial,Parking & Infrastructure,Gas,0060122376,KENT COUNTY COUNCIL (KCS),490.16,04/02/2019
Commercial,Parking & Infrastructure,Gas,0060122379,KENT COUNTY COUNCIL (KCS),254.35,01/02/2019
Commercial,Parking & Infrastructure,Gas,0060122380,KENT COUNTY COUNCIL (KCS),245.45,01/02/2019
Commercial,Parking & Infrastructure,Gas,0060122403,KENT COUNTY COUNCIL (KCS),44.39,01/02/2019
Commercial,Parking & Infrastructure,Gas,0060123458,KENT COUNTY COUNCIL (KCS),18.19,20/02/2019
Commercial,Parking & Infrastructure,Electricity,0010015000,KENT COUNTY COUNCIL (KCS),195.58,12/02/2019
Commercial,Parking & Infrastructure,Electricity,0060122206,KENT COUNTY COUNCIL (KCS),137.90,12/02/2019
Commercial,Parking & Infrastructure,Electricity,0060122279,KENT COUNTY COUNCIL (KCS),97.32,04/02/2019
Commercial,Parking & Infrastructure,Electricity,0060122341,KENT COUNTY COUNCIL (KCS),154.10,05/02/2019
Commercial,Parking & Infrastructure,Electricity,0060122342,KENT COUNTY COUNCIL (KCS),204.97,05/02/2019
Commercial,Parking & Infrastructure,Electricity,0060122365,KENT COUNTY COUNCIL (KCS),160.56,04/02/2019
Commercial,Parking & Infrastructure,Electricity,0060122375,KENT COUNTY COUNCIL (KCS),25.78,04/02/2019
Commercial,Parking & Infrastructure,Electricity,0060122516,KENT COUNTY COUNCIL (KCS),"2,213.80",06/02/2019
Commercial,Parking & Infrastructure,Electricity,0060122558,KENT COUNTY COUNCIL (KCS),25.80,04/02/2019
Commercial,Parking & Infrastructure,Electricity,0060122581,KENT COUNTY COUNCIL (KCS),260.78,12/02/2019
Commercial,Parking & Infrastructure,Electricity,0060123445,KENT COUNTY COUNCIL (KCS),272.87,27/02/2019
Commercial,Parking & Infrastructure,Electricity,0060123902,KENT COUNTY COUNCIL (KCS),21.51,25/02/2019
Commercial,Parking & Infrastructure,Electricity,0060123969,KENT COUNTY COUNCIL (KCS),187.78,27/02/2019
Commercial,Parking & Infrastructure,Electricity,0060124032,KENT COUNTY COUNCIL (KCS),240.09,27/02/2019
Commercial,Parking & Infrastructure,Grounds maintenance,0060123268,IRIS GARDENING SERVICES LTD,475.00,11/02/2019
Commercial,Parking & Infrastructure,Grounds maintenance,0060124765,IRIS GARDENING SERVICES LTD,441.00,28/02/2019
Commercial,Parking & Infrastructure,Equipment and Materials Purcha,0060123378,IRIS GARDENING SERVICES LTD,"2,210.00",14/02/2019
Commercial,Parking & Infrastructure,Equipment and Materials Purcha,0060123435,IRIS GARDENING SERVICES LTD,475.00,14/02/2019
Commercial,Parking & Infrastructure,Equipment and Materials Purcha,0060123464,IRIS GARDENING SERVICES LTD,790.00,14/02/2019
Commercial,Parking & Infrastructure,Other Services,0060123812,IRIS GARDENING SERVICES LTD,705.00,20/02/2019
Commercial,Parking & Infrastructure,Other Services,0060124756,IRIS GARDENING SERVICES LTD,585.00,28/02/2019
Commercial,Parking & Infrastructure,Building Repairs & Maintenance,0010014676,HERTEL (UK) LTD,34.91,13/02/2019
Commercial,Parking & Infrastructure,Building Repairs & Maintenance,0010014897,HERTEL (UK) LTD,34.91,13/02/2019
Commercial,Parking & Infrastructure,Building Repairs & Maintenance,0010014899,HERTEL (UK) LTD,34.91,13/02/2019
Commercial,Parking & Infrastructure,Other Services,0060122230,RM COUNTRYSIDE SERVICES LTD,300.00,04/02/2019
Commercial,Parking & Infrastructure,Other Services,0060122854,RM COUNTRYSIDE SERVICES LTD,250.00,12/02/2019
Commercial,Parking & Infrastructure,Other Services,0060123266,RM COUNTRYSIDE SERVICES LTD,720.00,12/02/2019
Commercial,Parking & Infrastructure,Grounds maintenance,0060123777,BUSH WHEELER SERVICES LIMITED,"1,385.00",18/02/2019
Commercial,Parking & Infrastructure,Grounds maintenance,0060124328,BUSH WHEELER SERVICES LIMITED,600.00,21/02/2019
Commercial,Parking & Infrastructure,Equipment and Materials Purcha,0060122473,BOURNE AMENITY LTD,"1,400.00",21/02/2019
Commercial,Parking & Infrastructure,Gas,0060122719,BRITISH GAS BUSINESS,27.88,12/02/2019
Commercial,Parking & Infrastructure,Cleaning and domestic material,0060120768,CHURCHILL CONTRACT SERVICES,299.25,13/02/2019
Commercial,Parking & Infrastructure,Water Services,0060101572,AFFINITY WATER LIMITED,815.26,13/02/2019
Commercial,Parking & Infrastructure,Water Services,0060101623,AFFINITY WATER LIMITED,329.65,21/02/2019
Commercial,Parking & Infrastructure,Water Services,0060123433,AFFINITY WATER LIMITED,10.04,21/02/2019
Commercial,Parking & Infrastructure,Building Repairs & Maintenance,0010014994,WATES LIVING SPACE,307.48,08/02/2019
Commercial,Parking & Infrastructure,Building Repairs & Maintenance,0010014995,WATES LIVING SPACE,288.13,08/02/2019
Commercial,Parking & Infrastructure,Building Repairs & Maintenance,0060120642,WATES LIVING SPACE,133.60,04/02/2019
Commercial,Parking & Infrastructure,Building Repairs & Maintenance,0060121762,WATES LIVING SPACE,178.13,12/02/2019
Commercial,Parking & Infrastructure,Building Repairs & Maintenance,0060123360,WATES LIVING SPACE,178.28,28/02/2019
Commercial,Parking & Infrastructure,Water Services,0060122325,CASTLE WATER LTD,16.44,25/02/2019
Commercial,Parking & Infrastructure,Water Services,0060122336,CASTLE WATER LTD,164.38,05/02/2019
Commercial,Parking & Infrastructure,Water Services,0060123906,CASTLE WATER LTD,36.32,25/02/2019
Commercial,Parking & Infrastructure,Equipment and Materials Purcha,0060123276,EXACTRAK LTD T/A AVERY WEIGH-TRONIX,605.00,28/02/2019
Commercial,Parking & Infrastructure,Equipment and Materials Purcha,0060122187,GREENHAM TRADING LIMITED,54.30,21/02/2019
Commercial,Parking & Infrastructure,Equipment and Materials Purcha,0060122191,GREENHAM TRADING LIMITED,445.60,21/02/2019
Commercial,Parking & Infrastructure,Grounds maintenance,0060123885,ANGLIA SIGN CASTING LTD,66.25,19/02/2019
Commercial,Parking & Infrastructure,Grounds maintenance,0060122591,GLENDALE COUNTRYSIDE LTD,"18,999.46",27/02/2019
Commercial,Parking & Infrastructure,Grounds maintenance,0060122699,GLENDALE COUNTRYSIDE LTD,"2,087.33",27/02/2019
Commercial,Parking & Infrastructure,Grounds maintenance,0060122739,GLENDALE COUNTRYSIDE LTD,"6,084.48",27/02/2019
Commercial,Parking & Infrastructure,Grounds maintenance,0060109997,GRISTWOOD & TOM LTD,"8,495.50",18/02/2019
Commercial,Parking & Infrastructure,Grounds maintenance,0060123567,GRISTWOOD & TOM LTD,895.00,18/02/2019
Commercial,Parking & Infrastructure,Grounds maintenance,0060123739,GRISTWOOD & TOM LTD,"4,742.50",28/02/2019
Commercial,Parking & Infrastructure,Grounds maintenance,0060123742,GRISTWOOD & TOM LTD,"2,408.50",18/02/2019
Commercial,Parking & Infrastructure,Grounds maintenance,0060123802,GRISTWOOD & TOM LTD,"1,040.00",18/02/2019
Commercial,Parking & Infrastructure,Grounds maintenance,0060116355,CITY SUBURBAN TREE SURGEONS LTD,"27,337.50",11/02/2019
Commercial,Parking & Infrastructure,Grounds maintenance,0060110352,GLENDALE COUNTRYSIDE LTD,272.18,18/02/2019
Commercial,Parking & Infrastructure,Grounds maintenance,0060122619,GLENDALE COUNTRYSIDE LTD,20.74,27/02/2019
Commercial,Parking & Infrastructure,Grounds maintenance,0060122640,GLENDALE COUNTRYSIDE LTD,"1,217.41",27/02/2019
Commercial,Parking & Infrastructure,Grounds maintenance,0060122642,GLENDALE COUNTRYSIDE LTD,"2,956.83",27/02/2019
Commercial,Parking & Infrastructure,Grounds maintenance,0060123414,GLENDALE COUNTRYSIDE LTD,"5,202.07",28/02/2019
Commercial,Parking & Infrastructure,Grounds maintenance,0060123474,GLENDALE COUNTRYSIDE LTD,191.78,13/02/2019
Commercial,Parking & Infrastructure,Grounds maintenance,0060123676,GLENDALE COUNTRYSIDE LTD,"1,499.34",19/02/2019
Commercial,Parking & Infrastructure,Other Services,0060122889,LONDON COUNCILS,45.69,15/02/2019
Commercial,Parking & Infrastructure,Other Services,0060113258,PARKEON LIMITED,"-5,192.74",18/02/2019
Commercial,Parking & Infrastructure,Other Services,0060113517,PARKEON LIMITED,"2,094.32",18/02/2019
Commercial,Parking & Infrastructure,Other Services,0060113534,PARKEON LIMITED,810.00,18/02/2019
Commercial,Parking & Infrastructure,Other Services,0060115588,PARKEON LIMITED,"2,174.00",18/02/2019
Commercial,Parking & Infrastructure,Other Services,0060120543,PARKEON LIMITED,"2,022.64",18/02/2019
Commercial,Parking & Infrastructure,Advertising,0060123916,NEWSQUEST (LONDON) LIMITED,482.08,20/02/2019
Commercial,Parking & Infrastructure,Advertising,0060123957,NEWSQUEST (LONDON) LIMITED,817.92,20/02/2019
Commercial,Parking & Infrastructure,Other Services,0060122482,LONDON COUNCILS,"34,751.89",21/02/2019
Commercial,Parking & Infrastructure,Software Licences & Support,0060123622,NSL LTD,"1,388.37",19/02/2019
Commercial,Parking & Infrastructure,Software Licences & Support,0060123660,NSL LTD,950.91,19/02/2019
Commercial,Parking & Infrastructure,PCN - Street Contraventions,0080023435,TASK ENFORCEMENT LTD,173.00,18/02/2019
Commercial,Parking & Infrastructure,Electricity,0060122820,BARNET LIGHTING SERVICES LTD,"578,086.56",06/02/2019
Commercial,Parking & Infrastructure,Electricity,0060123460,NETWORK RAIL ACCOUNTS RECEIVABLE,69.58,14/02/2019
Commercial,Parking & Infrastructure,Fees and Charges,0060123421,INST OF LIGHTING PROFESSIONALS,190.00,28/02/2019
Commercial,Public Health,Other Establishments - Third P,0060122709,GOOD IMPRESSIONS (LONDON) LIMITED,720.00,27/02/2019
Commercial,Public Health,Other Services,0060118066,THE ROYAL BOROUGH OF GREENWICH,"10,000.00",06/02/2019
Commercial,Public Health,Other Establishments - Third P,0060122768,BLENHEIM CDP,"6,500.00",19/02/2019
Commercial,Public Health,Other Establishments - Third P,0060123479,REDACTED - PERSONAL DATA,500.00,28/02/2019
Commercial,Public Health,Training,0060124488,GOVNET COMMUNICATIONS,445.00,28/02/2019
Commercial,Public Health,Health authorities - Third Par,0060122150,CENTRAL LONDONCOMMUNITY HEALTHCARE,"384,000.00",01/02/2019
Commercial,Public Health,Health authorities - Third Par,0060122147,CENTRAL LONDONCOMMUNITY HEALTHCARE,"86,448.00",01/02/2019
Commercial,Public Health,Professional Services,0060099450,CENTRAL LONDONCOMMUNITY HEALTHCARE,"4,917.00",21/02/2019
Commercial,Public Health,Health authorities - Third Par,0060124153,THE DERWENT MEDICAL CENTRE,950.00,20/02/2019
Commercial,Public Health,Health authorities - Third Par,0060124109,OAKLODGE MEDICAL CENTRE,200.00,20/02/2019
Commercial,Public Health,Health authorities - Third Par,0060124380,WOODLANDS MEDICAL PRACTICE,75.00,21/02/2019
Commercial,Public Health,Health authorities - Third Par,0060124063,LONGROVE SURGERY,"2,600.00",20/02/2019
Commercial,Public Health,Health authorities - Third Par,0060124050,THE CLINIC,"1,750.00",20/02/2019
Commercial,Public Health,Health authorities - Third Par,0060124059,ST ANDREWS MEDICAL PRACTICE,"1,950.00",20/02/2019
Commercial,Public Health,Health authorities - Third Par,0060124046,THE PRACTICE @ 188,800.00,20/02/2019
Commercial,Public Health,Health authorities - Third Par,0060124141,EAST BARNET HEALTH CENTRE,75.00,20/02/2019
Commercial,Public Health,Health authorities - Third Par,0060124225,MOUNTFIELD SURGERY,575.00,21/02/2019
Commercial,Public Health,Health authorities - Third Par,0060124100,MULBERRY MEDICAL PRACTICE,"1,225.00",20/02/2019
Commercial,Public Health,Health authorities - Third Par,0060124053,THE OLD COURTHOUSE SURGERY,675.00,20/02/2019
Commercial,Public Health,Health authorities - Third Par,0060124110,PHGH DOCTORS,"2,225.00",20/02/2019
Commercial,Public Health,Health authorities - Third Par,0060124072,THE SPEEDWELL PRACTICE,"2,275.00",20/02/2019
Commercial,Public Health,Health authorities - Third Par,0060124118,SQUIRES LANE MEDICAL PRACTICE,450.00,20/02/2019
Commercial,Public Health,Health authorities - Third Par,0060124221,TORRINGTON PARK GROUP PRACTICE,"2,075.00",21/02/2019
Commercial,Public Health,Health authorities - Third Par,0060124127,BRUNSWICK PARK MEDICAL PRACTICE,"1,575.00",20/02/2019
Commercial,Public Health,Health authorities - Third Par,0060124104,COLNEY HATCH LANE SURGERY,100.00,20/02/2019
Commercial,Public Health,Health authorities - Third Par,0060124069,CORNWALL HOUSE SURGERY,525.00,20/02/2019
Commercial,Public Health,Health authorities - Third Par,0060124067,THE EVERGLADE MEDICAL PRACTICE,575.00,20/02/2019
Commercial,Public Health,Health authorities - Third Par,0060124065,FRIERN BARNET MEDICAL CENTRE,600.00,20/02/2019
Commercial,Public Health,Health authorities - Third Par,0060124132,GREENFIELD MEDICAL CENTRE,"1,475.00",20/02/2019
Commercial,Public Health,Health authorities - Third Par,0060124052,HEATHFIELDE MEDICAL CENTRE,"1,625.00",20/02/2019
Commercial,Public Health,Health authorities - Third Par,0060124049,HENDON WAY SURGERY,"3,025.00",20/02/2019
Commercial,Public Health,Health authorities - Third Par,0060124143,LANE END MEDICAL GROUP,"1,425.00",20/02/2019
Commercial,Public Health,Health authorities - Third Par,0060124111,LANGSTONE WAY SURGERY,775.00,20/02/2019
Commercial,Public Health,Health authorities - Third Par,0060124098,REDACTED - PERSONAL DATA,25.00,25/02/2019
Commercial,Public Health,Health authorities - Third Par,0060124124,THE PHOENIX PRACTICE,"1,450.00",20/02/2019
Commercial,Public Health,Health authorities - Third Par,0060124144,MEDICAL CENTRE,300.00,21/02/2019
Commercial,Public Health,Health authorities - Third Par,0060124117,GLOUCESTER ROAD SURGERY,250.00,21/02/2019
Commercial,Public Health,Other Local Authorities - Thir,0060121604,LEEDS CITY COUNCIL,134.00,04/02/2019
Commercial,Public Health,Other Local Authorities - Thir,0060123186,LEEDS CITY COUNCIL,134.00,18/02/2019
Commercial,Public Health,Other Local Authorities - Thir,0060123408,LEEDS CITY COUNCIL,134.00,18/02/2019
Commercial,Public Health,Health authorities - Third Par,0060122400,CENTRAL LONDONCOMMUNITY HEALTHCARE,"2,343.00",04/02/2019
Commercial,Public Health,Health authorities - Third Par,0060121021,CENTRAL & NORTH WEST LONDON NHS FT,"11,500.00",28/02/2019
Commercial,Public Health,Health authorities - Third Par,0060121893,CENTRAL & NORTH WEST LONDON NHS FT,103.90,15/02/2019
Commercial,Public Health,Health authorities - Third Par,0060121939,CENTRAL & NORTH WEST LONDON NHS FT,"166,800.63",15/02/2019
Commercial,Public Health,Health authorities - Third Par,0060122238,CENTRAL & NORTH WEST LONDON NHS FT,"1,596.48",15/02/2019
Commercial,Public Health,Health authorities - Third Par,0060123346,CENTRAL & NORTH WEST LONDON NHS FT,73.88,28/02/2019
Commercial,Public Health,Health authorities - Third Par,0060123355,CENTRAL & NORTH WEST LONDON NHS FT,173.51,28/02/2019
Commercial,Public Health,Health authorities - Third Par,0060123870,CENTRAL & NORTH WEST LONDON NHS FT,"11,500.00",28/02/2019
Commercial,Public Health,Health authorities - Third Par,0060124614,CENTRAL & NORTH WEST LONDON NHS FT,"50,000.00",28/02/2019
Commercial,Public Health,Health authorities - Third Par,0060122944,NOTTINGHAM UNIVERSITY HOSPITALS TRUST,215.86,14/02/2019
Commercial,Public Health,Health authorities - Third Par,0060122979,NOTTINGHAM UNIVERSITY HOSPITALS TRUST,384.66,14/02/2019
Commercial,Public Health,Health authorities - Third Par,0060123014,NOTTINGHAM UNIVERSITY HOSPITALS TRUST,59.88,14/02/2019
Commercial,Public Health,Health authorities - Third Par,0060124024,OXFORD UNIVERSITY HOSPITALS NHS FOUNDATI,468.00,21/02/2019
Commercial,Public Health,Health authorities - Third Par,0060122466,UNIVERSITY HOSPITALS BIRMINGHAM,140.00,20/02/2019
Commercial,Public Health,Health authorities - Third Par,0010014976,CHELSEA & WESTMINSTER HOSPITAL NHS,"13,994.43",13/02/2019
Commercial,Public Health,Health authorities - Third Par,0010014978,CHELSEA & WESTMINSTER HOSPITAL NHS,"-13,994.43",13/02/2019
Commercial,Public Health,Health authorities - Third Par,0060123285,CHELSEA & WESTMINSTER HOSPITAL NHS,86.44,13/02/2019
Commercial,Public Health,Health authorities - Third Par,0060123322,CHELSEA & WESTMINSTER HOSPITAL NHS,567.34,13/02/2019
Commercial,Public Health,Health authorities - Third Par,0060123343,CHELSEA & WESTMINSTER HOSPITAL NHS,"41,528.71",13/02/2019
Commercial,Public Health,Health authorities - Third Par,0060123684,CHELSEA & WESTMINSTER HOSPITAL NHS,"41,528.71",18/02/2019
Commercial,Public Health,Health authorities - Third Par,0060123715,CHELSEA & WESTMINSTER HOSPITAL NHS,95.70,18/02/2019
Commercial,Public Health,Health authorities - Third Par,0060123759,CHELSEA & WESTMINSTER HOSPITAL NHS,"5,108.81",18/02/2019
Commercial,Public Health,Health authorities - Third Par,0060123785,CHELSEA & WESTMINSTER HOSPITAL NHS,"30,258.07",18/02/2019
Commercial,Public Health,Health authorities - Third Par,0060123816,CHELSEA & WESTMINSTER HOSPITAL NHS,"52,799.35",18/02/2019
Commercial,Public Health,Health authorities - Third Par,0060122181,GUY'S AND ST THOMAS' NHS FT,"4,498.31",27/02/2019
Commercial,Public Health,Health authorities - Third Par,0060122433,COVENTRY & WARWICKSHIRE PARTNERSHIP,246.75,20/02/2019
Commercial,Public Health,Health authorities - Third Par,0060122494,COVENTRY & WARWICKSHIRE PARTNERSHIP,108.61,20/02/2019
Commercial,Public Health,Health authorities - Third Par,0060123125,BARTS HEALTH NHS TRUST,"3,081.43",11/02/2019
Commercial,Public Health,Health authorities - Third Par,0060123287,BARTS HEALTH NHS TRUST,"2,763.19",21/02/2019
Commercial,Public Health,Health authorities - Third Par,0060122247,WESTERN SUSSEX HOSPITALS NHS FT,125.65,21/02/2019
Commercial,Public Health,Health authorities - Third Par,0060120580,CAMBRIDGESHIRE COMMUNITY SERVICES,379.00,08/02/2019
Commercial,Public Health,Health authorities - Third Par,0010015033,LUTON AND DUNSTABLE U H,457.56,27/02/2019
Commercial,Public Health,Health authorities - Third Par,0060124701,LUTON AND DUNSTABLE U H,119.99,27/02/2019
Commercial,Public Health,Health authorities - Third Par,0060123132,LEWISHAM AND GREENWICH NHS TRUST,7.30,20/02/2019
Commercial,Public Health,Health authorities - Third Par,0060118940,THE ROYAL BOURNEMOUTH AND CHRISTCHURCH H,140.68,13/02/2019
Commercial,Public Health,Health authorities - Third Par,0060122067,ADDINGTON MEDICAL CENTRE,310.00,04/02/2019
Commercial,Public Health,Health authorities - Third Par,0060122027,COLNEY HATCH LANE SURGERY,200.00,04/02/2019
Commercial,Public Health,Health authorities - Third Par,0060122012,COLINDALE MEDICAL CENTRE,760.00,04/02/2019
Commercial,Public Health,Health authorities - Third Par,0060123701,COLINDALE MEDICAL CENTRE,560.00,18/02/2019
Commercial,Public Health,Health authorities - Third Par,0060121965,MEDICAL CENTRE,30.00,04/02/2019
Commercial,Regional Enterprise,Legal and Court Fees,80023306,STATE STREET BANK & TRUST COM.,"16,362.42",14/02/2019
Commercial,Regional Enterprise,Legal and Court Fees,80023758,SWIMMING NATURE UK LIMITED,"20,000.00",27/02/2019
Commercial,Regional Enterprise,Other Services,0060122599,THAMES WATER UTILITIES LIMITED,81.69,06/02/2019
Commercial,Regional Enterprise,Other Services,0060122611,THAMES WATER UTILITIES LIMITED,105.61,06/02/2019
Commercial,Regional Enterprise,Other Services,0060122613,THAMES WATER UTILITIES LIMITED,107.30,06/02/2019
Commercial,Regional Enterprise,Other Services,0060122624,THAMES WATER UTILITIES LIMITED,111.96,06/02/2019
Commercial,Regional Enterprise,Other Services,0060122666,THAMES WATER UTILITIES LIMITED,102.27,22/02/2019
Commercial,Regional Enterprise,Other Services,0060084576,KENT COUNTY COUNCIL (KCS),51.90,14/02/2019
Commercial,Regional Enterprise,Other Services,0060084598,KENT COUNTY COUNCIL (KCS),40.44,14/02/2019
Commercial,Regional Enterprise,Other Services,0060119251,KENT COUNTY COUNCIL (KCS),22.88,14/02/2019
Commercial,Regional Enterprise,Other Services,0060121884,KENT COUNTY COUNCIL (KCS),13.20,14/02/2019
Commercial,Regional Enterprise,Other Services,0060123883,KENT COUNTY COUNCIL (KCS),47.07,27/02/2019
Commercial,Regional Enterprise,Other Services,0060046954,AFFINITY WATER LIMITED,-26.38,28/02/2019
Commercial,Regional Enterprise,Other Services,0060094984,AFFINITY WATER LIMITED,86.72,28/02/2019
Commercial,Regional Enterprise,Other Services,0060106575,AFFINITY WATER LIMITED,25.30,04/02/2019
Commercial,Regional Enterprise,Other Services,0060117797,AFFINITY WATER LIMITED,42.94,20/02/2019
Commercial,Regional Enterprise,Other Services,0060122681,AFFINITY WATER LIMITED,46.14,06/02/2019
Commercial,Regional Enterprise,Other Services,0060124267,AFFINITY WATER LIMITED,42.19,28/02/2019
Commercial,Regional Enterprise,Other Services,0010015019,CASTLE WATER LTD,10.93,26/02/2019
Commercial,Regional Enterprise,Other Services,0060122658,CASTLE WATER LTD,29.39,13/02/2019
Commercial,Regional Enterprise,Other Services,0060122659,CASTLE WATER LTD,14.45,13/02/2019
Commercial,Regional Enterprise,Other Services,0060122717,CASTLE WATER LTD,37.97,13/02/2019
Commercial,Regional Enterprise,Other Services,0060122747,CASTLE WATER LTD,41.84,13/02/2019
Commercial,Regional Enterprise,Other Services,0060124417,CASTLE WATER LTD,32.20,25/02/2019
Commercial,Regional Enterprise,Advertising,0060111604,TMP (UK) LTD,180.00,14/02/2019
Commercial,Regional Enterprise,Advertising,0060115995,TMP (UK) LTD,260.00,14/02/2019
Commercial,Regional Enterprise,Advertising,0060116006,TMP (UK) LTD,260.00,14/02/2019
Commercial,Regional Enterprise,Advertising,0060116010,TMP (UK) LTD,260.00,14/02/2019
Commercial,Regional Enterprise,Advertising,0060116017,TMP (UK) LTD,260.00,14/02/2019
Commercial,Regional Enterprise,Advertising,0060116032,TMP (UK) LTD,260.00,14/02/2019
Commercial,Regional Enterprise,Advertising,0060120859,TMP (UK) LTD,179.00,14/02/2019
Commercial,Regional Enterprise,Advertising,0060120884,TMP (UK) LTD,170.00,14/02/2019
Commercial,Regional Enterprise,Advertising,0060120917,TMP (UK) LTD,170.00,14/02/2019
Commercial,Regional Enterprise,Advertising,0060121379,TMP (UK) LTD,260.00,25/02/2019
Commercial,Regional Enterprise,Advertising,0060121438,TMP (UK) LTD,260.00,25/02/2019
Commercial,Regional Enterprise,Advertising,0060121513,TMP (UK) LTD,260.00,25/02/2019
Commercial,Regional Enterprise,Advertising,0060121783,TMP (UK) LTD,170.00,01/02/2019
Commercial,Regional Enterprise,Advertising,0060121796,TMP (UK) LTD,108.00,14/02/2019
Commercial,Regional Enterprise,Advertising,0060121831,TMP (UK) LTD,90.00,14/02/2019
Commercial,Regional Enterprise,Advertising,0060122507,TMP (UK) LTD,170.00,05/02/2019
Commercial,Regional Enterprise,Advertising,0060122511,TMP (UK) LTD,99.00,05/02/2019
Commercial,Regional Enterprise,Advertising,0060122522,TMP (UK) LTD,90.00,15/02/2019
Commercial,Regional Enterprise,Advertising,0060122524,TMP (UK) LTD,90.00,15/02/2019
Commercial,Regional Enterprise,Advertising,0060122526,TMP (UK) LTD,179.00,05/02/2019
Commercial,Regional Enterprise,Advertising,0060122533,TMP (UK) LTD,170.00,15/02/2019
Commercial,Regional Enterprise,Advertising,0060122545,TMP (UK) LTD,170.00,15/02/2019
Commercial,Regional Enterprise,Advertising,0060122548,TMP (UK) LTD,215.00,14/02/2019
Commercial,Regional Enterprise,Advertising,0060122554,TMP (UK) LTD,170.00,15/02/2019
Commercial,Regional Enterprise,Advertising,0060122555,TMP (UK) LTD,126.00,14/02/2019
Commercial,Regional Enterprise,Advertising,0060122556,TMP (UK) LTD,90.00,18/02/2019
Commercial,Regional Enterprise,Advertising,0060122563,TMP (UK) LTD,90.00,05/02/2019
Commercial,Regional Enterprise,Advertising,0060122565,TMP (UK) LTD,179.00,05/02/2019
Commercial,Regional Enterprise,Advertising,0060122572,TMP (UK) LTD,170.00,15/02/2019
Commercial,Regional Enterprise,Advertising,0060122575,TMP (UK) LTD,170.00,01/02/2019
Commercial,Regional Enterprise,Advertising,0060122585,TMP (UK) LTD,90.00,15/02/2019
Commercial,Regional Enterprise,Advertising,0060122588,TMP (UK) LTD,99.00,05/02/2019
Commercial,Regional Enterprise,Advertising,0060122612,TMP (UK) LTD,188.00,14/02/2019
Commercial,Regional Enterprise,Advertising,0060122626,TMP (UK) LTD,170.00,14/02/2019
Commercial,Regional Enterprise,Advertising,0060122732,TMP (UK) LTD,90.00,14/02/2019
Commercial,Regional Enterprise,Advertising,0060122744,TMP (UK) LTD,197.00,14/02/2019
Commercial,Regional Enterprise,Advertising,0060122754,TMP (UK) LTD,170.00,14/02/2019
Commercial,Regional Enterprise,Advertising,0060122898,TMP (UK) LTD,170.00,20/02/2019
Commercial,Regional Enterprise,Advertising,0060122954,TMP (UK) LTD,90.00,20/02/2019
Commercial,Regional Enterprise,Advertising,0060122970,TMP (UK) LTD,90.00,19/02/2019
Commercial,Regional Enterprise,Advertising,0060123001,TMP (UK) LTD,170.00,19/02/2019
Commercial,Regional Enterprise,Advertising,0060123013,TMP (UK) LTD,108.00,19/02/2019
Commercial,Regional Enterprise,Advertising,0060123016,TMP (UK) LTD,179.00,19/02/2019
Commercial,Regional Enterprise,Advertising,0060123017,TMP (UK) LTD,90.00,19/02/2019
Commercial,Regional Enterprise,Other Services,0060122726,TMP (UK) LTD,170.00,14/02/2019
Commercial,Regional Enterprise,Other Services,0060122975,TMP (UK) LTD,90.00,19/02/2019
Commercial,Regional Enterprise,Other Services,0060122674,CONWAY AECOM LTD,582.84,04/02/2019
Commercial,Regional Enterprise,Other Services,0060122882,RM COUNTRYSIDE SERVICES LTD,270.00,06/02/2019
Commercial,Regional Enterprise,Other Services,0060124456,RM COUNTRYSIDE SERVICES LTD,250.00,27/02/2019
Commercial,Regional Enterprise,Equipment and Materials Purcha,0060124450,RM COUNTRYSIDE SERVICES LTD,297.00,27/02/2019
Commercial,Regional Enterprise,Other Services,0060122602,RM COUNTRYSIDE SERVICES LTD,850.00,04/02/2019
Commercial,Regional Enterprise,Other Services,0060122920,CONWAY AECOM LTD,630.00,06/02/2019
Commercial,Regional Enterprise,Other Services,0060123273,CONWAY AECOM LTD,508.20,14/02/2019
Commercial,Regional Enterprise,Other Services,0060123292,CONWAY AECOM LTD,680.40,12/02/2019
Commercial,Regional Enterprise,Other Services,0060123298,CONWAY AECOM LTD,302.40,12/02/2019
Commercial,Regional Enterprise,Other Services,0060123309,CONWAY AECOM LTD,705.60,12/02/2019
Commercial,Regional Enterprise,Other Services,0060123317,CONWAY AECOM LTD,241.50,14/02/2019
Commercial,Regional Enterprise,Other Services,0060123332,CONWAY AECOM LTD,441.00,12/02/2019
Commercial,Regional Enterprise,Other Services,0060123337,CONWAY AECOM LTD,850.50,12/02/2019
Commercial,Regional Enterprise,Other Services,0060123338,CONWAY AECOM LTD,327.60,12/02/2019
Commercial,Regional Enterprise,Other Services,0060123339,CONWAY AECOM LTD,882.00,12/02/2019
Commercial,Regional Enterprise,Professional Services,0060096766,LONDON BOROUGH OF ENFIELD,100.00,04/02/2019
Commercial,Regional Enterprise,Professional Services,0060096777,LONDON BOROUGH OF ENFIELD,100.00,01/02/2019
Commercial,Regional Enterprise,Professional Services,0060124246,LONDON BOROUGH OF WALTHAM FOREST,100.00,25/02/2019
Commercial,Regional Enterprise,Professional Services,0060117305,WATES LIVING SPACE,131.17,05/02/2019
Commercial,Regional Enterprise,Professional Services,0060117736,WATES LIVING SPACE,126.94,05/02/2019
Commercial,Regional Enterprise,Professional Services,0060119450,WATES LIVING SPACE,131.17,04/02/2019
Commercial,Regional Enterprise,Professional Services,0060122978,WATES LIVING SPACE,"1,211.16",07/02/2019
Commercial,Regional Enterprise,Professional Services,0060122988,WATES LIVING SPACE,41.85,07/02/2019
Commercial,Regional Enterprise,Professional Services,0060122989,WATES LIVING SPACE,27.29,07/02/2019
Commercial,Regional Enterprise,Professional Services,0060123006,WATES LIVING SPACE,772.42,07/02/2019
Commercial,Regional Enterprise,Professional Services,0060123687,WATES LIVING SPACE,28.20,26/02/2019
Commercial,Regional Enterprise,Professional Services,0060123778,WATES LIVING SPACE,31.00,26/02/2019
Commercial,Regional Enterprise,Professional Services,0060123789,WATES LIVING SPACE,28.20,26/02/2019
Commercial,Regional Enterprise,Advertising,0060121818,TMP (UK) LTD,583.50,01/02/2019
Commercial,Regional Enterprise,Advertising,0060122541,TMP (UK) LTD,296.00,04/02/2019
Commercial,Regional Enterprise,Advertising,0060122928,TMP (UK) LTD,287.00,19/02/2019
Commercial,Regional Enterprise,Advertising,0060123209,TMP (UK) LTD,251.00,19/02/2019
Commercial,Regional Enterprise,Other Services,0060122903,RM COUNTRYSIDE SERVICES LTD,"1,944.00",06/02/2019
Commercial,Regional Enterprise,Other Services,0060122908,RM COUNTRYSIDE SERVICES LTD,"1,005.75",07/02/2019
Commercial,Regional Enterprise,Postage,0060096583,ROYAL MAIL GROUP LIMITED,73.83,28/02/2019
Commercial,Regional Enterprise,Postage,0060123652,ROYAL MAIL GROUP LIMITED,119.52,19/02/2019
Commercial,Regional Enterprise,Postage,0060123688,ROYAL MAIL GROUP LIMITED,161.76,19/02/2019
Commercial,Regional Enterprise,Postage,0060123736,ROYAL MAIL GROUP LIMITED,97.44,19/02/2019
Commercial,Regional Enterprise,Postage,0060123754,ROYAL MAIL GROUP LIMITED,10.08,19/02/2019
Commercial,Regional Enterprise,Postage,0060123800,ROYAL MAIL GROUP LIMITED,54.00,19/02/2019
Commercial,Regional Enterprise,Postage,0060123810,ROYAL MAIL GROUP LIMITED,1.92,20/02/2019
Commercial,Regional Enterprise,Postage,0060123817,ROYAL MAIL GROUP LIMITED,55.35,20/02/2019
Commercial,Regional Enterprise,Postage,0060123834,ROYAL MAIL GROUP LIMITED,12.60,19/02/2019
Commercial,Regional Enterprise,Postage,0060123858,ROYAL MAIL GROUP LIMITED,37.92,20/02/2019
Commercial,Regional Enterprise,Professional Services,0060111858,PUBLIC ANALYST SCIENTIFIC SERVS. LT,175.00,11/02/2019
Commercial,Regional Enterprise,Professional Services,0060117828,PUBLIC ANALYST SCIENTIFIC SERVS. LT,645.00,05/02/2019
Commercial,Regional Enterprise,Professional Services,0060119964,PUBLIC ANALYST SCIENTIFIC SERVS. LT,600.00,19/02/2019
Commercial,Regional Enterprise,Professional Services,0060121832,PUBLIC ANALYST SCIENTIFIC SERVS. LT,240.00,19/02/2019
Commercial,Regional Enterprise,Other Services,0060122634,RM COUNTRYSIDE SERVICES LTD,"1,904.00",04/02/2019
Commercial,Regional Enterprise,Other Services,0060123102,RM COUNTRYSIDE SERVICES LTD,195.00,11/02/2019
Commercial,Regional Enterprise,Other Services,0060123242,RM COUNTRYSIDE SERVICES LTD,"1,370.00",11/02/2019
Commercial,Regional Enterprise,Other Services,0060123254,RM COUNTRYSIDE SERVICES LTD,460.00,11/02/2019
Commercial,Regional Enterprise,Other Services,0010014985,CONWAY AECOM LTD,"364,152.50",01/02/2019
Commercial,Regional Enterprise,Other Services,0060122827,CONWAY AECOM LTD,49.86,05/02/2019
Commercial,Regional Enterprise,Other Services,0060122874,CONWAY AECOM LTD,116.55,06/02/2019
Commercial,Regional Enterprise,Other Services,0060122936,CONWAY AECOM LTD,668.45,07/02/2019
Commercial,Regional Enterprise,Other Services,0060123143,CONWAY AECOM LTD,55.13,21/02/2019
Commercial,Regional Enterprise,Other Services,0060123144,CONWAY AECOM LTD,132.30,21/02/2019
Commercial,Regional Enterprise,Other Services,0060123177,CONWAY AECOM LTD,182.70,21/02/2019
Commercial,Regional Enterprise,Other Services,0060123188,CONWAY AECOM LTD,504.00,21/02/2019
Commercial,Regional Enterprise,Other Services,0060123226,CONWAY AECOM LTD,151.20,21/02/2019
Commercial,Regional Enterprise,Other Services,0060123246,CONWAY AECOM LTD,847.21,20/02/2019
Commercial,Regional Enterprise,Other Services,0060123259,CONWAY AECOM LTD,220.50,21/02/2019
Commercial,Regional Enterprise,Other Services,0060124294,CONWAY AECOM LTD,913.50,28/02/2019
Commercial,Regional Enterprise,Other Services,0060124389,CONWAY AECOM LTD,44.87,21/02/2019
Commercial,Regional Enterprise,Other Services,0060122897,CONWAY AECOM LTD,"1,058.40",06/02/2019
Commercial,Regional Enterprise,Other Services,0060123109,CONWAY AECOM LTD,693.00,21/02/2019
Commercial,Regional Enterprise,Other Services,0060123111,CONWAY AECOM LTD,403.20,21/02/2019
Commercial,Regional Enterprise,Other Services,0060123124,CONWAY AECOM LTD,"2,593.50",12/02/2019
Commercial,Regional Enterprise,Other Services,0060123135,CONWAY AECOM LTD,"1,302.00",12/02/2019
Commercial,Regional Enterprise,Other Services,0060123136,CONWAY AECOM LTD,"1,058.40",21/02/2019
Commercial,Regional Enterprise,Other Services,0060123149,CONWAY AECOM LTD,525.00,21/02/2019
Commercial,Regional Enterprise,Other Services,0060123158,CONWAY AECOM LTD,"1,587.60",12/02/2019
Commercial,Regional Enterprise,Other Services,0060123161,CONWAY AECOM LTD,"1,207.50",21/02/2019
Commercial,Regional Enterprise,Other Services,0060123166,CONWAY AECOM LTD,945.00,21/02/2019
Commercial,Regional Enterprise,Other Services,0060123192,CONWAY AECOM LTD,"1,730.40",21/02/2019
Commercial,Regional Enterprise,Other Services,0060123194,CONWAY AECOM LTD,982.80,21/02/2019
Commercial,Regional Enterprise,Other Services,0060123203,CONWAY AECOM LTD,982.80,12/02/2019
Commercial,Regional Enterprise,Other Services,0060123204,CONWAY AECOM LTD,642.60,21/02/2019
Commercial,Regional Enterprise,Other Services,0060123210,CONWAY AECOM LTD,"1,625.40",21/02/2019
Commercial,Regional Enterprise,Other Services,0060123214,CONWAY AECOM LTD,"1,296.75",12/02/2019
Commercial,Regional Enterprise,Other Services,0060123218,CONWAY AECOM LTD,907.20,21/02/2019
Commercial,Regional Enterprise,Other Services,0060123221,CONWAY AECOM LTD,"1,323.00",21/02/2019
Commercial,Regional Enterprise,Other Services,0060123227,CONWAY AECOM LTD,819.00,12/02/2019
Commercial,Regional Enterprise,Other Services,0060123244,CONWAY AECOM LTD,926.10,21/02/2019
Commercial,Regional Enterprise,Other Services,0060123245,CONWAY AECOM LTD,907.20,21/02/2019
Commercial,Regional Enterprise,Other Services,0060123247,CONWAY AECOM LTD,"1,146.60",21/02/2019
Commercial,Regional Enterprise,Other Services,0060123257,CONWAY AECOM LTD,756.00,21/02/2019
Commercial,Regional Enterprise,Other Services,0060123305,CONWAY AECOM LTD,850.50,12/02/2019
Commercial,Regional Enterprise,Other Services,0060124165,CONWAY AECOM LTD,"2,429.70",28/02/2019
Commercial,Regional Enterprise,Other Services,0060124184,CONWAY AECOM LTD,264.60,28/02/2019
Commercial,Regional Enterprise,Other Services,0060124241,CONWAY AECOM LTD,667.80,28/02/2019
Commercial,Regional Enterprise,Other Services,0060124311,CONWAY AECOM LTD,"1,433.25",28/02/2019
Commercial,Regional Enterprise,Grant Payments,80023622,REDACTED - PERSONAL DATA,470.00,25/02/2019
Commercial,Regional Enterprise,Consultants Fees,0060122343,CBRE INDIRECT INVESTMENT SERVS. LTD,"30,000.00",06/02/2019
Commercial,Regional Enterprise,Professional Services,0060120798,RE (REGIONAL ENTERPRISE) LIMITED,"106,259.43",22/02/2019
Commercial,Regional Enterprise,Consultants Fees,0060123393,GOWLING WLG,"11,018.00",13/02/2019
Commercial,Regional Enterprise,Consultants Fees,0060123457,GOWLING WLG,"3,843.96",25/02/2019
Commercial,Regional Enterprise,Consultants Fees,0060124134,GOWLING WLG,860.20,20/02/2019
Commercial,Regional Enterprise,Consultants Fees,0060124381,GOWLING WLG,"1,155.00",21/02/2019
Commercial,Regional Enterprise,Consultants Fees,0060123533,EVERSHEDS LLP,"2,800.00",27/02/2019
Commercial,Regional Enterprise,Consultants Fees,0060122413,CBRE INDIRECT INVESTMENT SERVS. LTD,"10,000.00",06/02/2019
Commercial,Regional Enterprise,Professional Services,0060120823,RE (REGIONAL ENTERPRISE) LIMITED,"70,997.97",22/02/2019
Commercial,Regional Enterprise,Consultants Fees,0060123363,GOWLING WLG,"4,241.38",13/02/2019
Commercial,Regional Enterprise,Consultants Fees,0060123476,GOWLING WLG,"4,066.12",13/02/2019
Commercial,Regional Enterprise,Training,0060122848,METROPOLITAN HOUSING TRUST,"95,000.00",06/02/2019
Commercial,Regional Enterprise,Consultants Fees,0060123278,RE (REGIONAL ENTERPRISE) LIMITED,"49,725.64",25/02/2019
Commercial,Regional Enterprise,Professional Services,0060111350,RE (REGIONAL ENTERPRISE) LIMITED,"-43,284.64",21/02/2019
Commercial,Regional Enterprise,Professional Services,0060121032,RE (REGIONAL ENTERPRISE) LIMITED,"1,369.73",21/02/2019
Commercial,Regional Enterprise,Professional Services,0060121391,RE (REGIONAL ENTERPRISE) LIMITED,"3,156.48",21/02/2019
Commercial,Regional Enterprise,Professional Services,0060120968,RE (REGIONAL ENTERPRISE) LIMITED,737.40,21/02/2019
Commercial,Regional Enterprise,Professional Services,0060120970,RE (REGIONAL ENTERPRISE) LIMITED,"4,424.40",21/02/2019
Commercial,Regional Enterprise,Professional Services,0060121321,RE (REGIONAL ENTERPRISE) LIMITED,"1,351.90",21/02/2019
Commercial,Regional Enterprise,Professional Services,0060121410,RE (REGIONAL ENTERPRISE) LIMITED,"3,932.80",21/02/2019
Commercial,Regional Enterprise,Professional Services,0060122231,RE (REGIONAL ENTERPRISE) LIMITED,844.70,21/02/2019
Commercial,Regional Enterprise,Professional Services,0060122248,RE (REGIONAL ENTERPRISE) LIMITED,844.70,21/02/2019
Commercial,Regional Enterprise,Professional Services,0060122316,RE (REGIONAL ENTERPRISE) LIMITED,482.68,21/02/2019
Commercial,Regional Enterprise,Other Services,80021004,DUCIMUS @ LIMITED,191.55,04/02/2019
Commercial,Regional Enterprise,Cleaning and domestic material,0060121775,CHURCHILL CONTRACT SERVICES,293.14,14/02/2019
COMMERCIAL,REGIONAL ENTERPRISE,Advertising,0060123240,TMP (UK) LTD,287.00,19/02/2019
COMMERCIAL,REGIONAL ENTERPRISE,Other Services,0060124385,TRAFFIC SURVEY PARTNERS (TSP) LTD,880.00,22/02/2019
COMMERCIAL,REGIONAL ENTERPRISE,Advertising,0060115217,TMP (UK) LTD,206.00,05/02/2019
COMMERCIAL,REGIONAL ENTERPRISE,Advertising,0060115560,TMP (UK) LTD,126.00,05/02/2019
COMMERCIAL,REGIONAL ENTERPRISE,Other Services,0060122929,CONWAY AECOM LTD,"4,624.21",07/02/2019
COMMERCIAL,REGIONAL ENTERPRISE,Other Services,0060124513,RM COUNTRYSIDE SERVICES LTD,998.00,27/02/2019
COMMERCIAL,REGIONAL ENTERPRISE,Equipment and Materials Purcha,0060124671,BOUYGUES E&S INFRASTRUCTURE UK LTD,"39,351.60",28/02/2019
Commercial,Regional Enterprise,Other Services,0060115724,LONDON BOROUGH OF HAMMERSMITH & FUL,"1,394.00",19/02/2019
COMMERCIAL,REGIONAL ENTERPRISE,Other Services,0010014984,CONWAY AECOM LTD,"575,000.00",01/02/2019
COMMERCIAL,REGIONAL ENTERPRISE,Other Services,0060122638,UK POWER NETWORKS,"2,007.60",20/02/2019
COMMERCIAL,REGIONAL ENTERPRISE,Other Services,0060123142,BARNET HILL ACADEMY,870.00,15/02/2019
COMMERCIAL,REGIONAL ENTERPRISE,Other Services,0060123153,THE HYDE EF ACADEMY,"1,500.00",15/02/2019
COMMERCIAL,REGIONAL ENTERPRISE,Other Services,0060122329,BRITISH CYCLING,800.00,21/02/2019
COMMERCIAL,REGIONAL ENTERPRISE,Other Services,0060121246,KELTIC CLOTHING,195.15,07/02/2019
COMMERCIAL,REGIONAL ENTERPRISE,Advertising,0060122503,TMP (UK) LTD,583.50,01/02/2019
COMMERCIAL,REGIONAL ENTERPRISE,Other Services,0060122713,CONWAY AECOM LTD,272.58,04/02/2019
COMMERCIAL,REGIONAL ENTERPRISE,Other Services,0060122775,CONWAY AECOM LTD,83.91,06/02/2019
COMMERCIAL,REGIONAL ENTERPRISE,Other Services,0060122793,CONWAY AECOM LTD,95.10,05/02/2019
COMMERCIAL,REGIONAL ENTERPRISE,Other Services,0060122798,CONWAY AECOM LTD,50.91,05/02/2019
COMMERCIAL,REGIONAL ENTERPRISE,Other Services,0060122831,CONWAY AECOM LTD,83.91,05/02/2019
COMMERCIAL,REGIONAL ENTERPRISE,Other Services,0060122833,CONWAY AECOM LTD,95.10,05/02/2019
COMMERCIAL,REGIONAL ENTERPRISE,Other Services,0060122834,CONWAY AECOM LTD,83.91,05/02/2019
COMMERCIAL,REGIONAL ENTERPRISE,Other Services,0060122841,CONWAY AECOM LTD,164.06,05/02/2019
COMMERCIAL,REGIONAL ENTERPRISE,Other Services,0060122857,CONWAY AECOM LTD,164.06,05/02/2019
COMMERCIAL,REGIONAL ENTERPRISE,Other Services,0060122860,CONWAY AECOM LTD,83.91,05/02/2019
COMMERCIAL,REGIONAL ENTERPRISE,Other Services,0060122861,CONWAY AECOM LTD,95.10,05/02/2019
COMMERCIAL,REGIONAL ENTERPRISE,Capital Construction and Works,0060124285,CONWAY AECOM LTD,178.84,28/02/2019
COMMERCIAL,REGIONAL ENTERPRISE,Other Services,0060122285,CONWAY AECOM LTD,657.40,19/02/2019
COMMERCIAL,REGIONAL ENTERPRISE,Other Services,0060122297,CONWAY AECOM LTD,"11,636.45",06/02/2019
COMMERCIAL,REGIONAL ENTERPRISE,Other Services,0060123002,TRAFFIC SURVEY PARTNERS (TSP) LTD,600.00,14/02/2019
COMMERCIAL,REGIONAL ENTERPRISE,Other Services,0060124344,BOUYGUES E&S INFRASTRUCTURE UK LTD,289.48,28/02/2019
COMMERCIAL,REGIONAL ENTERPRISE,Other Services,0060124280,INTELLIGENT DATA COLLECTION,860.00,21/02/2019
COMMERCIAL,REGIONAL ENTERPRISE,Other Services,0060123022,LONDON BUSES SERVICES LIMITED,619.76,19/02/2019
COMMERCIAL,REGIONAL ENTERPRISE,Other Services,0060123104,LONDON BUSES SERVICES LIMITED,723.29,19/02/2019
COMMERCIAL,REGIONAL ENTERPRISE,Other Services,0060122863,CONWAY AECOM LTD,"42,883.20",21/02/2019
COMMERCIAL,REGIONAL ENTERPRISE,Other Services,0060122902,CONWAY AECOM LTD,"21,761.25",21/02/2019
COMMERCIAL,REGIONAL ENTERPRISE,Other Services,0060122906,CONWAY AECOM LTD,"31,059.60",21/02/2019
COMMERCIAL,REGIONAL ENTERPRISE,Other Services,0060122910,CONWAY AECOM LTD,"45,978.60",21/02/2019
COMMERCIAL,REGIONAL ENTERPRISE,Other Services,0060122922,CONWAY AECOM LTD,"43,279.65",21/02/2019
COMMERCIAL,REGIONAL ENTERPRISE,Other Services,0060123119,CONWAY AECOM LTD,"22,916.40",21/02/2019
COMMERCIAL,REGIONAL ENTERPRISE,Professional Services,0060122385,BLAKEDOWN LANDSCAPE (SE) LTD,"187,752.52",04/02/2019
COMMERCIAL,REGIONAL ENTERPRISE,Consultants Fees,0060115399,NETWORK RAIL INFRASTRUCTURE LTD,"87,518.14",01/02/2019
COMMERCIAL,REGIONAL ENTERPRISE,Consultants Fees,0060120168,NETWORK RAIL INFRASTRUCTURE LTD,"117,639.37",01/02/2019
COMMERCIAL,REGIONAL ENTERPRISE,Consultants Fees,0080023170,NETWORK RAIL ACCOUNTS RECEIVABLE,"85,094.45",12/02/2019
COMMERCIAL,REGIONAL ENTERPRISE,Equipment and Materials Purcha,0060123776,UK POWER NETWORKS,"8,021.28",18/02/2019
COMMERCIAL,REGIONAL ENTERPRISE,Professional Services,0060120817,RE (REGIONAL ENTERPRISE) LIMITED,"115,725.76",21/02/2019
COMMERCIAL,REGIONAL ENTERPRISE,Consultants Fees,0060123399,GOWLING WLG,"3,087.48",13/02/2019
COMMERCIAL,REGIONAL ENTERPRISE,Consultants Fees,0060123401,GOWLING WLG,"4,993.00",13/02/2019
COMMERCIAL,REGIONAL ENTERPRISE,Consultants Fees,0060123451,GOWLING WLG,"10,555.80",13/02/2019
COMMERCIAL,REGIONAL ENTERPRISE,Consultants Fees,0060123604,GOWLING WLG,"6,689.18",15/02/2019
COMMERCIAL,REGIONAL ENTERPRISE,Consultants Fees,0060123780,GOWLING WLG,"2,623.60",18/02/2019
COMMERCIAL,REGIONAL ENTERPRISE,Consultants Fees,0060124133,GOWLING WLG,426.42,20/02/2019
COMMERCIAL,REGIONAL ENTERPRISE,Consultants Fees,0060124227,GOWLING WLG,"1,734.30",25/02/2019
COMMERCIAL,REGIONAL ENTERPRISE,Consultants Fees,0060124284,GOWLING WLG,"3,928.92",25/02/2019
COMMERCIAL,REGIONAL ENTERPRISE,Other Services,0060121641,NATIONWIDE DATA COLLECTION,"7,750.00",13/02/2019
Commissioning,Commissioning,Other Local Authorities - Thir,EBX0270286,NORTH LONDON WASTE AUTHORITY,"1,014,603.00",22/02/2019
Commissioning,Commissioning,Other Services,0060123664,STOR-A FILE LTD,"5,592.41",28/02/2019
Commissioning,Commissioning,Grant Payments,0080021363,BARNET BOROUGH ARTS COUNCIL,"1,150.00",21/02/2019
Commissioning,Commissioning,Grant Payments,0080022829,ART AGAINST KNIVES,"2,434.75",20/02/2019
Commissioning,Commissioning,Training,0060122571,CIPFA BUSINESS LIMITED,325.00,26/02/2019
Commissioning,Commissioning,Professional Services,0060122239,L G FUTURES,"1,212.00",04/02/2019
Commissioning,Commissioning,Professional Services,0060122688,L G FUTURES,195.00,05/02/2019
Commissioning,Commissioning,Software Licences & Support,0060123758,COPYRIGHT LICENSING AGENCY LTD,"10,220.32",18/02/2019
Commissioning,Commissioning,Software Licences & Support,0060123318,DOTTED EYES LTD,"1,360.00",28/02/2019
Commissioning,Commissioning,Professional Services,0060121865,HBINFO LTD,765.00,08/02/2019
Commissioning,Commissioning,Training,0060122536,CIPFA BUSINESS LIMITED,650.00,26/02/2019
Commissioning,Commissioning,COMMUNICATION REAL,0060118980,GOOD IMPRESSIONS (LONDON) LIMITED,300.00,11/02/2019
Commissioning,Commissioning,Consultants Fees,0060121000,GATENBY SANDERSON,"3,378.12",06/02/2019
Commissioning,Commissioning,Consultants Fees,0060121009,GATENBY SANDERSON,"5,305.44",06/02/2019
Commissioning,Commissioning,Training,0060122932,SHA'ARE TSEDEK NORTH LONDON REFORM SYNAG,560.00,15/02/2019
Commissioning,Commissioning,Training,0060124498,SHA'ARE TSEDEK NORTH LONDON REFORM SYNAG,560.00,25/02/2019
Commissioning,Commissioning,Training,0060121547,JUDELINE NICOLAS,643.70,14/02/2019
Commissioning,Commissioning,Training,0060121601,JUDELINE NICOLAS,"1,200.00",13/02/2019
Commissioning,Commissioning,Training,0060122538,HEARNS COACHES LTD,300.00,07/02/2019
Commissioning,Commissioning,Agency/Interim Hays,0060122497,MATRIX SCM LTD,"248,994.53",05/02/2019
Commissioning,Commissioning,Agency/Interim Hays,0060122501,MATRIX SCM LTD,"240,302.66",01/02/2019
Commissioning,Commissioning,Agency/Interim Hays,0060123732,MATRIX SCM LTD,"253,322.72",18/02/2019
Commissioning,Commissioning,Agency/Interim Hays,0060124670,MATRIX SCM LTD,"266,715.14",26/02/2019
Commissioning,Commissioning,Agency/Interim Hays,0060124683,MATRIX SCM LTD,"274,546.06",26/02/2019
Commissioning,Commissioning,Miscellaneous Expenses,80023429,GAPSQUARE,"4,003.00",20/02/2019
Commissioning,Commissioning,Equipment and Materials Purcha,0060123320,OCS GROUP UK LIMITED,"47,269.00",12/02/2019
Commissioning,Commissioning,Other Services,0060121687,GOOD IMPRESSIONS (LONDON) LIMITED,"1,830.00",14/02/2019
Commissioning,Commissioning,Other Transfer Payments to Soc,0060115380,GOOD IMPRESSIONS (LONDON) LIMITED,60.00,14/02/2019
Commissioning,Commissioning,Other Transfer Payments to Soc,0060121643,GOOD IMPRESSIONS (LONDON) LIMITED,240.00,14/02/2019
Commissioning,Commissioning,Equipment and Materials Purcha,0060123406,SOLACE WOMEN'S AID,"17,786.75",19/02/2019
Commissioning,Commissioning,Other Transfer Payments to Soc,0060123675,VICTIM SUPPORT SERVICES,"5,000.00",18/02/2019
Commissioning,Commissioning,Other Transfer Payments to Soc,0060123515,EMPOWERING COMMUNITIES,"5,949.00",14/02/2019
Commissioning,Commissioning,Private Contractors - Third Pa,0060105167,RISE MUTUAL CIC,"6,125.00",26/02/2019
Commissioning,Commissioning,Other Services,0060097410,HESTIA,"14,270.00",28/02/2019
Commissioning,Commissioning,Other Transfer Payments to Soc,0060122307,HA9 CONSULTANCY LTD,"7,875.00",15/02/2019
Commissioning,Commissioning,Miscellaneous Expenses,80022723,IKWRO,400.00,12/02/2019
Commissioning,Commissioning,Miscellaneous Expenses,80022904,REDACTED - PERSONAL DATA,59.56,22/02/2019
Commissioning,Commissioning,Consultants Fees,0060122901,REDACTED - PERSONAL DATA,42.84,07/02/2019
Commissioning,Commissioning,Private Contractors - Third Pa,0060122791,GREENWICH LEISURE LTD,"33,066.58",07/02/2019
Commissioning,Commissioning,Other Services,0060122909,THE 4FRONT PROJECT LTD,"1,050.00",15/02/2019
Commissioning,Commissioning,Other Services,0060122194,REDACTED - PERSONAL DATA,150.00,12/02/2019
Commissioning,Commissioning,Other Services,0060122319,REDACTED - PERSONAL DATA,337.50,12/02/2019
Commissioning,Commissioning,Other Services,0060122782,REDACTED - PERSONAL DATA,562.50,28/02/2019
Commissioning,Commissioning,Professional Services,0060123806,WSP UK LIMITED,"11,580.00",21/02/2019
Commissioning,Commissioning,Consultants Fees,0060123448,STRATEGIC LEISURE LTD,"7,125.00",13/02/2019
Commissioning,Commissioning,Other Services,80023626,ALESSCO LIMITED,"3,000.00",20/02/2019
Commissioning,Commissioning,Equipment and Materials Purcha,0060123626,JOHN GRAHAM CONSTRUCTION LTD,"1,755,472.49",20/02/2019
Commissioning,Commissioning,Capital Construction and Works,80023462,REDACTED - PERSONAL DATA,801.50,14/02/2019
Commissioning,Commissioning,Stationery,0080023198,OFFICE DEPOT UK LTD,435.00,07/02/2019
Commissioning,Commissioning,Stationery,0080023350,OFFICE DEPOT UK LTD,16.73,20/02/2019
Commissioning,Commissioning,Publications,0060121682,GOOD IMPRESSIONS (LONDON) LIMITED,240.00,14/02/2019
Commissioning,Commissioning,Publications,0060121752,GOOD IMPRESSIONS (LONDON) LIMITED,180.00,14/02/2019
Commissioning,Commissioning,Consultants Fees,0060119853,AV2HIRE,490.00,21/02/2019
Commissioning,Commissioning,Consultants Fees,0060119829,COMER BUSINESS AND INNOVATION CENTRES,160.00,21/02/2019
Commissioning,Commissioning,Professional Services,0060122677,GOOD IMPRESSIONS (LONDON) LIMITED,90.00,27/02/2019
Commissioning,Commissioning,Publications,0060123680,GOOD IMPRESSIONS (LONDON) LIMITED,180.00,18/02/2019
Commissioning,Commissioning,Publications,0060123672,LETTERBOX DISTRIBUTION.COM,"10,237.50",21/02/2019
Commissioning,Commissioning,Advertising,0060123009,NLA MEDIA ACCESS LTD,"1,068.00",28/02/2019
Commissioning,Commissioning,Advertising,0060124712,ACCESS INTELLIGENCE MEDIA & COMM.LT,"4,200.00",27/02/2019
Commissioning,Commissioning,Training,80023103,CHARTERED INSTITUTE OF HOUSING,160.00,12/02/2019
Commissioning,Commissioning,Training,80023105,TRAINING BYTE SIZE LTD,996.00,12/02/2019
Commissioning,Commissioning,Grant Payments,0060122847,THE BARNETGROUP LIMITED,"24,654.28",06/02/2019
Commissioning,Commissioning,Grant Payments,0060123569,THE BARNETGROUP LIMITED,"38,198.17",15/02/2019
Commissioning,Commissioning,Publications,0060122684,GOOD IMPRESSIONS (LONDON) LIMITED,360.00,27/02/2019
Commissioning,Commissioning,Professional Services,0060115236,GROUNDWORK LONDON,"19,867.58",21/02/2019
Commissioning,Commissioning,Professional Services,0060122366,GROUNDWORK LONDON,"8,000.00",20/02/2019
Commissioning,Commissioning,Professional Services,0060122401,GROUNDWORK LONDON,"15,000.00",20/02/2019
Commissioning,Commissioning,Other Services,0060102160,PELL FRISCHMAN CONSULTING ENGINEERS LTD,242.40,07/02/2019
Commissioning,Commissioning,Professional Services,0060122905,ESSEX COUNTY COUNCIL,"2,454.38",12/02/2019
Commissioning,Commissioning,Professional Services,0060097057,THE BARNETGROUP LIMITED,"17,256.72",22/02/2019
Commissioning,Commissioning,Professional Services,0060119782,MOTT MACDONALD LTD,"12,872.04",18/02/2019
Commissioning,Commissioning,Professional Services,0060123302,TBG OPEN DOOR LIMITED,"1,756,480.13",15/02/2019
COMMISSIONING,COMMISSIONING GROUP,Professional Services,0060122958,TRAFFIC SURVEY PARTNERS (TSP) LTD,"1,600.00",14/02/2019
COMMISSIONING,COMMISSIONING GROUP,Equipment and Materials Purcha,0010014991,MERRIDALE MIS FUEL MONITORING LTD,"1,186.00",14/02/2019
COMMISSIONING,COMMISSIONING GROUP,Equipment and Materials Purcha,0060121858,MERRIDALE MIS FUEL MONITORING LTD,"7,241.49",14/02/2019
COMMISSIONING,COMMISSIONING GROUP,Building Repairs & Maintenance,0060123709,JOHN GRAHAM CONSTRUCTION LTD,"2,543.27",22/02/2019
COMMISSIONING,COMMISSIONING GROUP,Building Repairs & Maintenance,0060123233,AJS LTD,"6,150.24",11/02/2019
COMMISSIONING,COMMISSIONING GROUP,Other Services,0060122953,TRAFFIC SURVEY PARTNERS (TSP) LTD,330.00,14/02/2019
COMMISSIONING,COMMISSIONING GROUP,Ttl IT & Comms,0060122520,MISL LTD,600.25,21/02/2019
COMMISSIONING,COMMISSIONING GROUP,Other Services,0060122615,CONWAY AECOM LTD,"98,502.06",04/02/2019
COMMISSIONING,COMMISSIONING GROUP,Other Services,0060122869,CONWAY AECOM LTD,"4,167.00",07/02/2019
COMMISSIONING,COMMISSIONING GROUP,Other Services,0060116417,CONWAY AECOM LTD,"1,571.03",21/02/2019
COMMISSIONING,COMMISSIONING GROUP,Other Services,0060116499,CONWAY AECOM LTD,"2,016.34",21/02/2019
COMMISSIONING,COMMISSIONING GROUP,Other Services,0060123334,CONWAY AECOM LTD,"4,751.22",12/02/2019
COMMISSIONING,COMMISSIONING GROUP,Other Services,0060123397,CONWAY AECOM LTD,"4,066.61",13/02/2019
COMMISSIONING,COMMISSIONING GROUP,Other Services,0060123413,CONWAY AECOM LTD,"42,474.38",13/02/2019
COMMISSIONING,COMMISSIONING GROUP,Other Services,0060123425,CONWAY AECOM LTD,"31,337.30",13/02/2019
COMMISSIONING,COMMISSIONING GROUP,Other Services,0060123430,CONWAY AECOM LTD,"3,450.05",14/02/2019
COMMISSIONING,COMMISSIONING GROUP,Other Services,0060123481,CONWAY AECOM LTD,"30,938.21",13/02/2019
COMMISSIONING,COMMISSIONING GROUP,Other Services,0060124157,CONWAY AECOM LTD,"1,405.55",21/02/2019
COMMISSIONING,COMMISSIONING GROUP,Other Services,0060123138,ROAD SAFETY GB,350.00,27/02/2019
COMMISSIONING,COMMISSIONING GROUP,Other Services,0060123352,S.A.M.E. ACADEMY,"9,515.00",28/02/2019
Corporate Accounting,Corporate Accounting,Other Local Authorities - Thir,EBX0268384,GREATER LONDON AUTHORITY,"3,396,343.00",11/02/2019
Corporate Accounting,Corporate Accounting,Other Local Authorities - Thir,EBX0269507,GREATER LONDON AUTHORITY,"236,146.00",20/02/2019
Corporate Accounting,Corporate Accounting,Miscellaneous Expenses,80023136,REDACTED - PERSONAL DATA,37.84,19/02/2019
Corporate Accounting,Corporate Accounting,Miscellaneous Expenses,80023508,REDACTED - PERSONAL DATA,"1,265.32",15/02/2019
Corporate Accounting,Corporate Accounting,Miscellaneous Expenses,80023592,REDACTED - PERSONAL DATA,491.96,19/02/2019
Corporate Accounting,Corporate Accounting,Miscellaneous Expenses,80023623,REDACTED - PERSONAL DATA,"1,000.00",19/02/2019
Corporate Accounting,Corporate Accounting,Miscellaneous Expenses,80023644,REDACTED - PERSONAL DATA,279.23,19/02/2019
Corporate Accounting,Corporate Accounting,Miscellaneous Expenses,80023646,REDACTED - PERSONAL DATA,122.77,19/02/2019
Corporate Accounting,Corporate Accounting,Miscellaneous Expenses,80023647,REDACTED - PERSONAL DATA,133.53,19/02/2019
Corporate Accounting,Corporate Accounting,Miscellaneous Expenses,80023649,REDACTED - PERSONAL DATA,333.61,22/02/2019
Corporate Accounting,Corporate Accounting,Miscellaneous Expenses,80023665,REDACTED - PERSONAL DATA,333.13,22/02/2019
Corporate Accounting,Corporate Accounting,Miscellaneous Expenses,80023667,REDACTED - PERSONAL DATA,884.83,22/02/2019
Corporate Accounting,Corporate Accounting,Grant Payments,0080023045,COLINDALE COMMUNITIES TRUST,"4,755.00",06/02/2019
Corporate Accounting,Corporate Accounting,Other Transfer Payments to Soc,80023246,EXPLORE LEARNING,390.00,19/02/2019
Corporate Accounting,Corporate Accounting,Other Transfer Payments to Soc,0080023380,REDACTED - PERSONAL DATA,100.00,13/02/2019
Corporate Accounting,Corporate Accounting,Other Transfer Payments to Soc,0080023242,REDACTED - PERSONAL DATA,540.00,11/02/2019
Corporate Accounting,Corporate Accounting,Other Transfer Payments to Soc,0080023063,WIRECARD (FS INSTANT 2040880892973),"42,564.70",12/02/2019
Corporate Accounting,Corporate Accounting,Refunds,80020312,MOTT MACDONALD LTD/CAMBRIDGE EDUCATION,"26,100.00",01/02/2019
Delivery Units,Adults and Communities,Stationery,0040003148,OFFICE DEPOT UK LTD,360.14,14/02/2019
Delivery Units,Adults and Communities,Stationery,0040003153,OFFICE DEPOT UK LTD,19.35,20/02/2019
Delivery Units,Adults and Communities,Stationery,0080023353,OFFICE DEPOT UK LTD,2.10,21/02/2019
Delivery Units,Adults and Communities,Voluntary Associations - Third,0020043329,SANCTUARY HOUSING ASSOCIATION,"5,824.59",20/02/2019
Delivery Units,Adults and Communities,Voluntary Associations - Third,0020043330,SANCTUARY HOUSING ASSOCIATION,407.80,20/02/2019
Delivery Units,Adults and Communities,Voluntary Associations - Third,0020043320,ELEANOR PALMER TRUST NO 2 A/C.,486.50,20/02/2019
Delivery Units,Adults and Communities,Voluntary Associations - Third,0020043317,BARNET MENCAP,"11,142.65",20/02/2019
Delivery Units,Adults and Communities,Voluntary Associations - Third,0020043319,CHRISTIAN ACTION (ENFIELD),365.80,20/02/2019
Delivery Units,Adults and Communities,Voluntary Associations - Third,0020043316,ASRA GREATER LONDON HOUSING ASSOC,379.30,20/02/2019
Delivery Units,Adults and Communities,Voluntary Associations - Third,0020043328,LINEN & WOOLLEN DRAPERS COTTAGE,730.11,20/02/2019
Delivery Units,Adults and Communities,Voluntary Associations - Third,0020043321,HABINTEG HOUSING ASSOCIATION,446.37,20/02/2019
Delivery Units,Adults and Communities,Voluntary Associations - Third,0020043326,ORCHARD HOUSING ASSOCIATION,196.62,19/02/2019
Delivery Units,Adults and Communities,Voluntary Associations - Third,0020043327,ST PANCRAS & HUMANIST H.A.,661.55,20/02/2019
Delivery Units,Adults and Communities,Other Services,0020043332,WILLOW HOUSING & CARE LTD.,711.38,20/02/2019
Delivery Units,Adults and Communities,Voluntary Associations - Third,0020043322,JEWISH COMMUNITY HOUSING ASSOCIATIO,568.17,20/02/2019
Delivery Units,Adults and Communities,Voluntary Associations - Third,0020043324,METROPOLITAN SUPPORT TRUST,502.00,20/02/2019
Delivery Units,Adults and Communities,Voluntary Associations - Third,0020043325,METROPOLITAN SUPPORT TRUST,"5,400.00",20/02/2019
Delivery Units,Adults and Communities,Voluntary Associations - Third,0020043331,SCOTSCARE,361.52,20/02/2019
Delivery Units,Adults and Communities,Other Services,0080023036,COLLEGE OF PUBLIC SPEAKING,695.00,22/02/2019
Delivery Units,Adults and Communities,Other Services,0060114597,D.A. LANGUAGES LTD,54.60,06/02/2019
Delivery Units,Adults and Communities,Other Services,0060119240,D.A. LANGUAGES LTD,13.00,19/02/2019
Delivery Units,Adults and Communities,Ttl IT & Comms,0060121778,P A CONSULTING SERVICES LTD,"18,651.00",05/02/2019
Delivery Units,Adults and Communities,Equipment and Materials Purcha,0060122350,MILLBROOK HEALTHCARE LTD,"37,507.78",14/02/2019
Delivery Units,Adults and Communities,Equipment and Materials Purcha,0060122351,MILLBROOK HEALTHCARE LTD,"212,716.82",14/02/2019
Delivery Units,Adults and Communities,Equipment and Materials Purcha,0060124457,MILLBROOK HEALTHCARE LTD,"37,507.78",28/02/2019
Delivery Units,Adults and Communities,Equipment and Materials Purcha,0060124473,MILLBROOK HEALTHCARE LTD,"227,300.87",28/02/2019
Delivery Units,Adults and Communities,Other Contributions,0080023728,O'DWYER INDEPENDENT FUNERAL DIRECTORS,470.00,25/02/2019
Delivery Units,Adults and Communities,Other Contributions,0080023731,O'DWYER INDEPENDENT FUNERAL DIRECTORS,470.00,25/02/2019
Delivery Units,Adults and Communities,Other Services,0080023233,E-ON ENERGY,435.78,20/02/2019
Delivery Units,Adults and Communities,Stationery,0080023352,OFFICE DEPOT UK LTD,"1,235.00",21/02/2019
Delivery Units,Adults and Communities,Subscriptions,0060124471,IESE LTD,"1,079.40",22/02/2019
Delivery Units,Adults and Communities,CSG  - Occ Health,0080022826,THE DERWENT MEDICAL CENTRE,160.00,12/02/2019
Delivery Units,Adults and Communities,CSG  - Occ Health,0060124616,THOMPSON SOLICITORS,291.67,26/02/2019
Delivery Units,Adults and Communities,Gas,0060123463,KENT COUNTY COUNCIL (KCS),299.14,13/02/2019
Delivery Units,Adults and Communities,Electricity,0060123402,KENT COUNTY COUNCIL (KCS),235.74,13/02/2019
Delivery Units,Adults and Communities,Rubbish Collection,0060122570,HERTFORDSHIRE SUPPLIES   COUNTY CO,56.70,04/02/2019
Delivery Units,Adults and Communities,Furniture-Purchase-Repair,0060123407,HERTFORDSHIRE SUPPLIES   COUNTY CO,93.50,14/02/2019
Delivery Units,Adults and Communities,Stationery,0060123449,XEROX FINANCE LTD,20.19,13/02/2019
Delivery Units,Adults and Communities,Rubbish Collection,0060122561,G.B.HOLDINGS LTD,56.00,01/02/2019
Delivery Units,Adults and Communities,Rubbish Collection,0060122564,G.B.HOLDINGS LTD,16.80,01/02/2019
Delivery Units,Adults and Communities,Stationery,0060123411,THE ART OF DESIGN,250.00,13/02/2019
Delivery Units,Adults and Communities,Gas,0010015011,BRITISH GAS BUSINESS,541.77,20/02/2019
Delivery Units,Adults and Communities,Gas,0010015012,BRITISH GAS BUSINESS,"2,556.05",20/02/2019
Delivery Units,Adults and Communities,Cleaning and domestic material,0060121693,CHURCHILL CONTRACT SERVICES,234.82,14/02/2019
Delivery Units,Adults and Communities,Cleaning and domestic material,0060121749,CHURCHILL CONTRACT SERVICES,226.69,14/02/2019
Delivery Units,Adults and Communities,Professional Services,0060123444,BPR GROUP EUROPE LTD,53.00,28/02/2019
Delivery Units,Adults and Communities,Other Services,0060122559,THE KEYHOLDING CO LTD,461.28,01/02/2019
Delivery Units,Adults and Communities,Consultants Fees,0060123471,TRIANGLE CONSULTING,330.00,13/02/2019
Delivery Units,Adults and Communities,Food Costs,0060122495,MULLER MILK & INGREDIENTS,0.88,05/02/2019
Delivery Units,Adults and Communities,Food Costs,0060122496,MULLER MILK & INGREDIENTS,0.88,05/02/2019
Delivery Units,Adults and Communities,Food Costs,0060122519,MULLER MILK & INGREDIENTS,1.52,05/02/2019
Delivery Units,Adults and Communities,Food Costs,0060122542,MULLER MILK & INGREDIENTS,0.88,05/02/2019
Delivery Units,Adults and Communities,Food Costs,0060122543,MULLER MILK & INGREDIENTS,0.88,15/02/2019
Delivery Units,Adults and Communities,Food Costs,0060122546,MULLER MILK & INGREDIENTS,1.34,05/02/2019
Delivery Units,Adults and Communities,Food Costs,0060122566,MULLER MILK & INGREDIENTS,0.88,05/02/2019
Delivery Units,Adults and Communities,Food Costs,0060122567,MULLER MILK & INGREDIENTS,0.88,08/02/2019
Delivery Units,Adults and Communities,Food Costs,0060122587,MULLER MILK & INGREDIENTS,0.44,05/02/2019
Delivery Units,Adults and Communities,Food Costs,0060124345,MULLER MILK & INGREDIENTS,0.88,22/02/2019
Delivery Units,Adults and Communities,Water Services,0060122569,CASTLE WATER LTD,14.89,04/02/2019
Delivery Units,Adults and Communities,Translation Exp / Interpret,0060116956,D.A. LANGUAGES LTD,98.00,19/02/2019
Delivery Units,Adults and Communities,Translation Exp / Interpret,0060119170,D.A. LANGUAGES LTD,142.00,19/02/2019
Delivery Units,Adults and Communities,Voluntary Associations - Third,0020043323,MIDDLESEX ASSOCIATION  FOR THE BLIN,"2,394.00",20/02/2019
Delivery Units,Adults and Communities,Voluntary Associations - Third,0020043318,BARNET MENCAP,"28,583.00",20/02/2019
Delivery Units,Adults and Communities,Voluntary Associations - Third,0020043315,AGE CONCERN,"58,333.00",20/02/2019
Delivery Units,Adults and Communities,Other Transfer Payments to Soc,0060118046,AGE CONCERN,"3,150.00",04/02/2019
Delivery Units,Adults and Communities,Other Transfer Payments to Soc,0060119635,AGE CONCERN,"3,150.00",04/02/2019
Delivery Units,Adults and Communities,Other Transfer Payments to Soc,0060123157,AGE CONCERN,"3,150.00",13/02/2019
Delivery Units,Adults and Communities,Other Transfer Payments to Soc,0060123219,AGE CONCERN,"3,150.00",13/02/2019
Delivery Units,Adults and Communities,Training,0060124469,MIDDLESEX UNIVERSITY,"9,000.00",27/02/2019
Delivery Units,Adults and Communities,Training,0060124470,MIDDLESEX UNIVERSITY,"9,250.00",27/02/2019
Delivery Units,Adults and Communities,Training,0060123499,HEALTHCARE CONFERENCE UK LTD,316.00,18/02/2019
Delivery Units,Adults and Communities,Training,0080023677,HEALTHCARE CONFERENCE UK LTD,100.00,21/02/2019
Delivery Units,Adults and Communities,Training,0060123631,ADJUSTING THE BALANCE,600.00,28/02/2019
Delivery Units,Adults and Communities,Training,0010015034,STEVE CHAMBERLAIN SOCIAL CARE LTD,750.00,27/02/2019
Delivery Units,Adults and Communities,Training,0060123658,LOUISE FOX CONSULTING LTD,"2,340.00",19/02/2019
Delivery Units,Adults and Communities,Training,0060124112,LOUISE FOX CONSULTING LTD,"1,390.00",25/02/2019
Delivery Units,Adults and Communities,Other Services,0060123643,COMMUNITY BARNET,"10,666.67",27/02/2019
Delivery Units,Adults and Communities,Other Services,0060124003,COMMUNITY BARNET,"10,666.67",27/02/2019
Delivery Units,Adults and Communities,Other Services,0080023663,CARE MONITORING 2000 LTD,"5,526.50",20/02/2019
Delivery Units,Adults and Communities,Stationery,0080023341,OFFICE DEPOT UK LTD,17.45,14/02/2019
Delivery Units,Adults and Communities,Equipment and Materials Purcha,0060120746,BACK CARE SOLUTIONS LIMITED,50.00,19/02/2019
Delivery Units,Adults and Communities,Equipment and Materials Purcha,0060122149,BACK CARE SOLUTIONS LIMITED,"3,334.06",22/02/2019
Delivery Units,Adults and Communities,Other Establishments - Third P,0060120193,HERTFORDSHIRE PARTNERSHIP,"111,724.50",18/02/2019
Delivery Units,Adults and Communities,Other Establishments - Third P,0060121559,HERTFORDSHIRE PARTNERSHIP,"111,724.50",18/02/2019
Delivery Units,Adults and Communities,Other Services,0080023531,REDACTED - PERSONAL DATA,2.76,18/02/2019
Delivery Units,Adults and Communities,Other Services,0080023532,REDACTED - PERSONAL DATA,2.30,18/02/2019
Delivery Units,Adults and Communities,Other Services,0080023631,REDACTED - PERSONAL DATA,1.84,27/02/2019
Delivery Units,Adults and Communities,Other Services,0080023530,REDACTED - PERSONAL DATA,5.34,18/02/2019
Delivery Units,Adults and Communities,Other Services,80023620,REDACTED - PERSONAL DATA,6.44,27/02/2019
Delivery Units,Adults and Communities,Other Services,0060124198,HUNTERSJOY LTD,"7,440.00",21/02/2019
Delivery Units,Adults and Communities,General Office Expenses,0040003151,OFFICE DEPOT UK LTD,5.97,14/02/2019
Delivery Units,Adults and Communities,Transport Spot  Hire Recharge,0060124243,MOTT MACDONALD LTD/CAMBRIDGE EDUCATION,250.00,21/02/2019
Delivery Units,Adults and Communities,Stationery,0040003149,OFFICE DEPOT UK LTD,209.06,14/02/2019
Delivery Units,Adults and Communities,Other Transfer Payments to Soc,0060054018,KORU MEDICAL LTD,356.28,28/02/2019
Delivery Units,Adults and Communities,Other Transfer Payments to Soc,0060104506,HCL SOCIAL CARE LTD,167.50,20/02/2019
Delivery Units,Adults and Communities,Other Transfer Payments to Soc,0060120605,HCL SOCIAL CARE LTD,"1,050.00",20/02/2019
Delivery Units,Adults and Communities,Other Transfer Payments to Soc,0060122240,PEACEABLE HABITATION LTD,"1,243.38",01/02/2019
Delivery Units,Adults and Communities,Other Transfer Payments to Soc,0010014966,MAINPAY LTD,-900.00,20/02/2019
Delivery Units,Adults and Communities,Other Transfer Payments to Soc,0060122296,MAINPAY LTD,"1,237.50",20/02/2019
Delivery Units,Adults and Communities,Other Agencies - Third Party P,0090141183,JEWISH CARE,"2,356.88",08/02/2019
Delivery Units,Adults and Communities,Other Agencies - Third Party P,0090141184,JEWISH CARE,"2,610.96",08/02/2019
Delivery Units,Adults and Communities,Other Agencies - Third Party P,0090141185,JEWISH CARE,"13,362.96",08/02/2019
Delivery Units,Adults and Communities,Other Agencies - Third Party P,0090141186,JEWISH CARE,"2,356.88",08/02/2019
Delivery Units,Adults and Communities,Other Agencies - Third Party P,0090141187,JEWISH CARE,"2,356.88",08/02/2019
Delivery Units,Adults and Communities,Other Agencies - Third Party P,0090141188,JEWISH CARE,"2,356.88",08/02/2019
Delivery Units,Adults and Communities,Other Agencies - Third Party P,0090141189,JEWISH CARE,589.22,08/02/2019
Delivery Units,Adults and Communities,Other Agencies - Third Party P,0090141190,JEWISH CARE,"2,356.88",08/02/2019
Delivery Units,Adults and Communities,Other Agencies - Third Party P,0090141191,JEWISH CARE,"2,356.88",08/02/2019
Delivery Units,Adults and Communities,Other Agencies - Third Party P,0090141217,JEWISH CARE,"2,357.36",08/02/2019
Delivery Units,Adults and Communities,Other Agencies - Third Party P,0090141234,JEWISH CARE,"2,356.88",08/02/2019
Delivery Units,Adults and Communities,Other Agencies - Third Party P,0090141623,JEWISH CARE,"2,610.96",08/02/2019
Delivery Units,Adults and Communities,Other Agencies - Third Party P,0090141624,JEWISH CARE,"2,356.88",08/02/2019
Delivery Units,Adults and Communities,Other Agencies - Third Party P,0090141625,JEWISH CARE,"2,610.96",08/02/2019
Delivery Units,Adults and Communities,Other Agencies - Third Party P,0090141626,JEWISH CARE,"2,356.88",08/02/2019
Delivery Units,Adults and Communities,Other Agencies - Third Party P,0090141627,JEWISH CARE,"2,610.96",08/02/2019
Delivery Units,Adults and Communities,Other Agencies - Third Party P,0090141628,JEWISH CARE,"2,610.96",08/02/2019
Delivery Units,Adults and Communities,Other Agencies - Third Party P,0090141629,JEWISH CARE,"2,356.88",08/02/2019
Delivery Units,Adults and Communities,Other Agencies - Third Party P,0090141630,JEWISH CARE,"2,356.88",08/02/2019
Delivery Units,Adults and Communities,Other Agencies - Third Party P,0090141631,JEWISH CARE,"2,356.88",08/02/2019
Delivery Units,Adults and Communities,Other Agencies - Third Party P,0090141632,JEWISH CARE,"2,610.96",08/02/2019
Delivery Units,Adults and Communities,Other Agencies - Third Party P,0090141635,JEWISH CARE,"2,610.96",08/02/2019
Delivery Units,Adults and Communities,Other Agencies - Third Party P,0090141636,JEWISH CARE,"2,610.96",08/02/2019
Delivery Units,Adults and Communities,Other Agencies - Third Party P,0090143486,FERNBANK NURSING HOME.,"2,165.52",20/02/2019
Delivery Units,Adults and Communities,Other Agencies - Third Party P,0090143487,FERNBANK NURSING HOME.,"2,165.52",20/02/2019
Delivery Units,Adults and Communities,Other Agencies - Third Party P,0090143488,FERNBANK NURSING HOME.,"2,165.00",20/02/2019
Delivery Units,Adults and Communities,Other Agencies - Third Party P,0090143489,FERNBANK NURSING HOME.,"2,165.52",20/02/2019
Delivery Units,Adults and Communities,Other Agencies - Third Party P,0090143490,FERNBANK NURSING HOME.,"2,179.80",20/02/2019
Delivery Units,Adults and Communities,Other Agencies - Third Party P,0090143491,FERNBANK NURSING HOME.,"2,165.52",20/02/2019
Delivery Units,Adults and Communities,Other Agencies - Third Party P,0090143493,FERNBANK NURSING HOME.,"2,399.88",20/02/2019
Delivery Units,Adults and Communities,Other Agencies - Third Party P,0090143494,FERNBANK NURSING HOME.,"5,564.11",20/02/2019
Delivery Units,Adults and Communities,Other Agencies - Third Party P,0090143495,FERNBANK NURSING HOME.,"3,939.88",20/02/2019
Delivery Units,Adults and Communities,Other Agencies - Third Party P,0090139656,CEDARS NURSING HOME,"12,214.29",01/02/2019
Delivery Units,Adults and Communities,Other Agencies - Third Party P,0090140171,BUPA NURSING HOMES LTD - ARKLEY,"2,318.76",07/02/2019
Delivery Units,Adults and Communities,Other Agencies - Third Party P,0090140172,BUPA NURSING HOMES LTD - ARKLEY,"2,318.76",07/02/2019
Delivery Units,Adults and Communities,Other Agencies - Third Party P,0090140173,BUPA NURSING HOMES LTD - ARKLEY,"2,318.76",07/02/2019
Delivery Units,Adults and Communities,Other Agencies - Third Party P,0090140175,BUPA NURSING HOMES LTD - ARKLEY,"2,318.76",07/02/2019
Delivery Units,Adults and Communities,Other Agencies - Third Party P,0090143168,BUPA NURSING HOMES LTD - ARKLEY,"2,318.76",20/02/2019
Delivery Units,Adults and Communities,Other Agencies - Third Party P,0090144076,BUPA NURSING HOMES LTD - ARKLEY,"2,318.76",22/02/2019
Delivery Units,Adults and Communities,Other Agencies - Third Party P,0090141014,AGUDAS ISRAEL HOUSING ASSCTN LTD,"2,736.86",13/02/2019
Delivery Units,Adults and Communities,Other Agencies - Third Party P,0090142161,WESTMINSTER HEALTH CARE LTD,"2,094.52",14/02/2019
Delivery Units,Adults and Communities,Other Agencies - Third Party P,0090141039,THE LEONARD CHESHIRE FOUNDATION,"6,634.00",26/02/2019
Delivery Units,Adults and Communities,Other Agencies - Third Party P,0090141846,LIFESTYLE CARE PLC,"2,579.80",11/02/2019
Delivery Units,Adults and Communities,Other Agencies - Third Party P,0090143498,LIFESTYLE CARE PLC,"2,397.72",20/02/2019
Delivery Units,Adults and Communities,Other Agencies - Third Party P,0090143500,LIFESTYLE CARE PLC,"2,842.43",20/02/2019
Delivery Units,Adults and Communities,Other Agencies - Third Party P,0090143502,LIFESTYLE CARE PLC,"2,397.72",20/02/2019
Delivery Units,Adults and Communities,Other Agencies - Third Party P,0090143503,LIFESTYLE CARE PLC,"2,655.55",20/02/2019
Delivery Units,Adults and Communities,Other Agencies - Third Party P,0090143504,LIFESTYLE CARE PLC,"2,397.72",20/02/2019
Delivery Units,Adults and Communities,Other Agencies - Third Party P,0090143505,LIFESTYLE CARE PLC,"2,397.72",20/02/2019
Delivery Units,Adults and Communities,Other Agencies - Third Party P,0090143506,LIFESTYLE CARE PLC,"2,655.55",20/02/2019
Delivery Units,Adults and Communities,Other Agencies - Third Party P,0090143507,LIFESTYLE CARE PLC,"2,397.72",20/02/2019
Delivery Units,Adults and Communities,Other Agencies - Third Party P,0090144074,SONESTA NURSING HOME LTD.,"2,569.89",22/02/2019
Delivery Units,Adults and Communities,Other Agencies - Third Party P,0090141078,NEWCENTURY CARE LTD,"3,020.00",07/02/2019
Delivery Units,Adults and Communities,Other Agencies - Third Party P,0090143157,BUPA CARE HOMES,-82.69,20/02/2019
Delivery Units,Adults and Communities,Other Agencies - Third Party P,0090143158,BUPA CARE HOMES,"2,563.39",20/02/2019
Delivery Units,Adults and Communities,Other Agencies - Third Party P,0090144372,BUPA CARE HOMES,"2,315.32",27/02/2019
Delivery Units,Adults and Communities,Other Agencies - Third Party P,0090144374,BUPA CARE HOMES,"3,865.12",27/02/2019
Delivery Units,Adults and Communities,Other Agencies - Third Party P,0090144375,BUPA CARE HOMES,"3,463.92",27/02/2019
Delivery Units,Adults and Communities,Other Agencies - Third Party P,0090144376,BUPA CARE HOMES,942.85,27/02/2019
Delivery Units,Adults and Communities,Other Agencies - Third Party P,0090141108,BUPA CARE HOMES,"3,210.71",08/02/2019
Delivery Units,Adults and Communities,Other Agencies - Third Party P,0090141109,BUPA CARE HOMES,"2,413.57",08/02/2019
Delivery Units,Adults and Communities,Other Agencies - Third Party P,0090141110,BUPA CARE HOMES,774.06,08/02/2019
Delivery Units,Adults and Communities,Other Agencies - Third Party P,0090141111,BUPA CARE HOMES,"2,399.58",08/02/2019
Delivery Units,Adults and Communities,Other Agencies - Third Party P,0090141115,BUPA CARE HOMES,"2,399.58",08/02/2019
Delivery Units,Adults and Communities,Other Agencies - Third Party P,0090141116,BUPA CARE HOMES,"3,238.37",08/02/2019
Delivery Units,Adults and Communities,Other Agencies - Third Party P,0090141118,BUPA CARE HOMES,"2,399.58",08/02/2019
Delivery Units,Adults and Communities,Other Agencies - Third Party P,0090144378,ASPEN VILLAGES LTD,"2,387.56",26/02/2019
Delivery Units,Adults and Communities,Other Agencies - Third Party P,0090141844,SANCTUARY CARE LTD,"2,324.76",11/02/2019
Delivery Units,Adults and Communities,Other Agencies - Third Party P,0090141180,BUPA CARE HOMES,"2,567.20",14/02/2019
Delivery Units,Adults and Communities,Other Agencies - Third Party P,0090141181,BUPA CARE HOMES,"3,615.84",14/02/2019
Delivery Units,Adults and Communities,Other Agencies - Third Party P,0090141009,SAGE NURSING HOME,"4,207.14",07/02/2019
Delivery Units,Adults and Communities,Other Agencies - Third Party P,0090141011,SAGE NURSING HOME,"5,314.29",07/02/2019
Delivery Units,Adults and Communities,Other Agencies - Third Party P,0090141019,SAGE NURSING HOME,"2,788.32",07/02/2019
Delivery Units,Adults and Communities,Other Agencies - Third Party P,0090141020,SAGE NURSING HOME,"2,517.60",07/02/2019
Delivery Units,Adults and Communities,Other Agencies - Third Party P,0090141088,SAGE NURSING HOME,"2,399.58",07/02/2019
Delivery Units,Adults and Communities,Other Agencies - Third Party P,0090142163,M D HOMES,"2,775.00",14/02/2019
Delivery Units,Adults and Communities,Other Agencies - Third Party P,0090143078,APPLE TREE COURT CARE HOME,"3,285.29",20/02/2019
Delivery Units,Adults and Communities,Other Agencies - Third Party P,0090143079,APPLE TREE COURT CARE HOME,"2,013.57",20/02/2019
Delivery Units,Adults and Communities,Other Agencies - Third Party P,0090141139,AUTUMN GARDENS,"4,800.00",07/02/2019
Delivery Units,Adults and Communities,Other Agencies - Third Party P,0090141142,AUTUMN GARDENS,"4,800.00",07/02/2019
Delivery Units,Adults and Communities,Other Agencies - Third Party P,0090141120,SUNRISE SENIOR LIVING,"6,382.28",07/02/2019
Delivery Units,Adults and Communities,Other Agencies - Third Party P,0090144084,ABBEY RAVENSCROFT PARK NURSING HOME,"5,371.43",22/02/2019
Delivery Units,Adults and Communities,Other Agencies - Third Party P,0090144367,ABBEY RAVENSCROFT PARK NURSING HOME,"3,321.43",26/02/2019
Delivery Units,Adults and Communities,Other Agencies - Third Party P,0090144368,ABBEY RAVENSCROFT PARK NURSING HOME,107.14,26/02/2019
Delivery Units,Adults and Communities,Other Agencies - Third Party P,0090143497,HUSKARDS NEW CARE LTD,"2,165.68",20/02/2019
Delivery Units,Adults and Communities,Other Agencies - Third Party P,0090140995,ASHTON LODGE CARE CENTRE,"3,583.51",07/02/2019
Delivery Units,Adults and Communities,Other Agencies - Third Party P,0090140996,ASHTON LODGE CARE CENTRE,-462.39,07/02/2019
Delivery Units,Adults and Communities,Other Agencies - Third Party P,0090143081,ASHTON LODGE CARE CENTRE,"2,699.48",20/02/2019
Delivery Units,Adults and Communities,Other Agencies - Third Party P,0090143083,ASHTON LODGE CARE CENTRE,"3,028.24",20/02/2019
Delivery Units,Adults and Communities,Other Agencies - Third Party P,0090143084,ASHTON LODGE CARE CENTRE,"3,167.36",20/02/2019
Delivery Units,Adults and Communities,Other Agencies - Third Party P,0090143085,ASHTON LODGE CARE CENTRE,"3,167.36",20/02/2019
Delivery Units,Adults and Communities,Other Agencies - Third Party P,0090143086,ASHTON LODGE CARE CENTRE,"2,614.84",20/02/2019
Delivery Units,Adults and Communities,Other Agencies - Third Party P,0090143088,ASHTON LODGE CARE CENTRE,"2,779.80",20/02/2019
Delivery Units,Adults and Communities,Other Agencies - Third Party P,0090143089,ASHTON LODGE CARE CENTRE,"2,824.68",20/02/2019
Delivery Units,Adults and Communities,Other Agencies - Third Party P,0090143090,ASHTON LODGE CARE CENTRE,"3,440.28",20/02/2019
Delivery Units,Adults and Communities,Other Agencies - Third Party P,0090143091,ASHTON LODGE CARE CENTRE,"3,033.12",20/02/2019
Delivery Units,Adults and Communities,Other Agencies - Third Party P,0090143092,ASHTON LODGE CARE CENTRE,"2,829.56",20/02/2019
Delivery Units,Adults and Communities,Other Agencies - Third Party P,0090143093,ASHTON LODGE CARE CENTRE,"3,460.88",20/02/2019
Delivery Units,Adults and Communities,Other Agencies - Third Party P,0090143097,ASHTON LODGE CARE CENTRE,"2,360.96",20/02/2019
Delivery Units,Adults and Communities,Other Agencies - Third Party P,0090143098,ASHTON LODGE CARE CENTRE,"3,379.80",20/02/2019
Delivery Units,Adults and Communities,Other Agencies - Third Party P,0090143099,ASHTON LODGE CARE CENTRE,"3,257.28",20/02/2019
Delivery Units,Adults and Communities,Other Agencies - Third Party P,0090143101,ASHTON LODGE CARE CENTRE,"2,825.68",20/02/2019
Delivery Units,Adults and Communities,Other Agencies - Third Party P,0090143102,ASHTON LODGE CARE CENTRE,"2,881.16",20/02/2019
Delivery Units,Adults and Communities,Other Agencies - Third Party P,0090143103,ASHTON LODGE CARE CENTRE,"2,614.84",20/02/2019
Delivery Units,Adults and Communities,Other Agencies - Third Party P,0090143105,ASHTON LODGE CARE CENTRE,"2,829.56",20/02/2019
Delivery Units,Adults and Communities,Other Agencies - Third Party P,0090143106,ASHTON LODGE CARE CENTRE,"3,236.72",20/02/2019
Delivery Units,Adults and Communities,Other Agencies - Third Party P,0090143108,ASHTON LODGE CARE CENTRE,"3,236.72",20/02/2019
Delivery Units,Adults and Communities,Other Agencies - Third Party P,0090143109,ASHTON LODGE CARE CENTRE,"3,053.72",20/02/2019
Delivery Units,Adults and Communities,Other Agencies - Third Party P,0090144129,ASHTON LODGE CARE CENTRE,"2,613.92",22/02/2019
Delivery Units,Adults and Communities,Other Agencies - Third Party P,0090144130,ASHTON LODGE CARE CENTRE,"3,352.69",22/02/2019
Delivery Units,Adults and Communities,Other Agencies - Third Party P,0090144131,ASHTON LODGE CARE CENTRE,"3,741.92",22/02/2019
Delivery Units,Adults and Communities,Other Agencies - Third Party P,0090144132,ASHTON LODGE CARE CENTRE,"3,506.72",22/02/2019
Delivery Units,Adults and Communities,Other Agencies - Third Party P,0090144134,ASHTON LODGE CARE CENTRE,"3,606.27",22/02/2019
Delivery Units,Adults and Communities,Other Agencies - Third Party P,0090144135,ASHTON LODGE CARE CENTRE,"3,380.90",22/02/2019
Delivery Units,Adults and Communities,Other Agencies - Third Party P,0090144136,ASHTON LODGE CARE CENTRE,"3,127.32",22/02/2019
Delivery Units,Adults and Communities,Other Agencies - Third Party P,0090144137,ASHTON LODGE CARE CENTRE,"3,808.88",22/02/2019
Delivery Units,Adults and Communities,Other Agencies - Third Party P,0090143152,WESTGATE HOUSE CARE CENTRE,"3,365.20",19/02/2019
Delivery Units,Adults and Communities,Other Agencies - Third Party P,0090143822,MURRAYFIELD CARE HOME,157.99,22/02/2019
Delivery Units,Adults and Communities,Other Agencies - Third Party P,0090139648,FOUR SEASONS HEALTH CARE (NO.4) LTD,"2,004.00",01/02/2019
Delivery Units,Adults and Communities,Other Agencies - Third Party P,0090141338,FOUR SEASONS HEALTH CARE (NO.4) LTD,"2,004.00",08/02/2019
Delivery Units,Adults and Communities,Other Agencies - Third Party P,0090144360,VICTORIA CARE CENTRE,"2,958.95",26/02/2019
Delivery Units,Adults and Communities,Other Agencies - Third Party P,0090144361,VICTORIA CARE CENTRE,"2,958.95",26/02/2019
Delivery Units,Adults and Communities,Other Agencies - Third Party P,0090144362,VICTORIA CARE CENTRE,"2,958.95",26/02/2019
Delivery Units,Adults and Communities,Other Agencies - Third Party P,0090144363,VICTORIA CARE CENTRE,"2,958.95",26/02/2019
Delivery Units,Adults and Communities,Other Agencies - Third Party P,0090144371,ST ANNS HOME-LITTLE SISTERS OF THE POOR,"2,320.38",26/02/2019
Delivery Units,Adults and Communities,Other Agencies - Third Party P,0090143149,PINELODGE CARE HOME,"2,398.56",28/02/2019
Delivery Units,Adults and Communities,Other Agencies - Third Party P,0090142157,ADARA HEALTHCARE LTD,"3,400.00",12/02/2019
Delivery Units,Adults and Communities,Other Agencies - Third Party P,0090143164,ADARA HEALTHCARE LTD,"3,400.00",20/02/2019
Delivery Units,Adults and Communities,Other Agencies - Third Party P,0090141175,BONDCARE LONDON (THE FOUNTAINS),"2,138.00",07/02/2019
Delivery Units,Adults and Communities,Other Agencies - Third Party P,0090141176,BONDCARE LONDON (THE FOUNTAINS),"2,138.00",07/02/2019
Delivery Units,Adults and Communities,Other Agencies - Third Party P,0090141845,ST JOHNS WOOD CARE CENTRE,"2,579.80",28/02/2019
Delivery Units,Adults and Communities,Other Agencies - Third Party P,0090139655,HC-ONE OVAL LTD,"2,368.62",01/02/2019
Delivery Units,Adults and Communities,Other Agencies - Third Party P,0090141089,ELEANOR PALMER TRUST NO 2 A/C.,"3,000.00",07/02/2019
Delivery Units,Adults and Communities,Other Agencies - Third Party P,0090141090,ELEANOR PALMER TRUST NO 2 A/C.,-840.10,07/02/2019
Delivery Units,Adults and Communities,Other Agencies - Third Party P,0090141091,ELEANOR PALMER TRUST NO 2 A/C.,"3,067.80",07/02/2019
Delivery Units,Adults and Communities,Other Agencies - Third Party P,0090141093,ELEANOR PALMER TRUST NO 2 A/C.,"3,000.00",07/02/2019
Delivery Units,Adults and Communities,Other Agencies - Third Party P,0090141094,ELEANOR PALMER TRUST NO 2 A/C.,"3,067.80",07/02/2019
Delivery Units,Adults and Communities,Other Agencies - Third Party P,0090141095,ELEANOR PALMER TRUST NO 2 A/C.,"2,352.28",07/02/2019
Delivery Units,Adults and Communities,Other Agencies - Third Party P,0090141096,ELEANOR PALMER TRUST NO 2 A/C.,"3,067.80",07/02/2019
Delivery Units,Adults and Communities,Other Agencies - Third Party P,0090141097,ELEANOR PALMER TRUST NO 2 A/C.,"2,304.00",07/02/2019
Delivery Units,Adults and Communities,Other Agencies - Third Party P,0090141098,ELEANOR PALMER TRUST NO 2 A/C.,"2,160.80",07/02/2019
Delivery Units,Adults and Communities,Other Agencies - Third Party P,0090141099,ELEANOR PALMER TRUST NO 2 A/C.,"3,000.00",07/02/2019
Delivery Units,Adults and Communities,Other Agencies - Third Party P,0090141100,ELEANOR PALMER TRUST NO 2 A/C.,"3,067.80",07/02/2019
Delivery Units,Adults and Communities,Other Agencies - Third Party P,0090141101,ELEANOR PALMER TRUST NO 2 A/C.,"3,067.80",07/02/2019
Delivery Units,Adults and Communities,Other Agencies - Third Party P,0090141102,ELEANOR PALMER TRUST NO 2 A/C.,"3,067.80",07/02/2019
Delivery Units,Adults and Communities,Other Agencies - Third Party P,0090141103,ELEANOR PALMER TRUST NO 2 A/C.,"2,160.80",07/02/2019
Delivery Units,Adults and Communities,Other Agencies - Third Party P,0090141104,ELEANOR PALMER TRUST NO 2 A/C.,"2,352.28",07/02/2019
Delivery Units,Adults and Communities,Other Agencies - Third Party P,0090141105,ELEANOR PALMER TRUST NO 2 A/C.,"3,067.80",07/02/2019
Delivery Units,Adults and Communities,Other Agencies - Third Party P,0090141106,ELEANOR PALMER TRUST NO 2 A/C.,"3,067.80",07/02/2019
Delivery Units,Adults and Communities,Other Agencies - Third Party P,0090141125,THE GRANGE,"2,304.00",07/02/2019
Delivery Units,Adults and Communities,Other Agencies - Third Party P,0090141126,THE GRANGE,"2,600.00",07/02/2019
Delivery Units,Adults and Communities,Other Agencies - Third Party P,0080023189,JEWISH CARE,"38,850.00",07/02/2019
Delivery Units,Adults and Communities,Other Agencies - Third Party P,0090139657,JEWISH CARE,"8,873.43",01/02/2019
Delivery Units,Adults and Communities,Other Agencies - Third Party P,0090141192,JEWISH CARE,"2,455.12",08/02/2019
Delivery Units,Adults and Communities,Other Agencies - Third Party P,0090141193,JEWISH CARE,"2,455.12",08/02/2019
Delivery Units,Adults and Communities,Other Agencies - Third Party P,0090141194,JEWISH CARE,"2,455.12",08/02/2019
Delivery Units,Adults and Communities,Other Agencies - Third Party P,0090141195,JEWISH CARE,"2,455.12",08/02/2019
Delivery Units,Adults and Communities,Other Agencies - Third Party P,0090141196,JEWISH CARE,493.58,08/02/2019
Delivery Units,Adults and Communities,Other Agencies - Third Party P,0090141197,JEWISH CARE,"2,455.12",08/02/2019
Delivery Units,Adults and Communities,Other Agencies - Third Party P,0090141198,JEWISH CARE,"2,255.96",08/02/2019
Delivery Units,Adults and Communities,Other Agencies - Third Party P,0090141199,JEWISH CARE,"2,455.12",08/02/2019
Delivery Units,Adults and Communities,Other Agencies - Third Party P,0090141200,JEWISH CARE,"2,455.12",08/02/2019
Delivery Units,Adults and Communities,Other Agencies - Third Party P,0090141201,JEWISH CARE,"2,455.12",08/02/2019
Delivery Units,Adults and Communities,Other Agencies - Third Party P,0090141202,JEWISH CARE,"2,455.12",08/02/2019
Delivery Units,Adults and Communities,Other Agencies - Third Party P,0090141203,JEWISH CARE,"2,457.80",08/02/2019
Delivery Units,Adults and Communities,Other Agencies - Third Party P,0090141204,JEWISH CARE,"2,457.80",08/02/2019
Delivery Units,Adults and Communities,Other Agencies - Third Party P,0090141205,JEWISH CARE,"2,457.80",08/02/2019
Delivery Units,Adults and Communities,Other Agencies - Third Party P,0090141206,JEWISH CARE,"2,457.80",08/02/2019
Delivery Units,Adults and Communities,Other Agencies - Third Party P,0090141207,JEWISH CARE,"2,457.80",08/02/2019
Delivery Units,Adults and Communities,Other Agencies - Third Party P,0090141208,JEWISH CARE,"2,258.40",08/02/2019
Delivery Units,Adults and Communities,Other Agencies - Third Party P,0090141209,JEWISH CARE,"2,457.80",08/02/2019
Delivery Units,Adults and Communities,Other Agencies - Third Party P,0090141211,JEWISH CARE,"2,457.80",08/02/2019
Delivery Units,Adults and Communities,Other Agencies - Third Party P,0090141213,JEWISH CARE,"2,258.40",08/02/2019
Delivery Units,Adults and Communities,Other Agencies - Third Party P,0090141215,JEWISH CARE,"2,457.80",08/02/2019
Delivery Units,Adults and Communities,Other Agencies - Third Party P,0090141216,JEWISH CARE,"2,457.80",08/02/2019
Delivery Units,Adults and Communities,Other Agencies - Third Party P,0090141233,JEWISH CARE,"2,455.64",08/02/2019
Delivery Units,Adults and Communities,Other Agencies - Third Party P,0090141236,JEWISH CARE,"2,255.96",08/02/2019
Delivery Units,Adults and Communities,Other Agencies - Third Party P,0090141237,JEWISH CARE,563.99,08/02/2019
Delivery Units,Adults and Communities,Other Agencies - Third Party P,0090141569,JEWISH CARE,"2,258.40",08/02/2019
Delivery Units,Adults and Communities,Other Agencies - Third Party P,0090141570,JEWISH CARE,"2,456.36",08/02/2019
Delivery Units,Adults and Communities,Other Agencies - Third Party P,0090141571,JEWISH CARE,"2,257.08",08/02/2019
Delivery Units,Adults and Communities,Other Agencies - Third Party P,0090141572,JEWISH CARE,"4,246.20",08/02/2019
Delivery Units,Adults and Communities,Other Agencies - Third Party P,0090141573,JEWISH CARE,"2,257.08",08/02/2019
Delivery Units,Adults and Communities,Other Agencies - Third Party P,0090141574,JEWISH CARE,"2,456.36",08/02/2019
Delivery Units,Adults and Communities,Other Agencies - Third Party P,0090141575,JEWISH CARE,"2,257.08",08/02/2019
Delivery Units,Adults and Communities,Other Agencies - Third Party P,0090141576,JEWISH CARE,"2,257.08",08/02/2019
Delivery Units,Adults and Communities,Other Agencies - Third Party P,0090141578,JEWISH CARE,"2,456.36",08/02/2019
Delivery Units,Adults and Communities,Other Agencies - Third Party P,0090141579,JEWISH CARE,"2,456.36",08/02/2019
Delivery Units,Adults and Communities,Other Agencies - Third Party P,0090141580,JEWISH CARE,"2,257.08",08/02/2019
Delivery Units,Adults and Communities,Other Agencies - Third Party P,0090141581,JEWISH CARE,"2,257.08",08/02/2019
Delivery Units,Adults and Communities,Other Agencies - Third Party P,0090141582,JEWISH CARE,"2,257.76",08/02/2019
Delivery Units,Adults and Communities,Other Agencies - Third Party P,0090141583,JEWISH CARE,"2,456.36",08/02/2019
Delivery Units,Adults and Communities,Other Agencies - Third Party P,0090141585,JEWISH CARE,"2,254.84",08/02/2019
Delivery Units,Adults and Communities,Other Agencies - Third Party P,0090141587,JEWISH CARE,"2,254.84",08/02/2019
Delivery Units,Adults and Communities,Other Agencies - Third Party P,0090141588,JEWISH CARE,"2,254.84",08/02/2019
Delivery Units,Adults and Communities,Other Agencies - Third Party P,0090141589,JEWISH CARE,"2,456.36",08/02/2019
Delivery Units,Adults and Communities,Other Agencies - Third Party P,0090141590,JEWISH CARE,"2,456.36",08/02/2019
Delivery Units,Adults and Communities,Other Agencies - Third Party P,0090141591,JEWISH CARE,"2,456.36",08/02/2019
Delivery Units,Adults and Communities,Other Agencies - Third Party P,0090141592,JEWISH CARE,263.18,08/02/2019
Delivery Units,Adults and Communities,Other Agencies - Third Party P,0090141593,JEWISH CARE,"4,733.40",08/02/2019
Delivery Units,Adults and Communities,Other Agencies - Third Party P,0090141594,JEWISH CARE,"2,254.84",08/02/2019
Delivery Units,Adults and Communities,Other Agencies - Third Party P,0090141595,JEWISH CARE,"2,456.36",08/02/2019
Delivery Units,Adults and Communities,Other Agencies - Third Party P,0090141596,JEWISH CARE,"2,219.50",08/02/2019
Delivery Units,Adults and Communities,Other Agencies - Third Party P,0090141597,JEWISH CARE,"2,456.36",08/02/2019
Delivery Units,Adults and Communities,Other Agencies - Third Party P,0090141598,JEWISH CARE,"2,254.84",08/02/2019
Delivery Units,Adults and Communities,Other Agencies - Third Party P,0090141599,JEWISH CARE,"2,456.36",08/02/2019
Delivery Units,Adults and Communities,Other Agencies - Third Party P,0090141600,JEWISH CARE,"2,456.36",08/02/2019
Delivery Units,Adults and Communities,Other Agencies - Third Party P,0090141601,JEWISH CARE,"2,456.36",08/02/2019
Delivery Units,Adults and Communities,Other Agencies - Third Party P,0090141603,JEWISH CARE,"2,456.36",08/02/2019
Delivery Units,Adults and Communities,Other Agencies - Third Party P,0090141605,JEWISH CARE,"2,135.44",08/02/2019
Delivery Units,Adults and Communities,Other Agencies - Third Party P,0090141609,JEWISH CARE,"2,459.96",08/02/2019
Delivery Units,Adults and Communities,Other Agencies - Third Party P,0090141611,JEWISH CARE,"3,258.24",08/02/2019
Delivery Units,Adults and Communities,Other Agencies - Third Party P,0090141612,JEWISH CARE,"2,459.96",08/02/2019
Delivery Units,Adults and Communities,Other Agencies - Third Party P,0090141614,JEWISH CARE,"2,459.96",08/02/2019
Delivery Units,Adults and Communities,Other Agencies - Third Party P,0090141616,JEWISH CARE,"2,459.96",08/02/2019
Delivery Units,Adults and Communities,Other Agencies - Third Party P,0090141617,JEWISH CARE,"2,459.96",08/02/2019
Delivery Units,Adults and Communities,Other Agencies - Third Party P,0090141618,JEWISH CARE,"2,459.96",08/02/2019
Delivery Units,Adults and Communities,Other Agencies - Third Party P,0090141619,JEWISH CARE,"2,260.40",08/02/2019
Delivery Units,Adults and Communities,Other Agencies - Third Party P,0090141620,JEWISH CARE,"2,459.96",08/02/2019
Delivery Units,Adults and Communities,Other Agencies - Third Party P,0090141622,JEWISH CARE,"2,610.96",08/02/2019
Delivery Units,Adults and Communities,Other Agencies - Third Party P,0090141633,JEWISH CARE,"2,914.29",08/02/2019
Delivery Units,Adults and Communities,Other Agencies - Third Party P,0090141637,JEWISH CARE,-254.41,08/02/2019
Delivery Units,Adults and Communities,Other Agencies - Third Party P,0090141638,JEWISH CARE,-35.09,08/02/2019
Delivery Units,Adults and Communities,Other Agencies - Third Party P,0090141640,JEWISH CARE,-439.28,08/02/2019
Delivery Units,Adults and Communities,Other Agencies - Third Party P,0090141641,JEWISH CARE,-876.83,08/02/2019
Delivery Units,Adults and Communities,Other Agencies - Third Party P,0090141642,JEWISH CARE,350.81,08/02/2019
Delivery Units,Adults and Communities,Other Agencies - Third Party P,0090141643,JEWISH CARE,"2,459.96",08/02/2019
Delivery Units,Adults and Communities,Other Agencies - Third Party P,0090141644,JEWISH CARE,"2,940.00",08/02/2019
Delivery Units,Adults and Communities,Other Agencies - Third Party P,0090141645,JEWISH CARE,"2,257.08",08/02/2019
Delivery Units,Adults and Communities,Other Agencies - Third Party P,0090141646,JEWISH CARE,"2,254.84",08/02/2019
Delivery Units,Adults and Communities,Other Agencies - Third Party P,0090142707,JEWISH CARE,"2,257.08",15/02/2019
Delivery Units,Adults and Communities,Other Agencies - Third Party P,0090141143,CLOVELLY HOUSE RESID. HOME LTD,"2,600.00",07/02/2019
Delivery Units,Adults and Communities,Other Agencies - Third Party P,0090141148,CLOVELLY HOUSE RESID. HOME LTD,"2,780.00",07/02/2019
Delivery Units,Adults and Communities,Other Agencies - Third Party P,0090141150,CLOVELLY HOUSE RESID. HOME LTD,"2,780.00",07/02/2019
Delivery Units,Adults and Communities,Other Agencies - Third Party P,0090141153,CLOVELLY HOUSE RESID. HOME LTD,"2,304.00",07/02/2019
Delivery Units,Adults and Communities,Other Agencies - Third Party P,0090141154,CLOVELLY HOUSE RESID. HOME LTD,"2,600.00",07/02/2019
Delivery Units,Adults and Communities,Other Agencies - Third Party P,0090141155,CLOVELLY HOUSE RESID. HOME LTD,"2,304.00",07/02/2019
Delivery Units,Adults and Communities,Other Agencies - Third Party P,0090144173,CLOVELLY HOUSE RESID. HOME LTD,"2,035.71",22/02/2019
Delivery Units,Adults and Communities,Other Agencies - Third Party P,0090144174,CLOVELLY HOUSE RESID. HOME LTD,"3,000.00",22/02/2019
Delivery Units,Adults and Communities,Other Agencies - Third Party P,0090141842,QUANTUM CARE LIMITED,"4,207.14",11/02/2019
Delivery Units,Adults and Communities,Other Agencies - Third Party P,0090140170,BUPA NURSING HOMES LTD - ARKLEY,"2,167.68",07/02/2019
Delivery Units,Adults and Communities,Other Agencies - Third Party P,0090140174,BUPA NURSING HOMES LTD - ARKLEY,"2,218.04",07/02/2019
Delivery Units,Adults and Communities,Other Agencies - Third Party P,0090143167,BUPA NURSING HOMES LTD - ARKLEY,"2,218.04",20/02/2019
Delivery Units,Adults and Communities,Other Agencies - Third Party P,0090144078,BUPA NURSING HOMES LTD - ARKLEY,"2,167.68",22/02/2019
Delivery Units,Adults and Communities,Other Agencies - Third Party P,0090141069,THE WOODSIDE HOME,"2,144.00",07/02/2019
Delivery Units,Adults and Communities,Other Agencies - Third Party P,0090141070,THE WOODSIDE HOME,"2,304.00",07/02/2019
Delivery Units,Adults and Communities,Other Agencies - Third Party P,0090141072,THE WOODSIDE HOME,"2,144.00",07/02/2019
Delivery Units,Adults and Communities,Other Agencies - Third Party P,0090141073,THE WOODSIDE HOME,"2,144.00",07/02/2019
Delivery Units,Adults and Communities,Other Agencies - Third Party P,0090141074,THE WOODSIDE HOME,"2,304.00",07/02/2019
Delivery Units,Adults and Communities,Other Agencies - Third Party P,0090141075,THE WOODSIDE HOME,"2,144.00",07/02/2019
Delivery Units,Adults and Communities,Other Agencies - Third Party P,0090141077,METHODIST HOMES FOR THE AGED,"2,631.76",07/02/2019
Delivery Units,Adults and Communities,Other Agencies - Third Party P,0090143062,THE LIMES RESIDENTIAL HOME,"2,304.00",21/02/2019
Delivery Units,Adults and Communities,Other Agencies - Third Party P,0090143064,THE LIMES RESIDENTIAL HOME,"2,400.00",21/02/2019
Delivery Units,Adults and Communities,Other Agencies - Third Party P,0090143065,THE LIMES RESIDENTIAL HOME,"2,304.00",21/02/2019
Delivery Units,Adults and Communities,Other Agencies - Third Party P,0090143066,THE LIMES RESIDENTIAL HOME,"2,304.00",21/02/2019
Delivery Units,Adults and Communities,Other Agencies - Third Party P,0090143067,THE LIMES RESIDENTIAL HOME,"2,304.00",21/02/2019
Delivery Units,Adults and Communities,Other Agencies - Third Party P,0090143068,THE LIMES RESIDENTIAL HOME,"2,304.00",21/02/2019
Delivery Units,Adults and Communities,Other Agencies - Third Party P,0090143069,THE LIMES RESIDENTIAL HOME,"2,304.00",21/02/2019
Delivery Units,Adults and Communities,Other Agencies - Third Party P,0090143070,THE LIMES RESIDENTIAL HOME,"2,224.00",21/02/2019
Delivery Units,Adults and Communities,Other Agencies - Third Party P,0090143073,THE LIMES RESIDENTIAL HOME,"2,304.00",20/02/2019
Delivery Units,Adults and Communities,Other Agencies - Third Party P,0090143074,THE LIMES RESIDENTIAL HOME,"2,304.00",20/02/2019
Delivery Units,Adults and Communities,Other Agencies - Third Party P,0090143075,THE LIMES RESIDENTIAL HOME,"2,144.00",20/02/2019
Delivery Units,Adults and Communities,Other Agencies - Third Party P,0090143076,THE LIMES RESIDENTIAL HOME,"2,400.00",20/02/2019
Delivery Units,Adults and Communities,Other Agencies - Third Party P,0090143077,THE LIMES RESIDENTIAL HOME,576.00,21/02/2019
Delivery Units,Adults and Communities,Other Agencies - Third Party P,0090143726,GREEN TREES,"2,357.08",22/02/2019
Delivery Units,Adults and Communities,Other Agencies - Third Party P,0090143727,GREEN TREES,"3,214.20",22/02/2019
Delivery Units,Adults and Communities,Other Agencies - Third Party P,0090144075,GREEN TREES,"2,785.64",22/02/2019
Delivery Units,Adults and Communities,Other Agencies - Third Party P,0090141022,FREMANTLE TRUST,"5,736.00",07/02/2019
Delivery Units,Adults and Communities,Other Agencies - Third Party P,0090141023,FREMANTLE TRUST,"4,060.00",07/02/2019
Delivery Units,Adults and Communities,Other Agencies - Third Party P,0090141024,FREMANTLE TRUST,"1,293.43",07/02/2019
Delivery Units,Adults and Communities,Other Agencies - Third Party P,0090141025,FREMANTLE TRUST,"4,896.00",07/02/2019
Delivery Units,Adults and Communities,Other Agencies - Third Party P,0090141027,FREMANTLE TRUST,390.00,07/02/2019
Delivery Units,Adults and Communities,Other Agencies - Third Party P,0090141036,FREMANTLE TRUST,"4,896.00",07/02/2019
Delivery Units,Adults and Communities,Other Agencies - Third Party P,0090141037,FREMANTLE TRUST,"4,896.00",07/02/2019
Delivery Units,Adults and Communities,Other Agencies - Third Party P,0090141038,FREMANTLE TRUST,"1,573.71",07/02/2019
Delivery Units,Adults and Communities,Other Agencies - Third Party P,0090141760,FREMANTLE TRUST,"2,096.00",11/02/2019
Delivery Units,Adults and Communities,Other Agencies - Third Party P,0090141761,FREMANTLE TRUST,"2,284.00",11/02/2019
Delivery Units,Adults and Communities,Other Agencies - Third Party P,0090141762,FREMANTLE TRUST,"2,284.00",11/02/2019
Delivery Units,Adults and Communities,Other Agencies - Third Party P,0090141763,FREMANTLE TRUST,"2,284.00",11/02/2019
Delivery Units,Adults and Communities,Other Agencies - Third Party P,0090141766,FREMANTLE TRUST,"2,096.00",11/02/2019
Delivery Units,Adults and Communities,Other Agencies - Third Party P,0090141767,FREMANTLE TRUST,"2,096.00",11/02/2019
Delivery Units,Adults and Communities,Other Agencies - Third Party P,0090141768,FREMANTLE TRUST,"2,284.00",11/02/2019
Delivery Units,Adults and Communities,Other Agencies - Third Party P,0090141769,FREMANTLE TRUST,"2,096.00",11/02/2019
Delivery Units,Adults and Communities,Other Agencies - Third Party P,0090141772,FREMANTLE TRUST,"2,284.00",11/02/2019
Delivery Units,Adults and Communities,Other Agencies - Third Party P,0090141773,FREMANTLE TRUST,"2,284.00",11/02/2019
Delivery Units,Adults and Communities,Other Agencies - Third Party P,0090141774,FREMANTLE TRUST,"2,096.00",11/02/2019
Delivery Units,Adults and Communities,Other Agencies - Third Party P,0090141775,FREMANTLE TRUST,"2,284.00",11/02/2019
Delivery Units,Adults and Communities,Other Agencies - Third Party P,0090141776,FREMANTLE TRUST,"2,284.00",11/02/2019
Delivery Units,Adults and Communities,Other Agencies - Third Party P,0090141777,FREMANTLE TRUST,"2,096.00",11/02/2019
Delivery Units,Adults and Communities,Other Agencies - Third Party P,0090141780,FREMANTLE TRUST,"2,096.00",11/02/2019
Delivery Units,Adults and Communities,Other Agencies - Third Party P,0090141782,FREMANTLE TRUST,"2,096.00",11/02/2019
Delivery Units,Adults and Communities,Other Agencies - Third Party P,0090141783,FREMANTLE TRUST,"2,096.00",11/02/2019
Delivery Units,Adults and Communities,Other Agencies - Third Party P,0090141784,FREMANTLE TRUST,"2,284.00",11/02/2019
Delivery Units,Adults and Communities,Other Agencies - Third Party P,0090141785,FREMANTLE TRUST,"2,096.00",11/02/2019
Delivery Units,Adults and Communities,Other Agencies - Third Party P,0090141786,FREMANTLE TRUST,"2,284.00",11/02/2019
Delivery Units,Adults and Communities,Other Agencies - Third Party P,0090141787,FREMANTLE TRUST,"2,096.00",11/02/2019
Delivery Units,Adults and Communities,Other Agencies - Third Party P,0090141788,FREMANTLE TRUST,"2,284.00",11/02/2019
Delivery Units,Adults and Communities,Other Agencies - Third Party P,0090141789,FREMANTLE TRUST,"2,284.00",11/02/2019
Delivery Units,Adults and Communities,Other Agencies - Third Party P,0090141790,FREMANTLE TRUST,"2,284.00",11/02/2019
Delivery Units,Adults and Communities,Other Agencies - Third Party P,0090141791,FREMANTLE TRUST,"2,284.00",11/02/2019
Delivery Units,Adults and Communities,Other Agencies - Third Party P,0090141792,FREMANTLE TRUST,"2,284.00",11/02/2019
Delivery Units,Adults and Communities,Other Agencies - Third Party P,0090141793,FREMANTLE TRUST,"2,284.00",11/02/2019
Delivery Units,Adults and Communities,Other Agencies - Third Party P,0090141794,FREMANTLE TRUST,"2,096.00",11/02/2019
Delivery Units,Adults and Communities,Other Agencies - Third Party P,0090141796,FREMANTLE TRUST,"2,284.00",11/02/2019
Delivery Units,Adults and Communities,Other Agencies - Third Party P,0090141797,FREMANTLE TRUST,"2,096.00",11/02/2019
Delivery Units,Adults and Communities,Other Agencies - Third Party P,0090141798,FREMANTLE TRUST,"2,284.00",11/02/2019
Delivery Units,Adults and Communities,Other Agencies - Third Party P,0090141799,FREMANTLE TRUST,"2,284.00",11/02/2019
Delivery Units,Adults and Communities,Other Agencies - Third Party P,0090141801,FREMANTLE TRUST,"2,284.00",11/02/2019
Delivery Units,Adults and Communities,Other Agencies - Third Party P,0090141802,FREMANTLE TRUST,"2,284.00",11/02/2019
Delivery Units,Adults and Communities,Other Agencies - Third Party P,0090141803,FREMANTLE TRUST,"2,096.00",11/02/2019
Delivery Units,Adults and Communities,Other Agencies - Third Party P,0090141804,FREMANTLE TRUST,"2,096.00",11/02/2019
Delivery Units,Adults and Communities,Other Agencies - Third Party P,0090141805,FREMANTLE TRUST,"2,096.00",11/02/2019
Delivery Units,Adults and Communities,Other Agencies - Third Party P,0090141807,FREMANTLE TRUST,"2,096.00",11/02/2019
Delivery Units,Adults and Communities,Other Agencies - Third Party P,0090141808,FREMANTLE TRUST,"2,096.00",11/02/2019
Delivery Units,Adults and Communities,Other Agencies - Third Party P,0090141809,FREMANTLE TRUST,"2,096.00",11/02/2019
Delivery Units,Adults and Communities,Other Agencies - Third Party P,0090141810,FREMANTLE TRUST,"2,096.00",11/02/2019
Delivery Units,Adults and Communities,Other Agencies - Third Party P,0090141812,FREMANTLE TRUST,"1,497.14",11/02/2019
Delivery Units,Adults and Communities,Other Agencies - Third Party P,0090141813,FREMANTLE TRUST,"2,096.00",11/02/2019
Delivery Units,Adults and Communities,Other Agencies - Third Party P,0090141814,FREMANTLE TRUST,"2,096.00",11/02/2019
Delivery Units,Adults and Communities,Other Agencies - Third Party P,0090141815,FREMANTLE TRUST,"2,096.00",11/02/2019
Delivery Units,Adults and Communities,Other Agencies - Third Party P,0090141817,FREMANTLE TRUST,"2,096.00",11/02/2019
Delivery Units,Adults and Communities,Other Agencies - Third Party P,0090141818,FREMANTLE TRUST,"2,096.00",11/02/2019
Delivery Units,Adults and Communities,Other Agencies - Third Party P,0090141819,FREMANTLE TRUST,"2,096.00",11/02/2019
Delivery Units,Adults and Communities,Other Agencies - Third Party P,0090141820,FREMANTLE TRUST,"2,096.00",11/02/2019
Delivery Units,Adults and Communities,Other Agencies - Third Party P,0090141821,FREMANTLE TRUST,"2,096.00",11/02/2019
Delivery Units,Adults and Communities,Other Agencies - Third Party P,0090141863,FREMANTLE TRUST,"2,284.00",11/02/2019
Delivery Units,Adults and Communities,Other Agencies - Third Party P,0090141866,FREMANTLE TRUST,"2,096.00",11/02/2019
Delivery Units,Adults and Communities,Other Agencies - Third Party P,0090141867,FREMANTLE TRUST,"2,096.00",11/02/2019
Delivery Units,Adults and Communities,Other Agencies - Third Party P,0090141868,FREMANTLE TRUST,"2,284.00",11/02/2019
Delivery Units,Adults and Communities,Other Agencies - Third Party P,0090141870,FREMANTLE TRUST,"2,096.00",11/02/2019
Delivery Units,Adults and Communities,Other Agencies - Third Party P,0090141871,FREMANTLE TRUST,"2,096.00",11/02/2019
Delivery Units,Adults and Communities,Other Agencies - Third Party P,0090141872,FREMANTLE TRUST,"2,096.00",11/02/2019
Delivery Units,Adults and Communities,Other Agencies - Third Party P,0090141873,FREMANTLE TRUST,"2,284.00",11/02/2019
Delivery Units,Adults and Communities,Other Agencies - Third Party P,0090141874,FREMANTLE TRUST,"2,096.00",11/02/2019
Delivery Units,Adults and Communities,Other Agencies - Third Party P,0090141875,FREMANTLE TRUST,"2,284.00",11/02/2019
Delivery Units,Adults and Communities,Other Agencies - Third Party P,0090141876,FREMANTLE TRUST,"2,096.00",11/02/2019
Delivery Units,Adults and Communities,Other Agencies - Third Party P,0090141877,FREMANTLE TRUST,"2,284.00",11/02/2019
Delivery Units,Adults and Communities,Other Agencies - Third Party P,0090141878,FREMANTLE TRUST,"2,284.00",11/02/2019
Delivery Units,Adults and Communities,Other Agencies - Third Party P,0090141883,FREMANTLE TRUST,"2,096.00",11/02/2019
Delivery Units,Adults and Communities,Other Agencies - Third Party P,0090141884,FREMANTLE TRUST,"1,871.43",11/02/2019
Delivery Units,Adults and Communities,Other Agencies - Third Party P,0090141885,FREMANTLE TRUST,"2,284.00",11/02/2019
Delivery Units,Adults and Communities,Other Agencies - Third Party P,0090141887,FREMANTLE TRUST,"2,096.00",11/02/2019
Delivery Units,Adults and Communities,Other Agencies - Third Party P,0090141888,FREMANTLE TRUST,"2,096.00",11/02/2019
Delivery Units,Adults and Communities,Other Agencies - Third Party P,0090141889,FREMANTLE TRUST,"2,096.00",11/02/2019
Delivery Units,Adults and Communities,Other Agencies - Third Party P,0090141890,FREMANTLE TRUST,"2,284.00",11/02/2019
Delivery Units,Adults and Communities,Other Agencies - Third Party P,0090141891,FREMANTLE TRUST,"1,957.71",11/02/2019
Delivery Units,Adults and Communities,Other Agencies - Third Party P,0090141893,FREMANTLE TRUST,"2,284.00",11/02/2019
Delivery Units,Adults and Communities,Other Agencies - Third Party P,0090141894,FREMANTLE TRUST,"2,096.00",11/02/2019
Delivery Units,Adults and Communities,Other Agencies - Third Party P,0090141896,FREMANTLE TRUST,"2,284.00",11/02/2019
Delivery Units,Adults and Communities,Other Agencies - Third Party P,0090142720,FREMANTLE TRUST,"4,896.00",15/02/2019
Delivery Units,Adults and Communities,Other Agencies - Third Party P,0090143828,FREMANTLE TRUST,734.14,22/02/2019
Delivery Units,Adults and Communities,Other Agencies - Third Party P,0090143837,FREMANTLE TRUST,"2,155.60",22/02/2019
Delivery Units,Adults and Communities,Other Agencies - Third Party P,0090143838,FREMANTLE TRUST,407.86,22/02/2019
Delivery Units,Adults and Communities,Other Agencies - Third Party P,0090143839,FREMANTLE TRUST,897.29,22/02/2019
Delivery Units,Adults and Communities,Other Agencies - Third Party P,0090143840,FREMANTLE TRUST,"2,284.00",22/02/2019
Delivery Units,Adults and Communities,Other Agencies - Third Party P,0090143841,FREMANTLE TRUST,"2,365.57",22/02/2019
Delivery Units,Adults and Communities,Other Agencies - Third Party P,0090143842,FREMANTLE TRUST,"2,284.00",22/02/2019
Delivery Units,Adults and Communities,Other Agencies - Third Party P,0090143843,FREMANTLE TRUST,"2,284.00",22/02/2019
Delivery Units,Adults and Communities,Other Agencies - Third Party P,0090143844,FREMANTLE TRUST,"2,284.00",22/02/2019
Delivery Units,Adults and Communities,Other Agencies - Third Party P,0090143845,FREMANTLE TRUST,"2,284.00",22/02/2019
Delivery Units,Adults and Communities,Other Agencies - Third Party P,0090143846,FREMANTLE TRUST,815.71,22/02/2019
Delivery Units,Adults and Communities,Other Agencies - Third Party P,0090143847,FREMANTLE TRUST,299.40,22/02/2019
Delivery Units,Adults and Communities,Other Agencies - Third Party P,0090143848,FREMANTLE TRUST,"1,871.43",22/02/2019
Delivery Units,Adults and Communities,Other Agencies - Third Party P,0090143849,FREMANTLE TRUST,"2,096.00",22/02/2019
Delivery Units,Adults and Communities,Other Agencies - Third Party P,0090143852,FREMANTLE TRUST,"2,096.00",22/02/2019
Delivery Units,Adults and Communities,Other Agencies - Third Party P,0090143853,FREMANTLE TRUST,"2,096.00",22/02/2019
Delivery Units,Adults and Communities,Other Agencies - Third Party P,0090143854,FREMANTLE TRUST,"2,096.00",22/02/2019
Delivery Units,Adults and Communities,Other Agencies - Third Party P,0090143855,FREMANTLE TRUST,"2,284.00",22/02/2019
Delivery Units,Adults and Communities,Other Agencies - Third Party P,0090143856,FREMANTLE TRUST,"2,284.00",22/02/2019
Delivery Units,Adults and Communities,Other Agencies - Third Party P,0090143857,FREMANTLE TRUST,"2,284.00",22/02/2019
Delivery Units,Adults and Communities,Other Agencies - Third Party P,0090143858,FREMANTLE TRUST,"2,284.00",22/02/2019
Delivery Units,Adults and Communities,Other Agencies - Third Party P,0090143860,FREMANTLE TRUST,"1,957.71",22/02/2019
Delivery Units,Adults and Communities,Other Agencies - Third Party P,0090143861,FREMANTLE TRUST,978.94,22/02/2019
Delivery Units,Adults and Communities,Other Agencies - Third Party P,0090143862,FREMANTLE TRUST,"2,284.00",22/02/2019
Delivery Units,Adults and Communities,Other Agencies - Third Party P,0090143863,FREMANTLE TRUST,"2,096.00",22/02/2019
Delivery Units,Adults and Communities,Other Agencies - Third Party P,0090143864,FREMANTLE TRUST,"4,024.00",22/02/2019
Delivery Units,Adults and Communities,Other Agencies - Third Party P,0090143865,FREMANTLE TRUST,"4,024.00",22/02/2019
Delivery Units,Adults and Communities,Other Agencies - Third Party P,0090143866,FREMANTLE TRUST,"2,096.00",22/02/2019
Delivery Units,Adults and Communities,Other Agencies - Third Party P,0090143867,FREMANTLE TRUST,"2,096.00",22/02/2019
Delivery Units,Adults and Communities,Other Agencies - Third Party P,0090143868,FREMANTLE TRUST,"2,429.15",22/02/2019
Delivery Units,Adults and Communities,Other Agencies - Third Party P,0090143869,FREMANTLE TRUST,870.00,22/02/2019
Delivery Units,Adults and Communities,Other Agencies - Third Party P,0090143870,FREMANTLE TRUST,"4,060.00",22/02/2019
Delivery Units,Adults and Communities,Other Agencies - Third Party P,0090143871,FREMANTLE TRUST,"4,060.00",22/02/2019
Delivery Units,Adults and Communities,Other Agencies - Third Party P,0090143872,FREMANTLE TRUST,"4,060.00",22/02/2019
Delivery Units,Adults and Communities,Other Agencies - Third Party P,0090143873,FREMANTLE TRUST,"4,060.00",22/02/2019
Delivery Units,Adults and Communities,Other Agencies - Third Party P,0090143875,FREMANTLE TRUST,"2,096.00",22/02/2019
Delivery Units,Adults and Communities,Other Agencies - Third Party P,0090143876,FREMANTLE TRUST,"2,096.00",22/02/2019
Delivery Units,Adults and Communities,Other Agencies - Third Party P,0090143877,FREMANTLE TRUST,"2,365.57",22/02/2019
Delivery Units,Adults and Communities,Other Agencies - Third Party P,0090143878,FREMANTLE TRUST,"2,284.00",22/02/2019
Delivery Units,Adults and Communities,Other Agencies - Third Party P,0090143879,FREMANTLE TRUST,"2,284.00",22/02/2019
Delivery Units,Adults and Communities,Other Agencies - Third Party P,0090143880,FREMANTLE TRUST,"2,284.00",22/02/2019
Delivery Units,Adults and Communities,Other Agencies - Third Party P,0090143881,FREMANTLE TRUST,"2,284.00",22/02/2019
Delivery Units,Adults and Communities,Other Agencies - Third Party P,0090143882,FREMANTLE TRUST,"2,284.00",22/02/2019
Delivery Units,Adults and Communities,Other Agencies - Third Party P,0090143883,FREMANTLE TRUST,"2,284.00",22/02/2019
Delivery Units,Adults and Communities,Other Agencies - Third Party P,0090143884,FREMANTLE TRUST,326.28,22/02/2019
Delivery Units,Adults and Communities,Other Agencies - Third Party P,0090143885,FREMANTLE TRUST,"2,284.00",22/02/2019
Delivery Units,Adults and Communities,Other Agencies - Third Party P,0090143886,FREMANTLE TRUST,"1,549.86",22/02/2019
Delivery Units,Adults and Communities,Other Agencies - Third Party P,0090143887,FREMANTLE TRUST,"4,896.00",22/02/2019
Delivery Units,Adults and Communities,Other Agencies - Third Party P,0090143888,FREMANTLE TRUST,"1,386.75",22/02/2019
Delivery Units,Adults and Communities,Other Agencies - Third Party P,0090143889,FREMANTLE TRUST,898.30,22/02/2019
Delivery Units,Adults and Communities,Other Agencies - Third Party P,0090143890,FREMANTLE TRUST,"1,048.00",22/02/2019
Delivery Units,Adults and Communities,Other Agencies - Third Party P,0090143891,FREMANTLE TRUST,"2,096.00",22/02/2019
Delivery Units,Adults and Communities,Other Agencies - Third Party P,0090143892,FREMANTLE TRUST,748.57,22/02/2019
Delivery Units,Adults and Communities,Other Agencies - Third Party P,0090143893,FREMANTLE TRUST,"1,468.28",22/02/2019
Delivery Units,Adults and Communities,Other Agencies - Third Party P,0090143897,FREMANTLE TRUST,"2,284.00",22/02/2019
Delivery Units,Adults and Communities,Other Agencies - Third Party P,0090143156,BUPA CARE HOMES,"2,300.28",20/02/2019
Delivery Units,Adults and Communities,Other Agencies - Third Party P,0090143159,BUPA CARE HOMES,"2,589.03",20/02/2019
Delivery Units,Adults and Communities,Other Agencies - Third Party P,0090143160,BUPA CARE HOMES,"2,446.74",20/02/2019
Delivery Units,Adults and Communities,Other Agencies - Third Party P,0090141137,ANASTASIA LODGE,"2,800.00",07/02/2019
Delivery Units,Adults and Communities,Other Agencies - Third Party P,0090142714,VENTRY RESIDENTIAL CARE LTD,"2,550.86",15/02/2019
Delivery Units,Adults and Communities,Other Agencies - Third Party P,0090144755,B & M CARE,"2,031.76",27/02/2019
Delivery Units,Adults and Communities,Other Agencies - Third Party P,0090141012,SAGE NURSING HOME,"2,373.71",07/02/2019
Delivery Units,Adults and Communities,Other Agencies - Third Party P,0090141018,SAGE NURSING HOME,"2,657.14",07/02/2019
Delivery Units,Adults and Communities,Other Agencies - Third Party P,0090142165,TENTERDEN HOUSE,"3,574.52",15/02/2019
Delivery Units,Adults and Communities,Other Agencies - Third Party P,0090142711,ASHFIELDS RESIDENTIAL CARE HOME,"2,550.86",15/02/2019
Delivery Units,Adults and Communities,Other Agencies - Third Party P,0090142712,ASHFIELDS RESIDENTIAL CARE HOME,"2,550.86",15/02/2019
Delivery Units,Adults and Communities,Other Agencies - Third Party P,0090142713,ASHFIELDS RESIDENTIAL CARE HOME,"2,550.86",15/02/2019
Delivery Units,Adults and Communities,Other Agencies - Third Party P,0090141138,AUTUMN GARDENS,"3,160.00",07/02/2019
Delivery Units,Adults and Communities,Other Agencies - Third Party P,0090141140,AUTUMN GARDENS,"2,880.00",07/02/2019
Delivery Units,Adults and Communities,Other Agencies - Third Party P,0090139652,LYNDON (THE SALVATION ARMY),336.68,01/02/2019
Delivery Units,Adults and Communities,Other Transfer Payments to Soc,0060117117,CATALYST HOUSING LTD,"20,232.25",13/02/2019
Delivery Units,Adults and Communities,Other Transfer Payments to Soc,0060117153,CATALYST HOUSING LTD,"20,318.21",13/02/2019
Delivery Units,Adults and Communities,Other Transfer Payments to Soc,0060117157,CATALYST HOUSING LTD,"232,379.77",13/02/2019
Delivery Units,Adults and Communities,Other Transfer Payments to Soc,0060123222,CATALYST HOUSING LTD,"232,790.23",15/02/2019
Delivery Units,Adults and Communities,Other Agencies - Third Party P,0090143813,ABBEY RAVENSCROFT PARK NURSING HOME,"3,107.14",22/02/2019
Delivery Units,Adults and Communities,Other Agencies - Third Party P,0090143814,ABBEY RAVENSCROFT PARK NURSING HOME,"3,321.43",22/02/2019
Delivery Units,Adults and Communities,Other Agencies - Third Party P,0090143815,ABBEY RAVENSCROFT PARK NURSING HOME,"3,000.00",22/02/2019
Delivery Units,Adults and Communities,Other Agencies - Third Party P,0090143082,ASHTON LODGE CARE CENTRE,"3,167.36",20/02/2019
Delivery Units,Adults and Communities,Other Agencies - Third Party P,0090141156,LIVABILITY,"3,180.00",07/02/2019
Delivery Units,Adults and Communities,Other Agencies - Third Party P,0090144068,LIVABILITY,"3,180.00",22/02/2019
Delivery Units,Adults and Communities,Other Agencies - Third Party P,0090139653,MADELAYNE COURT,"2,216.41",01/02/2019
Delivery Units,Adults and Communities,Other Agencies - Third Party P,0090133166,VOYAGE LTD (SOLOR CARE),"2,297.14",04/02/2019
Delivery Units,Adults and Communities,Other Agencies - Third Party P,0090136445,VOYAGE LTD (SOLOR CARE),"4,428.57",04/02/2019
Delivery Units,Adults and Communities,Other Agencies - Third Party P,0090141041,Z & M CARE LTD,"2,042.86",07/02/2019
Delivery Units,Adults and Communities,Other Agencies - Third Party P,0090141042,Z & M CARE LTD,-557.14,07/02/2019
Delivery Units,Adults and Communities,Other Agencies - Third Party P,0090144369,BELMONT LODGE CARE CENTRE,"2,172.00",26/02/2019
Delivery Units,Adults and Communities,Other Agencies - Third Party P,0090144111,ANGEL HEALTHCARE LTD - GLENMUIR HOUSE,"2,303.84",22/02/2019
Delivery Units,Adults and Communities,Other Agencies - Third Party P,0090144112,ANGEL HEALTHCARE LTD - GLENMUIR HOUSE,"20,714.82",22/02/2019
Delivery Units,Adults and Communities,Other Agencies - Third Party P,0090144113,ANGEL HEALTHCARE LTD - GLENMUIR HOUSE,"2,303.84",22/02/2019
Delivery Units,Adults and Communities,Other Agencies - Third Party P,0090144114,ANGEL HEALTHCARE LTD - GLENMUIR HOUSE,"2,303.84",22/02/2019
Delivery Units,Adults and Communities,Other Agencies - Third Party P,0090141112,ALEXANDRA HOUSE (RUNWOOD HOMES),"2,262.69",07/02/2019
Delivery Units,Adults and Communities,Other Agencies - Third Party P,0090143163,SONNET CARE HOMES (ESSEX) LTD,"4,400.00",28/02/2019
Delivery Units,Adults and Communities,Other Agencies - Third Party P,0090141822,GCH (HERTFORDSHIRE) LTD T/A,"2,414.68",11/02/2019
Delivery Units,Adults and Communities,Other Agencies - Third Party P,0090140169,YORK HOMES (DORSET) LTD,"2,600.00",04/02/2019
Delivery Units,Adults and Communities,Other Agencies - Third Party P,0090144761,YORK HOMES (DORSET) LTD,"2,600.00",27/02/2019
Delivery Units,Adults and Communities,Other Agencies - Third Party P,0090133160,B & M CARE (THE RADLEY CARE HOME),"-1,454.85",22/02/2019
Delivery Units,Adults and Communities,Other Agencies - Third Party P,0090143823,B & M CARE (THE RADLEY CARE HOME),214.29,22/02/2019
Delivery Units,Adults and Communities,Other Agencies - Third Party P,0090143824,B & M CARE (THE RADLEY CARE HOME),"3,321.43",22/02/2019
Delivery Units,Adults and Communities,Other Agencies - Third Party P,0090143825,B & M CARE (THE RADLEY CARE HOME),"3,321.43",22/02/2019
Delivery Units,Adults and Communities,Other Agencies - Third Party P,0090129916,SOUTH COAST CARE HOMES LTD,"2,485.71",25/02/2019
Delivery Units,Adults and Communities,Other Agencies - Third Party P,0090129917,SOUTH COAST CARE HOMES LTD,"2,568.57",25/02/2019
Delivery Units,Adults and Communities,Other Agencies - Third Party P,0090129918,SOUTH COAST CARE HOMES LTD,"-5,137.14",25/02/2019
Delivery Units,Adults and Communities,Other Agencies - Third Party P,0090139642,SOUTH COAST CARE HOMES LTD,"2,568.57",25/02/2019
Delivery Units,Adults and Communities,Other Agencies - Third Party P,0090139643,SOUTH WEST CARE HOMES LTD,"3,223.14",21/02/2019
Delivery Units,Adults and Communities,Direct Transfer Payments to So,0090140364,WIRECARD - ADULT SERVICES,280.00,04/02/2019
Delivery Units,Adults and Communities,Direct Transfer Payments to So,0090140366,WIRECARD - ADULT SERVICES,462.00,04/02/2019
Delivery Units,Adults and Communities,Direct Transfer Payments to So,0090140433,WIRECARD - ADULT SERVICES,480.80,04/02/2019
Delivery Units,Adults and Communities,Direct Transfer Payments to So,0090140458,WIRECARD - ADULT SERVICES,"10,584.00",04/02/2019
Delivery Units,Adults and Communities,Direct Transfer Payments to So,0090141855,REDACTED - PERSONAL DATA,420.66,11/02/2019
Delivery Units,Adults and Communities,Direct Transfer Payments to So,0090140346,REDACTED - PERSONAL DATA,"2,931.20",04/02/2019
Delivery Units,Adults and Communities,Fees and Charges,0090139688,REDACTED - PERSONAL DATA,"1,039.96",01/02/2019
Delivery Units,Adults and Communities,Direct Transfer Payments to So,0090140238,REDACTED - PERSONAL DATA,"3,834.44",04/02/2019
Delivery Units,Adults and Communities,Direct Transfer Payments to So,0090140072,REDACTED - PERSONAL DATA,240.00,04/02/2019
Delivery Units,Adults and Communities,Direct Transfer Payments to So,0090140215,REDACTED - PERSONAL DATA,295.68,04/02/2019
Delivery Units,Adults and Communities,Direct Transfer Payments to So,0090140265,REDACTED - PERSONAL DATA,"6,572.64",04/02/2019
Delivery Units,Adults and Communities,Direct Transfer Payments to So,0090139875,REDACTED - PERSONAL DATA,961.60,04/02/2019
Delivery Units,Adults and Communities,Direct Transfer Payments to So,0090140133,REDACTED - PERSONAL DATA,144.24,04/02/2019
Delivery Units,Adults and Communities,Direct Transfer Payments to So,0090139936,REDACTED - PERSONAL DATA,"1,766.96",04/02/2019
Delivery Units,Adults and Communities,Direct Transfer Payments to So,0090139899,REDACTED - PERSONAL DATA,"1,730.88",04/02/2019
Delivery Units,Adults and Communities,Direct Transfer Payments to So,0090140738,REDACTED - PERSONAL DATA,"1,185.32",04/02/2019
Delivery Units,Adults and Communities,Direct Transfer Payments to So,0090141850,REDACTED - PERSONAL DATA,420.72,11/02/2019
Delivery Units,Adults and Communities,Direct Transfer Payments to So,0090141851,REDACTED - PERSONAL DATA,"-5,604.59",11/02/2019
Delivery Units,Adults and Communities,Fees and Charges,0090142083,REDACTED - PERSONAL DATA,0.52,12/02/2019
Delivery Units,Adults and Communities,Direct Transfer Payments to So,0090140019,REDACTED - PERSONAL DATA,568.16,04/02/2019
Delivery Units,Adults and Communities,Direct Transfer Payments to So,0090140646,REDACTED - PERSONAL DATA,589.00,04/02/2019
Delivery Units,Adults and Communities,Direct Transfer Payments to So,0090140373,REDACTED - PERSONAL DATA,397.40,04/02/2019
Delivery Units,Adults and Communities,Direct Transfer Payments to So,0090140236,REDACTED - PERSONAL DATA,781.32,04/02/2019
Delivery Units,Adults and Communities,Direct Transfer Payments to So,0090140821,REDACTED - PERSONAL DATA,889.48,04/02/2019
Delivery Units,Adults and Communities,Direct Transfer Payments to So,0090140632,REDACTED - PERSONAL DATA,456.76,04/02/2019
Delivery Units,Adults and Communities,Direct Transfer Payments to So,0090140396,REDACTED - PERSONAL DATA,899.36,04/02/2019
Delivery Units,Adults and Communities,Direct Transfer Payments to So,0090140660,REDACTED - PERSONAL DATA,"1,342.48",04/02/2019
Delivery Units,Adults and Communities,Direct Transfer Payments to So,0090139958,REDACTED - PERSONAL DATA,"2,005.04",04/02/2019
Delivery Units,Adults and Communities,Direct Transfer Payments to So,0090140400,REDACTED - PERSONAL DATA,913.52,04/02/2019
Delivery Units,Adults and Communities,Direct Transfer Payments to So,0090139995,REDACTED - PERSONAL DATA,"1,143.16",04/02/2019
Delivery Units,Adults and Communities,Direct Transfer Payments to So,0090140664,REDACTED - PERSONAL DATA,502.40,04/02/2019
Delivery Units,Adults and Communities,Direct Transfer Payments to So,0090140026,REDACTED - PERSONAL DATA,801.00,04/02/2019
Delivery Units,Adults and Communities,Direct Transfer Payments to So,0090140426,REDACTED - PERSONAL DATA,"2,933.80",04/02/2019
Delivery Units,Adults and Communities,Fees and Charges,0090140453,REDACTED - PERSONAL DATA,-157.16,04/02/2019
Delivery Units,Adults and Communities,Direct Transfer Payments to So,0090140635,REDACTED - PERSONAL DATA,"1,238.92",04/02/2019
Delivery Units,Adults and Communities,Direct Transfer Payments to So,0090140748,REDACTED - PERSONAL DATA,"1,545.48",04/02/2019
Delivery Units,Adults and Communities,Direct Transfer Payments to So,0090140032,REDACTED - PERSONAL DATA,"1,525.44",04/02/2019
Delivery Units,Adults and Communities,Direct Transfer Payments to So,0090140818,REDACTED - PERSONAL DATA,816.04,04/02/2019
Delivery Units,Adults and Communities,Direct Transfer Payments to So,0090139894,REDACTED - PERSONAL DATA,"1,000.00",04/02/2019
Delivery Units,Adults and Communities,Direct Transfer Payments to So,0090140138,REDACTED - PERSONAL DATA,338.64,04/02/2019
Delivery Units,Adults and Communities,Direct Transfer Payments to So,0090140820,REDACTED - PERSONAL DATA,"1,260.00",04/02/2019
Delivery Units,Adults and Communities,Fees and Charges,0090140368,REDACTED - PERSONAL DATA,-387.20,04/02/2019
Delivery Units,Adults and Communities,Direct Transfer Payments to So,0090140419,REDACTED - PERSONAL DATA,360.00,04/02/2019
Delivery Units,Adults and Communities,Direct Transfer Payments to So,0090140282,REDACTED - PERSONAL DATA,770.40,04/02/2019
Delivery Units,Adults and Communities,Direct Transfer Payments to So,0090140428,REDACTED - PERSONAL DATA,687.12,04/02/2019
Delivery Units,Adults and Communities,Direct Transfer Payments to So,0090140872,REDACTED - PERSONAL DATA,926.68,04/02/2019
Delivery Units,Adults and Communities,Direct Transfer Payments to So,0090140838,REDACTED - PERSONAL DATA,490.04,04/02/2019
Delivery Units,Adults and Communities,Direct Transfer Payments to So,0090139999,REDACTED - PERSONAL DATA,975.36,04/02/2019
Delivery Units,Adults and Communities,Direct Transfer Payments to So,0090140778,REDACTED - PERSONAL DATA,800.00,04/02/2019
Delivery Units,Adults and Communities,Direct Transfer Payments to So,0090140269,REDACTED - PERSONAL DATA,"1,514.52",04/02/2019
Delivery Units,Adults and Communities,Direct Transfer Payments to So,0090140722,REDACTED - PERSONAL DATA,"2,349.16",04/02/2019
Delivery Units,Adults and Communities,Fees and Charges,0090140377,REDACTED - PERSONAL DATA,-82.00,04/02/2019
Delivery Units,Adults and Communities,Direct Transfer Payments to So,0090140122,REDACTED - PERSONAL DATA,480.80,04/02/2019
Delivery Units,Adults and Communities,Direct Transfer Payments to So,0090140145,REDACTED - PERSONAL DATA,"3,444.00",04/02/2019
Delivery Units,Adults and Communities,Direct Transfer Payments to So,0090140274,REDACTED - PERSONAL DATA,"1,104.00",04/02/2019
Delivery Units,Adults and Communities,Direct Transfer Payments to So,0090140841,REDACTED - PERSONAL DATA,451.92,04/02/2019
Delivery Units,Adults and Communities,Direct Transfer Payments to So,0090140765,REDACTED - PERSONAL DATA,649.08,04/02/2019
Delivery Units,Adults and Communities,Direct Transfer Payments to So,0090140003,REDACTED - PERSONAL DATA,348.00,04/02/2019
Delivery Units,Adults and Communities,Direct Transfer Payments to So,0090140708,REDACTED - PERSONAL DATA,547.08,04/02/2019
Delivery Units,Adults and Communities,Direct Transfer Payments to So,0090140843,REDACTED - PERSONAL DATA,"4,093.84",04/02/2019
Delivery Units,Adults and Communities,Direct Transfer Payments to So,0090140682,REDACTED - PERSONAL DATA,700.00,04/02/2019
Delivery Units,Adults and Communities,Fees and Charges,0090140406,REDACTED - PERSONAL DATA,-132.24,04/02/2019
Delivery Units,Adults and Communities,Direct Transfer Payments to So,0090140555,REDACTED - PERSONAL DATA,160.00,04/02/2019
Delivery Units,Adults and Communities,Direct Transfer Payments to So,0090140787,REDACTED - PERSONAL DATA,"1,560.72",04/02/2019
Delivery Units,Adults and Communities,Direct Transfer Payments to So,0090140845,REDACTED - PERSONAL DATA,347.20,04/02/2019
Delivery Units,Adults and Communities,Direct Transfer Payments to So,0090140847,REDACTED - PERSONAL DATA,347.20,04/02/2019
Delivery Units,Adults and Communities,Direct Transfer Payments to So,0080023370,REDACTED - PERSONAL DATA,552.30,20/02/2019
Delivery Units,Adults and Communities,Direct Transfer Payments to So,0090139991,REDACTED - PERSONAL DATA,560.00,04/02/2019
Delivery Units,Adults and Communities,Direct Transfer Payments to So,0090140481,REDACTED - PERSONAL DATA,"1,063.72",04/02/2019
Delivery Units,Adults and Communities,Direct Transfer Payments to So,0090140734,REDACTED - PERSONAL DATA,"1,431.96",04/02/2019
Delivery Units,Adults and Communities,Direct Transfer Payments to So,0090140686,REDACTED - PERSONAL DATA,410.96,04/02/2019
Delivery Units,Adults and Communities,Direct Transfer Payments to So,0090140861,REDACTED - PERSONAL DATA,"3,260.00",04/02/2019
Delivery Units,Adults and Communities,Direct Transfer Payments to So,0090140048,REDACTED - PERSONAL DATA,"2,304.96",04/02/2019
Delivery Units,Adults and Communities,Direct Transfer Payments to So,0090140773,REDACTED - PERSONAL DATA,218.24,04/02/2019
Delivery Units,Adults and Communities,Direct Transfer Payments to So,0090139677,REDACTED - PERSONAL DATA,"1,449.70",01/02/2019
Delivery Units,Adults and Communities,Direct Transfer Payments to So,0090140785,REDACTED - PERSONAL DATA,"1,872.00",04/02/2019
Delivery Units,Adults and Communities,Direct Transfer Payments to So,0090140852,REDACTED - PERSONAL DATA,825.44,04/02/2019
Delivery Units,Adults and Communities,Direct Transfer Payments to So,0090140561,REDACTED - PERSONAL DATA,"3,279.20",04/02/2019
Delivery Units,Adults and Communities,Direct Transfer Payments to So,0090140774,REDACTED - PERSONAL DATA,392.00,04/02/2019
Delivery Units,Adults and Communities,Fees and Charges,0090140893,REDACTED - PERSONAL DATA,-216.40,04/02/2019
Delivery Units,Adults and Communities,Direct Transfer Payments to So,0090140736,REDACTED - PERSONAL DATA,960.00,04/02/2019
Delivery Units,Adults and Communities,Direct Transfer Payments to So,0090140476,REDACTED - PERSONAL DATA,442.88,04/02/2019
Delivery Units,Adults and Communities,Direct Transfer Payments to So,0090139981,REDACTED - PERSONAL DATA,"2,066.00",04/02/2019
Delivery Units,Adults and Communities,Direct Transfer Payments to So,0090140545,REDACTED - PERSONAL DATA,"2,092.96",04/02/2019
Delivery Units,Adults and Communities,Direct Transfer Payments to So,0090140980,REDACTED - PERSONAL DATA,"1,092.00",05/02/2019
Delivery Units,Adults and Communities,Direct Transfer Payments to So,0090140822,REDACTED - PERSONAL DATA,231.40,04/02/2019
Delivery Units,Adults and Communities,Direct Transfer Payments to So,0090129616,REDACTED - PERSONAL DATA,-760.73,04/02/2019
Delivery Units,Adults and Communities,Direct Transfer Payments to So,0090134636,REDACTED - PERSONAL DATA,478.48,04/02/2019
Delivery Units,Adults and Communities,Direct Transfer Payments to So,0090140697,REDACTED - PERSONAL DATA,478.48,04/02/2019
Delivery Units,Adults and Communities,Direct Transfer Payments to So,0090140574,REDACTED - PERSONAL DATA,"1,680.00",04/02/2019
Delivery Units,Adults and Communities,Direct Transfer Payments to So,0090140107,REDACTED - PERSONAL DATA,950.60,04/02/2019
Delivery Units,Adults and Communities,Direct Transfer Payments to So,0090140568,REDACTED - PERSONAL DATA,333.84,04/02/2019
Delivery Units,Adults and Communities,Direct Transfer Payments to So,0090140066,REDACTED - PERSONAL DATA,"2,211.80",04/02/2019
Delivery Units,Adults and Communities,Direct Transfer Payments to So,0090140487,REDACTED - PERSONAL DATA,772.32,04/02/2019
Delivery Units,Adults and Communities,Direct Transfer Payments to So,0090140130,REDACTED - PERSONAL DATA,"1,222.84",04/02/2019
Delivery Units,Adults and Communities,Direct Transfer Payments to So,0090140059,REDACTED - PERSONAL DATA,"2,518.48",04/02/2019
Delivery Units,Adults and Communities,Direct Transfer Payments to So,0090140858,REDACTED - PERSONAL DATA,"1,351.56",04/02/2019
Delivery Units,Adults and Communities,Direct Transfer Payments to So,0090140826,REDACTED - PERSONAL DATA,966.84,04/02/2019
Delivery Units,Adults and Communities,Direct Transfer Payments to So,0090140788,REDACTED - PERSONAL DATA,321.80,04/02/2019
Delivery Units,Adults and Communities,Direct Transfer Payments to So,0090140110,REDACTED - PERSONAL DATA,390.00,04/02/2019
Delivery Units,Adults and Communities,Direct Transfer Payments to So,0090140859,REDACTED - PERSONAL DATA,786.64,04/02/2019
Delivery Units,Adults and Communities,Direct Transfer Payments to So,0090140799,REDACTED - PERSONAL DATA,"1,582.00",04/02/2019
Delivery Units,Adults and Communities,Direct Transfer Payments to So,0090140789,REDACTED - PERSONAL DATA,136.00,04/02/2019
Delivery Units,Adults and Communities,Direct Transfer Payments to So,0090140571,REDACTED - PERSONAL DATA,"1,113.44",04/02/2019
Delivery Units,Adults and Communities,Direct Transfer Payments to So,0090140800,REDACTED - PERSONAL DATA,"3,652.44",04/02/2019
Delivery Units,Adults and Communities,Direct Transfer Payments to So,0090142896,REDACTED - PERSONAL DATA,"1,535.79",18/02/2019
Delivery Units,Adults and Communities,Direct Transfer Payments to So,0090140071,REDACTED - PERSONAL DATA,975.28,04/02/2019
Delivery Units,Adults and Communities,Direct Transfer Payments to So,0090140804,REDACTED - PERSONAL DATA,"2,520.00",04/02/2019
Delivery Units,Adults and Communities,Direct Transfer Payments to So,0090140897,REDACTED - PERSONAL DATA,"1,164.24",04/02/2019
Delivery Units,Adults and Communities,Direct Transfer Payments to So,0090140134,REDACTED - PERSONAL DATA,933.88,04/02/2019
Delivery Units,Adults and Communities,Direct Transfer Payments to So,0090140491,REDACTED - PERSONAL DATA,279.12,04/02/2019
Delivery Units,Adults and Communities,Direct Transfer Payments to So,0090140795,REDACTED - PERSONAL DATA,"2,300.00",04/02/2019
Delivery Units,Adults and Communities,Fees and Charges,0090142082,REDACTED - PERSONAL DATA,"2,513.14",12/02/2019
Delivery Units,Adults and Communities,Direct Transfer Payments to So,0090140518,REDACTED - PERSONAL DATA,589.68,04/02/2019
Delivery Units,Adults and Communities,Direct Transfer Payments to So,0090138253,REDACTED - PERSONAL DATA,-445.71,04/02/2019
Delivery Units,Adults and Communities,Fees and Charges,0090143649,REDACTED - PERSONAL DATA,189.74,22/02/2019
Delivery Units,Adults and Communities,Direct Transfer Payments to So,0090140562,REDACTED - PERSONAL DATA,"2,027.36",26/02/2019
Delivery Units,Adults and Communities,Direct Transfer Payments to So,0090140576,REDACTED - PERSONAL DATA,730.92,04/02/2019
Delivery Units,Adults and Communities,Direct Transfer Payments to So,0090140564,REDACTED - PERSONAL DATA,128.00,04/02/2019
Delivery Units,Adults and Communities,Direct Transfer Payments to So,0090141859,REDACTED - PERSONAL DATA,505.93,11/02/2019
Delivery Units,Adults and Communities,Direct Transfer Payments to So,0090140978,REDACTED - PERSONAL DATA,"2,919.90",05/02/2019
Delivery Units,Adults and Communities,Direct Transfer Payments to So,0090140985,REDACTED - PERSONAL DATA,"1,346.12",05/02/2019
Delivery Units,Adults and Communities,Direct Transfer Payments to So,0090139662,REDACTED - PERSONAL DATA,520.00,01/02/2019
